{"text_format":"1","workbook":"xlsx","n_sheets":13,"sheets":["Prezenční listina","Startovní listina","Výsledková listina","Běh přes přehradu","mezičasy","Výsledková listina A","Výsledková listina B","Výsledková listina C","Výsledková listina D","Výsledková listina E","Výsledková listina F","Výsledková listina G","Výsledková listina H"],"not_rendered":{"charts":0,"images":7,"macros":1,"external_links":0,"defined_names":21,"comments":0,"pivot_tables":0},"unopened":[],"bounds":{"document_bytes":16777216,"sheet_cells":100000,"rows_first":2000,"rows_last":500,"rows_between":2000,"halvings":0,"cell_chars":16384,"cell_head_chars":4096},"cells_cut":0,"cells_raw":0,"read":"whole","date_system":"1900"}

{"sheet":"Prezenční listina","index":0,"n_rows":152,"n_cols":19,"rows_kept":152,"cut":false,"hidden":true,"merged":[[5,10,5,12],[0,0,0,7]]}
[{"$f":"\"Prezenční listina - Bystřickem kolem Vírské přehrady \"&$O$2","v":"Prezenční listina - Bystřickem kolem Vírské přehrady 2014"}]
[null,"Příjmení","Jméno","Narození","Oddíl / Bydliště","Startovní číslo","Adresa (e-mail)","Kategorie",null,null,null,null,null,null,2014,null,null,null,"Pohlaví"]
[{"$f":"IF(B3<>0,A2+1,\"\")","v":1},"Blaha","Rostislav",1989,"BK Vísky",42,null,{"$f":"IF(S3<>\"Ž\",IF($O$2-D3>39,IF($O$2-D3>49,IF($O$2-D3>59,IF($O$2-D3>69,IF($O$2-D3>90,\"to snad ne!\",\"E\"),\"D\"),\"C\"),\"B\"),\"A\"),IF(S3=\"Ž\",IF($O$2-D3>34,IF($O$2-D3>44,IF($O$2-D3>90,\"to snad ne!\",\"H\"),\"G\"),\"F\")))","v":"A"},null,null,null,null,null,null,null,null,null,null,{"$f":"IF(LEN(B3)=0,\" \",IF(MID(B3,LEN(B3),1)=\"á\",\"Ž\",\"M\"))","v":"M"}]
[2,"Blaha","Stanislav",1963,"BK Vísky",40,null,"C",null,null,null,null,null,null,null,null,null,null,"M"]
[3,"Bódiová","Adéla",1976,"Sporty.cz Brno",55,null,"G",null,null,null,null,null,null,null,null,null,null,"Ž"]
[4,"Brabenec","Miroslav",1959,"Žďár nad Sázavou",46,null,"C",null,null,"Rok nastavit v buňce O2",null,null,null,null,null,null,null,"M"]
[5,"Čech","Petr",1981,"M K Prostějov",34,null,"A",null,null,null,null,null,null,null,null,null,null,"M"]
[6,"Čech","Martin",1978,"Farma Jiřího Chrásta - SK Veselí",31,null,"A",null,null,null,null,null,null,null,null,null,null,"M"]
[7,"Filip","Rostislav",1986," Horolezecký oddíl Vír",95,null,"A",null,null,null,null,null,null,null,null,null,null,"M"]
[8,"Fučík","Jaroslav",1974,"Prosetín",61,null,"B",null,null,null,null,null,null,null,null,null,null,"M"]
[9,"Fusek","Pavel",1974,"Cetoraz",null,null,"B",null,null,null,null,null,null,null,null,null,null,"M"]
[10,"Glier","Michal",1982,"Moravská Slávia Brno",83,null,"A",null,null,null,null,null,null,null,null,null,null,"M"]
[11,"Havránek","Jan",1977,"Brno",54,null,"A",null,null,null,null,null,null,null,null,null,null,"M"]
[12,"Holý","Josef",1941,"Moravská Slávia Brno",6,null,"E",null,null,null,null,null,null,null,null,null,null,"M"]
[13,"Hrubý","Milan",1938,"Blansko ",8,"odvoz","E",null,null,null,null,null,null,null,null,null,null,"M"]
[14,"Janek","Petr",1969,"Brno",82,null,"B",null,null,null,null,null,null,null,null,null,null,"M"]
[15,"Jaskulka","Martin",1968,"Kuřim",103,null,"B",null,null,null,null,null,null,null,null,null,null,"M"]
[16,"Kaše","Jaroslav",1953,"Club běžeckých outsiderů",45,null,"D",null,null,null,null,null,null,null,null,null,null,"M"]
[17,"Klíma","Miroslav",1975,"Mechanika Prostějov",9,null,"A",null,null,null,null,null,null,null,null,null,null,"M"]
[{"$f":"IF(B20<>0,A19+1,\"\")","v":18},"Kocur","Lukáš",1977,"Otmarov",12,null,"A",null,null,null,null,null,null,null,null,null,null,"M"]
[19,"Kohut","Jan",1985,"MIZUNO RELAX-FIT TEAM",21,null,"A",null,null,null,null,null,null,null,null,null,null,"M"]
[20,"Komárková","Zdeňka",1974,"SDH Bolešín",43,null,"G",null,null,null,null,null,null,null,null,null,null,"Ž"]
[21,"Konečný","Jaroslav",1969," Popůvky",85,null,"B",null,null,null,null,null,null,null,null,null,null,"M"]
[22,"Kopečný","Dušan",1973,"Maratonský klub Prostějov",null,null,"B",null,null,null,null,null,null,null,null,null,null,"M"]
[23,"Koutský","Tomáš",1987," Horolezecký oddíl Vír",96,null,"A",null,null,null,null,null,null,null,null,null,null,"M"]
[24,"Kožiak","Juraj",1974,"Kuničky",null,null,"B",null,null,null,null,null,null,null,null,null,null,"M"]
[25,"Krátká","Anna",1969,"Hvězda SKP Pardubice",97,null,"H",null,null,null,null,null,null,null,null,null,null,"Ž"]
[26,"Krátký","Josef",1965,"Hvězda SKP Pardubice",null,null,"B",null,null,null,null,null,null,null,null,null,null,"M"]
[27,"Kratochvíl","Pavel",1960,"Sokol Rudíkov",27,null,"C",null,null,null,null,null,null,null,null,null,null,"M"]
[28,"Kratochvíl","Jaroslav",1977,"SDH Hluboké",1,null,"A",null,null,null,null,null,null,null,null,null,null,"M"]
[29,"Krejčová","Magda",1980,"Brno",80,null,"F",null,null,null,null,null,null,null,null,null,null,"Ž"]
[30,"Kropáček","Jaroslav",1970,"Brno",11,null,"B",null,null,null,null,null,null,null,null,null,null,"M"]
[31,"Kučínský","Pavel",1959,"Brno",14,null,"C",null,null,null,null,null,null,null,null,null,null,"M"]
[32,"Kupka","Pavel",1975,"Lukovany",47,null,"A",null,null,null,null,null,null,null,null,null,null,"M"]
[33,"Ledvina","Luděk",1976,"Bílovice nad Svitavou",67,null,{"$f":"IF(S35<>\"Ž\",IF($O$2-D35>39,IF($O$2-D35>49,IF($O$2-D35>59,IF($O$2-D35>69,IF($O$2-D35>90,\"to snad ne!\",\"E\"),\"D\"),\"C\"),\"B\"),\"A\"),IF(S35=\"Ž\",IF($O$2-D35>34,IF($O$2-D35>44,IF($O$2-D35>90,\"to snad ne!\",\"H\"),\"G\"),\"F\")))","v":"A"},null,null,null,null,null,null,null,null,null,null,{"$f":"IF(LEN(B35)=0,\" \",IF(MID(B35,LEN(B35),1)=\"á\",\"Ž\",\"M\"))","v":"M"}]
[34,"Mareš","Bohumil",1951,"LEAR Brno",28,null,"D",null,null,null,null,null,null,null,null,null,null,"M"]
[35,"Martincová","Ivana",1963,"Moravská Slávia Brno",36,null,"H",null,null,null,null,null,null,null,null,null,null,"Ž"]
[36,"Měřínský","Jaroslav",1961,"AK Perná",26,null,"C",null,null,null,null,null,null,null,null,null,null,"M"]
[37,"Mikeš","Filip",1977,"CK Vinohradské šlapky",null,null,"A",null,null,null,null,null,null,null,null,null,null,"M"]
[38,"Milka","Zdeněk",1984,"Brno",5,"odvoz","A",null,null,null,null,null,null,null,null,null,null,"M"]
[39,"Novotný","Petr",1965,"Kuřim",100,null,"B",null,null,null,null,null,null,null,null,null,null,"M"]
[40,"Ondráček","Tomáš",1977,"Sporty.cz Brno",69,null,"A",null,null,null,null,null,null,null,null,null,null,"M"]
[41,"Ožana","Václav",1964,"TJ Nové Město na Moravě",50,"narozeniny","C",null,null,null,null,null,null,null,null,null,null,"M"]
[42,"Pavelka","Richard",1981,"Brno",86,null,"A",null,null,null,null,null,null,null,null,null,null,"M"]
[43,"Podmelová","Vilma",1962,"Moravská Slávia Brno",null,null,"H",null,null,null,null,null,null,null,null,null,null,"Ž"]
[44,"Polcar","Jiří",1977,"Farma Jiřího Chrásta - SK Veselí",33,null,"A",null,null,null,null,null,null,null,null,null,null,"M"]
[45,"Pozler","Jiří",1983,"Hradec Králové",19,"odvoz","A",null,null,null,null,null,null,null,null,null,null,"M"]
[46,"Procházková","Tereza",1990,"Orel Ořechov",23,null,"F",null,null,null,null,null,null,null,null,null,null,"Ž"]
[47,"Ráček Pelikánová","Dáša",1976,"Sporty.cz Křoví",66,null,"G",null,null,null,null,null,null,null,null,null,null,"Ž"]
[48,"Rerych","Jiří",1962,"AC Moravská Slávia Brno",49,null,"C",null,null,null,null,null,null,null,null,null,null,"M"]
[49,"Rozkoš","Tomáš",1984,"Hradec Králové",18,"odvoz","A",null,null,null,null,null,null,null,null,null,null,"M"]
[50,"Sedláček","Roman",1964,"Activity Lanškroun",10,null,"C",null,null,null,null,null,null,null,null,null,null,"M"]
[51,"Sedlák","Pavel",1971,"Slatiňany",58,null,"B",null,null,null,null,null,null,null,null,null,null,"M"]
[52,"Skalický","Josef",1962,"POLDR Žichlínek",2,null,"C",null,null,null,null,null,null,null,null,null,null,"M"]
[{"$f":"IF(B55<>0,A54+1,\"\")","v":53},"Stejskal","Petr",1976,"Farma Jiřího Chrásta - SK Veselí",30,null,"A",null,null,null,null,null,null,null,null,null,null,"M"]
[54,"Suchý","Karel",1956,"Náměšť nad Oslavou",29,null,"C",null,null,null,null,null,null,null,null,null,null,"M"]
[55,"Šerák","Martin",1978,"Sokol Bílovice nad Svitavou",76,null,"A",null,null,null,null,null,null,null,null,null,null,"M"]
[56,"Šorf","Ivo",1975,"ABND Racing Team Bystřice nad Pernštejnem",87,null,"A",null,null,null,null,null,null,null,null,null,null,"M"]
[57,"Štýbnar","Zbyněk",1974,"Běžec Vysočiny Jihlava",16,null,"B",null,null,null,null,null,null,null,null,null,null,"M"]
[58,"Šustrová","Kateřina",1979,"Liga 100 Olomouc",73,null,"G",null,null,null,null,null,null,null,null,null,null,"Ž"]
[59,"Tesařová","Marie",1954,"Křižanov",7,null,"H",null,null,null,null,null,null,null,null,null,null,"Ž"]
[60,"Veškrna","Ivan",1983,"Brno",22,null,"A",null,null,null,null,null,null,null,null,null,null,"M"]
[61,"Zouhar","Libor",1958,"Brno - Líšeň",13,null,"C",null,null,null,null,null,null,null,null,null,null,"M"]
[62,"Žák","Jiří",1971,"MK Seitl Ostrava",24,null,"B",null,null,null,null,null,null,null,null,null,null,"M"]
[63,"Alman","Dušan",1967,"Babice",53,null,"B",null,null,null,null,null,null,null,null,null,null,"M"]
[64,"Czerný","Pavel",1981,"Karviná",17,null,"A",null,null,null,null,null,null,null,null,null,null,"M"]
[65,"Hejtmánek","Miroslav",1970,"Brno",4,"odvoz",{"$f":"IF(S67<>\"Ž\",IF($O$2-D67>39,IF($O$2-D67>49,IF($O$2-D67>59,IF($O$2-D67>69,IF($O$2-D67>90,\"to snad ne!\",\"E\"),\"D\"),\"C\"),\"B\"),\"A\"),IF(S67=\"Ž\",IF($O$2-D67>34,IF($O$2-D67>44,IF($O$2-D67>90,\"to snad ne!\",\"H\"),\"G\"),\"F\")))","v":"B"},null,null,null,null,null,null,null,null,null,null,{"$f":"IF(LEN(B67)=0,\" \",IF(MID(B67,LEN(B67),1)=\"á\",\"Ž\",\"M\"))","v":"M"}]
[66,"Kalová","Jana",1966,"Zetor Brno",90,null,"H",null,null,null,null,null,null,null,null,null,null,"Ž"]
[{"$f":"IF(B69<>0,A68+1,\"\")","v":67},"Kohutek","Jaromír",1955,"Brno",37,null,"C",null,null,null,null,null,null,null,null,null,null,"M"]
[68,"Krejsová","Petra",1979,"Boskovice",72,null,"G",null,null,null,null,null,null,null,null,null,null,"Ž"]
[69,"Pálenský","Milan",1977,"Stržanov",null,null,"A",null,null,null,null,null,null,null,null,null,null,"M"]
[70,"Sedláček","Svatopluk",1957,"AC Moravská Slávia Brno",79,null,"C",null,null,null,null,null,null,null,null,null,null,"M"]
[71,"Skřivánek","Petr",1966,"LRS Vyškov",93,null,"B",null,null,null,null,null,null,null,null,null,null,"M"]
[72,"Szabová","Dana",1967,"LRS Vyškov",92,null,"H",null,null,null,null,null,null,null,null,null,null,"Ž"]
[73,"Šperka","Oldřich",1956,"Jedovnice",70,null,"C",null,null,null,null,null,null,null,null,null,null,"M"]
[74,"Zavadil","Alexandr",1966,"Kondor Jeseník",3,"odvoz","B",null,null,null,null,null,null,null,null,null,null,"M"]
[75,"Jína","Pavel",1962,"TJ Liga 100 Olomouc",20,null,{"$f":"IF(S77<>\"Ž\",IF($O$2-D77>39,IF($O$2-D77>49,IF($O$2-D77>59,IF($O$2-D77>69,IF($O$2-D77>90,\"to snad ne!\",\"E\"),\"D\"),\"C\"),\"B\"),\"A\"),IF(S77=\"Ž\",IF($O$2-D77>34,IF($O$2-D77>44,IF($O$2-D77>90,\"to snad ne!\",\"H\"),\"G\"),\"F\")))","v":"C"},null,null,null,null,null,null,null,null,null,null,"M"]
[76,"Hrdina","Tomáš",1979,"Mravský Krumlov",35,null,"A",null,null,null,null,null,null,null,null,null,null,"M"]
[77,"Ježová","Martina",1975,"Brno",38,null,"G",null,null,null,null,null,null,null,null,null,null,"Ž"]
[78,"Serban","Baciu",1980,"Brno",41,null,"A",null,null,null,null,null,null,null,null,null,null,"M"]
[79,"Ónodi","Otto",1974,"Brno",44,null,"B",null,null,null,null,null,null,null,null,null,null,"M"]
[80,"Kubík","Oldřich",1981,"TJ Jiskra Vír",48,null,"A",null,null,null,null,null,null,null,null,null,null,"M"]
[81,"Macháček","Martin",1955,"Javůrek",51,null,"C",null,null,null,null,null,null,null,null,null,null,"M"]
[82,"Janů","Jan",1993,"Hvězda SKP Pardubice",56,null,"A",null,null,null,null,null,null,null,null,null,null,"M"]
[83,"Vacula","Ondřej",1981,"Medlánky",57,null,"A",null,null,null,null,null,null,null,null,null,null,"M"]
[84,"Poneš","Pavel",1978,"TK Sokoli",59,null,"A",null,null,null,null,null,null,null,null,null,null,"M"]
[85,"Borek","Aleš",1977,"VSK UNI BRNO",60,null,"A",null,null,null,null,null,null,null,null,null,null,"M"]
[86,"Horák","Pavel",1962,"Brno",62,null,"C",null,null,null,null,null,null,null,null,null,null,"M"]
[87,"Raclavský","Vlastimil",1955,"Liga 100 Olomouc",63,null,"C",null,null,null,null,null,null,null,null,null,null,"M"]
[88,"Krčková","Šárka",1988,"Liga 100 Olomouc",64,null,{"$f":"IF(S90<>\"Ž\",IF($O$2-D90>39,IF($O$2-D90>49,IF($O$2-D90>59,IF($O$2-D90>69,IF($O$2-D90>90,\"to snad ne!\",\"E\"),\"D\"),\"C\"),\"B\"),\"A\"),IF(S90=\"Ž\",IF($O$2-D90>34,IF($O$2-D90>44,IF($O$2-D90>90,\"to snad ne!\",\"H\"),\"G\"),\"F\")))","v":"F"},null,null,null,null,null,null,null,null,null,null,"Ž"]
[89,"Stráník","Aleš",1950,"Blansko ",74,null,"D",null,null,null,null,null,null,null,null,null,null,"M"]
[90,"Boháč","Jiří",1954,"Brno",75,null,"D",null,null,null,null,null,null,null,null,null,null,"M"]
[91,"Orálek","Daniel",1970,"AC Moravská Slávia - Adidas",77,null,"B",null,null,null,null,null,null,null,null,null,null,"M"]
[92,"Kolková","Lucie",1982,"AC Moravská Slávia Brno",84,null,"F",null,null,null,null,null,null,null,null,null,null,"Ž"]
[93,"Knotek","David",1982,"Brno",89,null,"A",null,null,null,null,null,null,null,null,null,null,"M"]
[94,"Cacek","Josef",1978,"Cáca team Tišnov",91,null,"A",null,null,null,null,null,null,null,null,null,null,"M"]
[95,"Kunc","Josef",1960,"LRS Vyškov",94,null,"C",null,null,null,null,null,null,null,null,null,null,"M"]
[96,"Tyleček","Pavel",1973,"Brno - Jundrov",98,null,"B",null,null,null,null,null,null,null,null,null,null,"M"]
[97,"Všetečková","Pavla",1975,"MOTOR JOURNAL",99,"pvseteckova@seznam.cz","G",null,null,null,null,null,null,null,null,null,null,{"$f":"IF(LEN(B99)=0,\" \",IF(MID(B99,LEN(B99),1)=\"á\",\"Ž\",\"M\"))","v":"Ž"}]
[98,"Skoták","Jiří",1964,"SC Ráječko",101,null,"C",null,null,null,null,null,null,null,null,null,null,"M"]
[99,"Konečný","Libor",1971,"Kuřim",102,null,"B",null,null,null,null,null,null,null,null,null,null,"M"]
["",null,null,null,null,null,null,"to snad ne!",null,null,null,null,null,null,null,null,null,null," "]
["",null,null,null,null,null,null,"to snad ne!",null,null,null,null,null,null,null,null,null,null," "]
["",null,null,null,null,null,null,"to snad ne!",null,null,null,null,null,null,null,null,null,null," "]
["",null,null,null,null,null,null,"to snad ne!",null,null,null,null,null,null,null,null,null,null," "]
["",null,null,null,null,null,null,"to snad ne!",null,null,null,null,null,null,null,null,null,null," "]
["",null,null,null,null,null,null,"to snad ne!",null,null,null,null,null,null,null,null,null,null," "]
["",null,null,null,null,null,null,"to snad ne!",null,null,null,null,null,null,null,null,null,null," "]
["",null,null,null,null,null,null,"to snad ne!",null,null,null,null,null,null,null,null,null,null," "]
["",null,null,null,null,null,null,"to snad ne!",null,null,null,null,null,null,null,null,null,null," "]
["",null,null,null,null,null,null,"to snad ne!",null,null,null,null,null,null,null,null,null,null," "]
["",null,null,null,null,null,null,"to snad ne!",null,null,null,null,null,null,null,null,null,null," "]
["",null,null,null,null,null,null,"to snad ne!",null,null,null,null,null,null,null,null,null,null," "]
["",null,null,null,null,null,null,"to snad ne!",null,null,null,null,null,null,null,null,null,null," "]
["",null,null,null,null,null,null,"to snad ne!",null,null,null,null,null,null,null,null,null,null," "]
["",null,null,null,null,null,null,"to snad ne!",null,null,null,null,null,null,null,null,null,null," "]
["",null,null,null,null,null,null,"to snad ne!",null,null,null,null,null,null,null,null,null,null," "]
["",null,null,null,null,null,null,"to snad ne!",null,null,null,null,null,null,null,null,null,null," "]
["",null,null,null,null,null,null,"to snad ne!",null,null,null,null,null,null,null,null,null,null," "]
["",null,null,null,null,null,null,"to snad ne!",null,null,null,null,null,null,null,null,null,null," "]
["",null,null,null,null,null,null,"to snad ne!",null,null,null,null,null,null,null,null,null,null," "]
["",null,null,null,null,null,null,"to snad ne!",null,null,null,null,null,null,null,null,null,null," "]
["",null,null,null,null,null,null,"to snad ne!",null,null,null,null,null,null,null,null,null,null," "]
["",null,null,null,null,null,null,"to snad ne!",null,null,null,null,null,null,null,null,null,null," "]
["",null,null,null,null,null,null,"to snad ne!",null,null,null,null,null,null,null,null,null,null," "]
["",null,null,null,null,null,null,"to snad ne!",null,null,null,null,null,null,null,null,null,null," "]
["",null,null,null,null,null,null,"to snad ne!",null,null,null,null,null,null,null,null,null,null," "]
["",null,null,null,null,null,null,"to snad ne!",null,null,null,null,null,null,null,null,null,null," "]
["",null,null,null,null,null,null,"to snad ne!",null,null,null,null,null,null,null,null,null,null," "]
["",null,null,null,null,null,null,"to snad ne!",null,null,null,null,null,null,null,null,null,null," "]
["",null,null,null,null,null,null,"to snad ne!",null,null,null,null,null,null,null,null,null,null,{"$f":"IF(LEN(B131)=0,\" \",IF(MID(B131,LEN(B131),1)=\"á\",\"Ž\",\"M\"))","v":" "}]
["",null,null,null,null,null,null,"to snad ne!",null,null,null,null,null,null,null,null,null,null," "]
[{"$f":"IF(B133<>0,A132+1,\"\")","v":""},null,null,null,null,null,null,"to snad ne!",null,null,null,null,null,null,null,null,null,null," "]
["",null,null,null,null,null,null,"to snad ne!",null,null,null,null,null,null,null,null,null,null," "]
["",null,null,null,null,null,null,"to snad ne!",null,null,null,null,null,null,null,null,null,null," "]
["",null,null,null,null,null,null,"to snad ne!",null,null,null,null,null,null,null,null,null,null," "]
["",null,null,null,null,null,null,"to snad ne!",null,null,null,null,null,null,null,null,null,null," "]
["",null,null,null,null,null,null,"to snad ne!",null,null,null,null,null,null,null,null,null,null," "]
["",null,null,null,null,null,null,"to snad ne!",null,null,null,null,null,null,null,null,null,null," "]
["",null,null,null,null,null,null,"to snad ne!",null,null,null,null,null,null,null,null,null,null," "]
["",null,null,null,null,null,null,"to snad ne!",null,null,null,null,null,null,null,null,null,null," "]
["",null,null,null,null,null,null,"to snad ne!",null,null,null,null,null,null,null,null,null,null," "]
["",null,null,null,null,null,null,"to snad ne!",null,null,null,null,null,null,null,null,null,null," "]
["",null,null,null,null,null,null,"to snad ne!",null,null,null,null,null,null,null,null,null,null," "]
["",null,null,null,null,null,null,"to snad ne!",null,null,null,null,null,null,null,null,null,null," "]
["",null,null,null,null,null,null,"to snad ne!",null,null,null,null,null,null,null,null,null,null," "]
["",null,null,null,null,null,null,"to snad ne!",null,null,null,null,null,null,null,null,null,null," "]
["",null,null,null,null,null,null,"to snad ne!",null,null,null,null,null,null,null,null,null,null," "]
["",null,null,null,null,null,null,"to snad ne!",null,null,null,null,null,null,null,null,null,null," "]
["",null,null,null,null,null,null,"to snad ne!",null,null,null,null,null,null,null,null,null,null," "]
["",null,null,null,null,null,null,"to snad ne!",null,null,null,null,null,null,null,null,null,null," "]
["",null,null,null,null,null,null,"to snad ne!",null,null,null,null,null,null,null,null,null,null," "]

{"sheet":"Startovní listina","index":1,"n_rows":141,"n_cols":12,"rows_kept":141,"cut":false,"hidden":true,"merged":[[4,11,11,11],[0,0,0,6],[2,0,2,6],[1,0,1,6],[1,8,2,9]]}
[{"$f":"\"Startovní listina - Bystřickem kolem Vírské přehrady \"&'Prezenční listina'!O2","v":"Startovní listina - Bystřickem kolem Vírské přehrady 2014"}]
[{"$f":"'Prezenční listina'!O2-2004&\". ročník\"","v":"10. ročník"},null,null,null,null,null,null,null,"Počet přihlášených v jednotlivých kategoriích"]
["2014-05-31",null,null,null,null,null,null,null,null,null,null,"Celkem startujících"]
[null,"Startovní číslo","Příjmení","Jméno","Narození","Oddíl / Bydliště","Kategorie"]
[1,{"$f":"IF('Prezenční listina'!F30=0,\"\",'Prezenční listina'!F30)","v":1},{"$f":"IF('Prezenční listina'!F30=0,\"\",'Prezenční listina'!B30)","v":"Kratochvíl"},{"$f":"IF('Prezenční listina'!F30=0,\"\",'Prezenční listina'!C30)","v":"Jaroslav"},{"$f":"IF('Prezenční listina'!F30=0,\"\",'Prezenční listina'!D30)","v":1977},{"$f":"IF('Prezenční listina'!F30=0,\"\",'Prezenční listina'!E30)","v":"SDH Hluboké"},{"$f":"IF('Prezenční listina'!F30=0,\"\",'Prezenční listina'!H30)","v":"A"},null,"A:",{"$f":"COUNTIF($G$5:$G$141,\"A\")","v":33},null,{"$f":"COUNT(B5:B141)","v":92}]
[{"$f":"IF(C6=\"\",\"\",A5+1)","v":2},{"$f":"IF('Prezenční listina'!F54=0,\"\",'Prezenční listina'!F54)","v":2},{"$f":"IF('Prezenční listina'!F54=0,\"\",'Prezenční listina'!B54)","v":"Skalický"},{"$f":"IF('Prezenční listina'!F54=0,\"\",'Prezenční listina'!C54)","v":"Josef"},{"$f":"IF('Prezenční listina'!F54=0,\"\",'Prezenční listina'!D54)","v":1962},{"$f":"IF('Prezenční listina'!F54=0,\"\",'Prezenční listina'!E54)","v":"POLDR Žichlínek"},{"$f":"IF('Prezenční listina'!F54=0,\"\",'Prezenční listina'!H54)","v":"C"},null,"B:",{"$f":"COUNTIF($G$5:$G$141,\"B\")","v":17}]
[3,{"$f":"IF('Prezenční listina'!F76=0,\"\",'Prezenční listina'!F76)","v":3},{"$f":"IF('Prezenční listina'!F76=0,\"\",'Prezenční listina'!B76)","v":"Zavadil"},{"$f":"IF('Prezenční listina'!F76=0,\"\",'Prezenční listina'!C76)","v":"Alexandr"},{"$f":"IF('Prezenční listina'!F76=0,\"\",'Prezenční listina'!D76)","v":1966},{"$f":"IF('Prezenční listina'!F76=0,\"\",'Prezenční listina'!E76)","v":"Kondor Jeseník"},{"$f":"IF('Prezenční listina'!F76=0,\"\",'Prezenční listina'!H76)","v":"B"},null,"C:",{"$f":"COUNTIF($G$5:$G$141,\"C\")","v":20}]
[4,{"$f":"IF('Prezenční listina'!F67=0,\"\",'Prezenční listina'!F67)","v":4},{"$f":"IF('Prezenční listina'!F67=0,\"\",'Prezenční listina'!B67)","v":"Hejtmánek"},{"$f":"IF('Prezenční listina'!F67=0,\"\",'Prezenční listina'!C67)","v":"Miroslav"},{"$f":"IF('Prezenční listina'!F67=0,\"\",'Prezenční listina'!D67)","v":1970},{"$f":"IF('Prezenční listina'!F67=0,\"\",'Prezenční listina'!E67)","v":"Brno"},{"$f":"IF('Prezenční listina'!F67=0,\"\",'Prezenční listina'!H67)","v":"B"},null,"D:",{"$f":"COUNTIF($G$5:$G$141,\"D\")","v":4}]
[5,{"$f":"IF('Prezenční listina'!F40=0,\"\",'Prezenční listina'!F40)","v":5},{"$f":"IF('Prezenční listina'!F40=0,\"\",'Prezenční listina'!B40)","v":"Milka"},{"$f":"IF('Prezenční listina'!F40=0,\"\",'Prezenční listina'!C40)","v":"Zdeněk"},{"$f":"IF('Prezenční listina'!F40=0,\"\",'Prezenční listina'!D40)","v":1984},{"$f":"IF('Prezenční listina'!F40=0,\"\",'Prezenční listina'!E40)","v":"Brno"},{"$f":"IF('Prezenční listina'!F40=0,\"\",'Prezenční listina'!H40)","v":"A"},null,"E:",{"$f":"COUNTIF($G$5:$G$141,\"E\")","v":2}]
[6,{"$f":"IF('Prezenční listina'!F14=0,\"\",'Prezenční listina'!F14)","v":6},{"$f":"IF('Prezenční listina'!F14=0,\"\",'Prezenční listina'!B14)","v":"Holý"},{"$f":"IF('Prezenční listina'!F14=0,\"\",'Prezenční listina'!C14)","v":"Josef"},{"$f":"IF('Prezenční listina'!F14=0,\"\",'Prezenční listina'!D14)","v":1941},{"$f":"IF('Prezenční listina'!F14=0,\"\",'Prezenční listina'!E14)","v":"Moravská Slávia Brno"},{"$f":"IF('Prezenční listina'!F14=0,\"\",'Prezenční listina'!H14)","v":"E"},null,"F:",{"$f":"COUNTIF($G$5:$G$141,\"F\")","v":4}]
[7,{"$f":"IF('Prezenční listina'!F61=0,\"\",'Prezenční listina'!F61)","v":7},{"$f":"IF('Prezenční listina'!F61=0,\"\",'Prezenční listina'!B61)","v":"Tesařová"},{"$f":"IF('Prezenční listina'!F61=0,\"\",'Prezenční listina'!C61)","v":"Marie"},{"$f":"IF('Prezenční listina'!F61=0,\"\",'Prezenční listina'!D61)","v":1954},{"$f":"IF('Prezenční listina'!F61=0,\"\",'Prezenční listina'!E61)","v":"Křižanov"},{"$f":"IF('Prezenční listina'!F61=0,\"\",'Prezenční listina'!H61)","v":"H"},null,"G:",{"$f":"COUNTIF($G$5:$G$141,\"G\")","v":7}]
[8,{"$f":"IF('Prezenční listina'!F15=0,\"\",'Prezenční listina'!F15)","v":8},{"$f":"IF('Prezenční listina'!F15=0,\"\",'Prezenční listina'!B15)","v":"Hrubý"},{"$f":"IF('Prezenční listina'!F15=0,\"\",'Prezenční listina'!C15)","v":"Milan"},{"$f":"IF('Prezenční listina'!F15=0,\"\",'Prezenční listina'!D15)","v":1938},{"$f":"IF('Prezenční listina'!F15=0,\"\",'Prezenční listina'!E15)","v":"Blansko "},{"$f":"IF('Prezenční listina'!F15=0,\"\",'Prezenční listina'!H15)","v":"E"},null,"H:",{"$f":"COUNTIF($G$5:$G$141,\"H\")","v":5}]
[9,{"$f":"IF('Prezenční listina'!F19=0,\"\",'Prezenční listina'!F19)","v":9},{"$f":"IF('Prezenční listina'!F19=0,\"\",'Prezenční listina'!B19)","v":"Klíma"},{"$f":"IF('Prezenční listina'!F19=0,\"\",'Prezenční listina'!C19)","v":"Miroslav"},{"$f":"IF('Prezenční listina'!F19=0,\"\",'Prezenční listina'!D19)","v":1975},{"$f":"IF('Prezenční listina'!F19=0,\"\",'Prezenční listina'!E19)","v":"Mechanika Prostějov"},{"$f":"IF('Prezenční listina'!F19=0,\"\",'Prezenční listina'!H19)","v":"A"}]
[10,{"$f":"IF('Prezenční listina'!F52=0,\"\",'Prezenční listina'!F52)","v":10},{"$f":"IF('Prezenční listina'!F52=0,\"\",'Prezenční listina'!B52)","v":"Sedláček"},{"$f":"IF('Prezenční listina'!F52=0,\"\",'Prezenční listina'!C52)","v":"Roman"},{"$f":"IF('Prezenční listina'!F52=0,\"\",'Prezenční listina'!D52)","v":1964},{"$f":"IF('Prezenční listina'!F52=0,\"\",'Prezenční listina'!E52)","v":"Activity Lanškroun"},{"$f":"IF('Prezenční listina'!F52=0,\"\",'Prezenční listina'!H52)","v":"C"}]
[11,{"$f":"IF('Prezenční listina'!F32=0,\"\",'Prezenční listina'!F32)","v":11},{"$f":"IF('Prezenční listina'!F32=0,\"\",'Prezenční listina'!B32)","v":"Kropáček"},{"$f":"IF('Prezenční listina'!F32=0,\"\",'Prezenční listina'!C32)","v":"Jaroslav"},{"$f":"IF('Prezenční listina'!F32=0,\"\",'Prezenční listina'!D32)","v":1970},{"$f":"IF('Prezenční listina'!F32=0,\"\",'Prezenční listina'!E32)","v":"Brno"},{"$f":"IF('Prezenční listina'!F32=0,\"\",'Prezenční listina'!H32)","v":"B"}]
[12,{"$f":"IF('Prezenční listina'!F20=0,\"\",'Prezenční listina'!F20)","v":12},{"$f":"IF('Prezenční listina'!F20=0,\"\",'Prezenční listina'!B20)","v":"Kocur"},{"$f":"IF('Prezenční listina'!F20=0,\"\",'Prezenční listina'!C20)","v":"Lukáš"},{"$f":"IF('Prezenční listina'!F20=0,\"\",'Prezenční listina'!D20)","v":1977},{"$f":"IF('Prezenční listina'!F20=0,\"\",'Prezenční listina'!E20)","v":"Otmarov"},{"$f":"IF('Prezenční listina'!F20=0,\"\",'Prezenční listina'!H20)","v":"A"}]
[13,{"$f":"IF('Prezenční listina'!F63=0,\"\",'Prezenční listina'!F63)","v":13},{"$f":"IF('Prezenční listina'!F63=0,\"\",'Prezenční listina'!B63)","v":"Zouhar"},{"$f":"IF('Prezenční listina'!F63=0,\"\",'Prezenční listina'!C63)","v":"Libor"},{"$f":"IF('Prezenční listina'!F63=0,\"\",'Prezenční listina'!D63)","v":1958},{"$f":"IF('Prezenční listina'!F63=0,\"\",'Prezenční listina'!E63)","v":"Brno - Líšeň"},{"$f":"IF('Prezenční listina'!F63=0,\"\",'Prezenční listina'!H63)","v":"C"}]
[14,{"$f":"IF('Prezenční listina'!F33=0,\"\",'Prezenční listina'!F33)","v":14},{"$f":"IF('Prezenční listina'!F33=0,\"\",'Prezenční listina'!B33)","v":"Kučínský"},{"$f":"IF('Prezenční listina'!F33=0,\"\",'Prezenční listina'!C33)","v":"Pavel"},{"$f":"IF('Prezenční listina'!F33=0,\"\",'Prezenční listina'!D33)","v":1959},{"$f":"IF('Prezenční listina'!F33=0,\"\",'Prezenční listina'!E33)","v":"Brno"},{"$f":"IF('Prezenční listina'!F33=0,\"\",'Prezenční listina'!H33)","v":"C"}]
[15,{"$f":"IF('Prezenční listina'!F59=0,\"\",'Prezenční listina'!F59)","v":16},{"$f":"IF('Prezenční listina'!F59=0,\"\",'Prezenční listina'!B59)","v":"Štýbnar"},{"$f":"IF('Prezenční listina'!F59=0,\"\",'Prezenční listina'!C59)","v":"Zbyněk"},{"$f":"IF('Prezenční listina'!F59=0,\"\",'Prezenční listina'!D59)","v":1974},{"$f":"IF('Prezenční listina'!F59=0,\"\",'Prezenční listina'!E59)","v":"Běžec Vysočiny Jihlava"},{"$f":"IF('Prezenční listina'!F59=0,\"\",'Prezenční listina'!H59)","v":"B"}]
[16,{"$f":"IF('Prezenční listina'!F66=0,\"\",'Prezenční listina'!F66)","v":17},{"$f":"IF('Prezenční listina'!F66=0,\"\",'Prezenční listina'!B66)","v":"Czerný"},{"$f":"IF('Prezenční listina'!F66=0,\"\",'Prezenční listina'!C66)","v":"Pavel"},{"$f":"IF('Prezenční listina'!F66=0,\"\",'Prezenční listina'!D66)","v":1981},{"$f":"IF('Prezenční listina'!F66=0,\"\",'Prezenční listina'!E66)","v":"Karviná"},{"$f":"IF('Prezenční listina'!F66=0,\"\",'Prezenční listina'!H66)","v":"A"}]
[17,{"$f":"IF('Prezenční listina'!F51=0,\"\",'Prezenční listina'!F51)","v":18},{"$f":"IF('Prezenční listina'!F51=0,\"\",'Prezenční listina'!B51)","v":"Rozkoš"},{"$f":"IF('Prezenční listina'!F51=0,\"\",'Prezenční listina'!C51)","v":"Tomáš"},{"$f":"IF('Prezenční listina'!F51=0,\"\",'Prezenční listina'!D51)","v":1984},{"$f":"IF('Prezenční listina'!F51=0,\"\",'Prezenční listina'!E51)","v":"Hradec Králové"},{"$f":"IF('Prezenční listina'!F51=0,\"\",'Prezenční listina'!H51)","v":"A"}]
[18,{"$f":"IF('Prezenční listina'!F47=0,\"\",'Prezenční listina'!F47)","v":19},{"$f":"IF('Prezenční listina'!F47=0,\"\",'Prezenční listina'!B47)","v":"Pozler"},{"$f":"IF('Prezenční listina'!F47=0,\"\",'Prezenční listina'!C47)","v":"Jiří"},{"$f":"IF('Prezenční listina'!F47=0,\"\",'Prezenční listina'!D47)","v":1983},{"$f":"IF('Prezenční listina'!F47=0,\"\",'Prezenční listina'!E47)","v":"Hradec Králové"},{"$f":"IF('Prezenční listina'!F47=0,\"\",'Prezenční listina'!H47)","v":"A"}]
[19,{"$f":"IF('Prezenční listina'!F77=0,\"\",'Prezenční listina'!F77)","v":20},{"$f":"IF('Prezenční listina'!F77=0,\"\",'Prezenční listina'!B77)","v":"Jína"},{"$f":"IF('Prezenční listina'!F77=0,\"\",'Prezenční listina'!C77)","v":"Pavel"},{"$f":"IF('Prezenční listina'!F77=0,\"\",'Prezenční listina'!D77)","v":1962},{"$f":"IF('Prezenční listina'!F77=0,\"\",'Prezenční listina'!E77)","v":"TJ Liga 100 Olomouc"},{"$f":"IF('Prezenční listina'!F77=0,\"\",'Prezenční listina'!H77)","v":"C"}]
[20,{"$f":"IF('Prezenční listina'!F21=0,\"\",'Prezenční listina'!F21)","v":21},{"$f":"IF('Prezenční listina'!F21=0,\"\",'Prezenční listina'!B21)","v":"Kohut"},{"$f":"IF('Prezenční listina'!F21=0,\"\",'Prezenční listina'!C21)","v":"Jan"},{"$f":"IF('Prezenční listina'!F21=0,\"\",'Prezenční listina'!D21)","v":1985},{"$f":"IF('Prezenční listina'!F21=0,\"\",'Prezenční listina'!E21)","v":"MIZUNO RELAX-FIT TEAM"},{"$f":"IF('Prezenční listina'!F21=0,\"\",'Prezenční listina'!H21)","v":"A"}]
[21,{"$f":"IF('Prezenční listina'!F62=0,\"\",'Prezenční listina'!F62)","v":22},{"$f":"IF('Prezenční listina'!F62=0,\"\",'Prezenční listina'!B62)","v":"Veškrna"},{"$f":"IF('Prezenční listina'!F62=0,\"\",'Prezenční listina'!C62)","v":"Ivan"},{"$f":"IF('Prezenční listina'!F62=0,\"\",'Prezenční listina'!D62)","v":1983},{"$f":"IF('Prezenční listina'!F62=0,\"\",'Prezenční listina'!E62)","v":"Brno"},{"$f":"IF('Prezenční listina'!F62=0,\"\",'Prezenční listina'!H62)","v":"A"}]
[22,{"$f":"IF('Prezenční listina'!F48=0,\"\",'Prezenční listina'!F48)","v":23},{"$f":"IF('Prezenční listina'!F48=0,\"\",'Prezenční listina'!B48)","v":"Procházková"},{"$f":"IF('Prezenční listina'!F48=0,\"\",'Prezenční listina'!C48)","v":"Tereza"},{"$f":"IF('Prezenční listina'!F48=0,\"\",'Prezenční listina'!D48)","v":1990},{"$f":"IF('Prezenční listina'!F48=0,\"\",'Prezenční listina'!E48)","v":"Orel Ořechov"},{"$f":"IF('Prezenční listina'!F48=0,\"\",'Prezenční listina'!H48)","v":"F"}]
[23,{"$f":"IF('Prezenční listina'!F64=0,\"\",'Prezenční listina'!F64)","v":24},{"$f":"IF('Prezenční listina'!F64=0,\"\",'Prezenční listina'!B64)","v":"Žák"},{"$f":"IF('Prezenční listina'!F64=0,\"\",'Prezenční listina'!C64)","v":"Jiří"},{"$f":"IF('Prezenční listina'!F64=0,\"\",'Prezenční listina'!D64)","v":1971},{"$f":"IF('Prezenční listina'!F64=0,\"\",'Prezenční listina'!E64)","v":"MK Seitl Ostrava"},{"$f":"IF('Prezenční listina'!F64=0,\"\",'Prezenční listina'!H64)","v":"B"}]
[24,{"$f":"IF('Prezenční listina'!F38=0,\"\",'Prezenční listina'!F38)","v":26},{"$f":"IF('Prezenční listina'!F38=0,\"\",'Prezenční listina'!B38)","v":"Měřínský"},{"$f":"IF('Prezenční listina'!F38=0,\"\",'Prezenční listina'!C38)","v":"Jaroslav"},{"$f":"IF('Prezenční listina'!F38=0,\"\",'Prezenční listina'!D38)","v":1961},{"$f":"IF('Prezenční listina'!F38=0,\"\",'Prezenční listina'!E38)","v":"AK Perná"},{"$f":"IF('Prezenční listina'!F38=0,\"\",'Prezenční listina'!H38)","v":"C"}]
[25,{"$f":"IF('Prezenční listina'!F29=0,\"\",'Prezenční listina'!F29)","v":27},{"$f":"IF('Prezenční listina'!F29=0,\"\",'Prezenční listina'!B29)","v":"Kratochvíl"},{"$f":"IF('Prezenční listina'!F29=0,\"\",'Prezenční listina'!C29)","v":"Pavel"},{"$f":"IF('Prezenční listina'!F29=0,\"\",'Prezenční listina'!D29)","v":1960},{"$f":"IF('Prezenční listina'!F29=0,\"\",'Prezenční listina'!E29)","v":"Sokol Rudíkov"},{"$f":"IF('Prezenční listina'!F29=0,\"\",'Prezenční listina'!H29)","v":"C"}]
[26,{"$f":"IF('Prezenční listina'!F36=0,\"\",'Prezenční listina'!F36)","v":28},{"$f":"IF('Prezenční listina'!F36=0,\"\",'Prezenční listina'!B36)","v":"Mareš"},{"$f":"IF('Prezenční listina'!F36=0,\"\",'Prezenční listina'!C36)","v":"Bohumil"},{"$f":"IF('Prezenční listina'!F36=0,\"\",'Prezenční listina'!D36)","v":1951},{"$f":"IF('Prezenční listina'!F36=0,\"\",'Prezenční listina'!E36)","v":"LEAR Brno"},{"$f":"IF('Prezenční listina'!F36=0,\"\",'Prezenční listina'!H36)","v":"D"}]
[27,{"$f":"IF('Prezenční listina'!F56=0,\"\",'Prezenční listina'!F56)","v":29},{"$f":"IF('Prezenční listina'!F56=0,\"\",'Prezenční listina'!B56)","v":"Suchý"},{"$f":"IF('Prezenční listina'!F56=0,\"\",'Prezenční listina'!C56)","v":"Karel"},{"$f":"IF('Prezenční listina'!F56=0,\"\",'Prezenční listina'!D56)","v":1956},{"$f":"IF('Prezenční listina'!F56=0,\"\",'Prezenční listina'!E56)","v":"Náměšť nad Oslavou"},{"$f":"IF('Prezenční listina'!F56=0,\"\",'Prezenční listina'!H56)","v":"C"}]
[28,{"$f":"IF('Prezenční listina'!F55=0,\"\",'Prezenční listina'!F55)","v":30},{"$f":"IF('Prezenční listina'!F55=0,\"\",'Prezenční listina'!B55)","v":"Stejskal"},{"$f":"IF('Prezenční listina'!F55=0,\"\",'Prezenční listina'!C55)","v":"Petr"},{"$f":"IF('Prezenční listina'!F55=0,\"\",'Prezenční listina'!D55)","v":1976},{"$f":"IF('Prezenční listina'!F55=0,\"\",'Prezenční listina'!E55)","v":"Farma Jiřího Chrásta - SK Veselí"},{"$f":"IF('Prezenční listina'!F55=0,\"\",'Prezenční listina'!H55)","v":"A"}]
[29,{"$f":"IF('Prezenční listina'!F8=0,\"\",'Prezenční listina'!F8)","v":31},{"$f":"IF('Prezenční listina'!F8=0,\"\",'Prezenční listina'!B8)","v":"Čech"},{"$f":"IF('Prezenční listina'!F8=0,\"\",'Prezenční listina'!C8)","v":"Martin"},{"$f":"IF('Prezenční listina'!F8=0,\"\",'Prezenční listina'!D8)","v":1978},{"$f":"IF('Prezenční listina'!F8=0,\"\",'Prezenční listina'!E8)","v":"Farma Jiřího Chrásta - SK Veselí"},{"$f":"IF('Prezenční listina'!F8=0,\"\",'Prezenční listina'!H8)","v":"A"}]
[30,{"$f":"IF('Prezenční listina'!F46=0,\"\",'Prezenční listina'!F46)","v":33},{"$f":"IF('Prezenční listina'!F46=0,\"\",'Prezenční listina'!B46)","v":"Polcar"},{"$f":"IF('Prezenční listina'!F46=0,\"\",'Prezenční listina'!C46)","v":"Jiří"},{"$f":"IF('Prezenční listina'!F46=0,\"\",'Prezenční listina'!D46)","v":1977},{"$f":"IF('Prezenční listina'!F46=0,\"\",'Prezenční listina'!E46)","v":"Farma Jiřího Chrásta - SK Veselí"},{"$f":"IF('Prezenční listina'!F46=0,\"\",'Prezenční listina'!H46)","v":"A"}]
[31,{"$f":"IF('Prezenční listina'!F7=0,\"\",'Prezenční listina'!F7)","v":34},{"$f":"IF('Prezenční listina'!F7=0,\"\",'Prezenční listina'!B7)","v":"Čech"},{"$f":"IF('Prezenční listina'!F7=0,\"\",'Prezenční listina'!C7)","v":"Petr"},{"$f":"IF('Prezenční listina'!F7=0,\"\",'Prezenční listina'!D7)","v":1981},{"$f":"IF('Prezenční listina'!F7=0,\"\",'Prezenční listina'!E7)","v":"M K Prostějov"},{"$f":"IF('Prezenční listina'!F7=0,\"\",'Prezenční listina'!H7)","v":"A"}]
[32,{"$f":"IF('Prezenční listina'!F78=0,\"\",'Prezenční listina'!F78)","v":35},{"$f":"IF('Prezenční listina'!F78=0,\"\",'Prezenční listina'!B78)","v":"Hrdina"},{"$f":"IF('Prezenční listina'!F78=0,\"\",'Prezenční listina'!C78)","v":"Tomáš"},{"$f":"IF('Prezenční listina'!F78=0,\"\",'Prezenční listina'!D78)","v":1979},{"$f":"IF('Prezenční listina'!F78=0,\"\",'Prezenční listina'!E78)","v":"Mravský Krumlov"},{"$f":"IF('Prezenční listina'!F78=0,\"\",'Prezenční listina'!H78)","v":"A"}]
[33,{"$f":"IF('Prezenční listina'!F37=0,\"\",'Prezenční listina'!F37)","v":36},{"$f":"IF('Prezenční listina'!F37=0,\"\",'Prezenční listina'!B37)","v":"Martincová"},{"$f":"IF('Prezenční listina'!F37=0,\"\",'Prezenční listina'!C37)","v":"Ivana"},{"$f":"IF('Prezenční listina'!F37=0,\"\",'Prezenční listina'!D37)","v":1963},{"$f":"IF('Prezenční listina'!F37=0,\"\",'Prezenční listina'!E37)","v":"Moravská Slávia Brno"},{"$f":"IF('Prezenční listina'!F37=0,\"\",'Prezenční listina'!H37)","v":"H"}]
[34,{"$f":"IF('Prezenční listina'!F69=0,\"\",'Prezenční listina'!F69)","v":37},{"$f":"IF('Prezenční listina'!F69=0,\"\",'Prezenční listina'!B69)","v":"Kohutek"},{"$f":"IF('Prezenční listina'!F69=0,\"\",'Prezenční listina'!C69)","v":"Jaromír"},{"$f":"IF('Prezenční listina'!F69=0,\"\",'Prezenční listina'!D69)","v":1955},{"$f":"IF('Prezenční listina'!F69=0,\"\",'Prezenční listina'!E69)","v":"Brno"},{"$f":"IF('Prezenční listina'!F69=0,\"\",'Prezenční listina'!H69)","v":"C"}]
[{"$f":"IF(C39=\"\",\"\",A38+1)","v":35},{"$f":"IF('Prezenční listina'!F79=0,\"\",'Prezenční listina'!F79)","v":38},{"$f":"IF('Prezenční listina'!F79=0,\"\",'Prezenční listina'!B79)","v":"Ježová"},{"$f":"IF('Prezenční listina'!F79=0,\"\",'Prezenční listina'!C79)","v":"Martina"},{"$f":"IF('Prezenční listina'!F79=0,\"\",'Prezenční listina'!D79)","v":1975},{"$f":"IF('Prezenční listina'!F79=0,\"\",'Prezenční listina'!E79)","v":"Brno"},{"$f":"IF('Prezenční listina'!F79=0,\"\",'Prezenční listina'!H79)","v":"G"}]
[{"$f":"IF(C40=\"\",\"\",A39+1)","v":36},{"$f":"IF('Prezenční listina'!F4=0,\"\",'Prezenční listina'!F4)","v":40},{"$f":"IF('Prezenční listina'!F4=0,\"\",'Prezenční listina'!B4)","v":"Blaha"},{"$f":"IF('Prezenční listina'!F4=0,\"\",'Prezenční listina'!C4)","v":"Stanislav"},{"$f":"IF('Prezenční listina'!F4=0,\"\",'Prezenční listina'!D4)","v":1963},{"$f":"IF('Prezenční listina'!F4=0,\"\",'Prezenční listina'!E4)","v":"BK Vísky"},{"$f":"IF('Prezenční listina'!F4=0,\"\",'Prezenční listina'!H4)","v":"C"}]
[37,{"$f":"IF('Prezenční listina'!F80=0,\"\",'Prezenční listina'!F80)","v":41},{"$f":"IF('Prezenční listina'!F80=0,\"\",'Prezenční listina'!B80)","v":"Serban"},{"$f":"IF('Prezenční listina'!F80=0,\"\",'Prezenční listina'!C80)","v":"Baciu"},{"$f":"IF('Prezenční listina'!F80=0,\"\",'Prezenční listina'!D80)","v":1980},{"$f":"IF('Prezenční listina'!F80=0,\"\",'Prezenční listina'!E80)","v":"Brno"},{"$f":"IF('Prezenční listina'!F80=0,\"\",'Prezenční listina'!H80)","v":"A"}]
[38,{"$f":"IF('Prezenční listina'!F3=0,\"\",'Prezenční listina'!F3)","v":42},{"$f":"IF('Prezenční listina'!F3=0,\"\",'Prezenční listina'!B3)","v":"Blaha"},{"$f":"IF('Prezenční listina'!F3=0,\"\",'Prezenční listina'!C3)","v":"Rostislav"},{"$f":"IF('Prezenční listina'!F3=0,\"\",'Prezenční listina'!D3)","v":1989},{"$f":"IF('Prezenční listina'!F3=0,\"\",'Prezenční listina'!E3)","v":"BK Vísky"},{"$f":"IF('Prezenční listina'!F3=0,\"\",'Prezenční listina'!H3)","v":"A"}]
[39,{"$f":"IF('Prezenční listina'!F22=0,\"\",'Prezenční listina'!F22)","v":43},{"$f":"IF('Prezenční listina'!F22=0,\"\",'Prezenční listina'!B22)","v":"Komárková"},{"$f":"IF('Prezenční listina'!F22=0,\"\",'Prezenční listina'!C22)","v":"Zdeňka"},{"$f":"IF('Prezenční listina'!F22=0,\"\",'Prezenční listina'!D22)","v":1974},{"$f":"IF('Prezenční listina'!F22=0,\"\",'Prezenční listina'!E22)","v":"SDH Bolešín"},{"$f":"IF('Prezenční listina'!F22=0,\"\",'Prezenční listina'!H22)","v":"G"}]
[40,{"$f":"IF('Prezenční listina'!F81=0,\"\",'Prezenční listina'!F81)","v":44},{"$f":"IF('Prezenční listina'!F81=0,\"\",'Prezenční listina'!B81)","v":"Ónodi"},{"$f":"IF('Prezenční listina'!F81=0,\"\",'Prezenční listina'!C81)","v":"Otto"},{"$f":"IF('Prezenční listina'!F81=0,\"\",'Prezenční listina'!D81)","v":1974},{"$f":"IF('Prezenční listina'!F81=0,\"\",'Prezenční listina'!E81)","v":"Brno"},{"$f":"IF('Prezenční listina'!F81=0,\"\",'Prezenční listina'!H81)","v":"B"}]
[41,{"$f":"IF('Prezenční listina'!F18=0,\"\",'Prezenční listina'!F18)","v":45},{"$f":"IF('Prezenční listina'!F18=0,\"\",'Prezenční listina'!B18)","v":"Kaše"},{"$f":"IF('Prezenční listina'!F18=0,\"\",'Prezenční listina'!C18)","v":"Jaroslav"},{"$f":"IF('Prezenční listina'!F18=0,\"\",'Prezenční listina'!D18)","v":1953},{"$f":"IF('Prezenční listina'!F18=0,\"\",'Prezenční listina'!E18)","v":"Club běžeckých outsiderů"},{"$f":"IF('Prezenční listina'!F18=0,\"\",'Prezenční listina'!H18)","v":"D"}]
[42,{"$f":"IF('Prezenční listina'!F6=0,\"\",'Prezenční listina'!F6)","v":46},{"$f":"IF('Prezenční listina'!F6=0,\"\",'Prezenční listina'!B6)","v":"Brabenec"},{"$f":"IF('Prezenční listina'!F6=0,\"\",'Prezenční listina'!C6)","v":"Miroslav"},{"$f":"IF('Prezenční listina'!F6=0,\"\",'Prezenční listina'!D6)","v":1959},{"$f":"IF('Prezenční listina'!F6=0,\"\",'Prezenční listina'!E6)","v":"Žďár nad Sázavou"},{"$f":"IF('Prezenční listina'!F6=0,\"\",'Prezenční listina'!H6)","v":"C"}]
[43,{"$f":"IF('Prezenční listina'!F34=0,\"\",'Prezenční listina'!F34)","v":47},{"$f":"IF('Prezenční listina'!F34=0,\"\",'Prezenční listina'!B34)","v":"Kupka"},{"$f":"IF('Prezenční listina'!F34=0,\"\",'Prezenční listina'!C34)","v":"Pavel"},{"$f":"IF('Prezenční listina'!F34=0,\"\",'Prezenční listina'!D34)","v":1975},{"$f":"IF('Prezenční listina'!F34=0,\"\",'Prezenční listina'!E34)","v":"Lukovany"},{"$f":"IF('Prezenční listina'!F34=0,\"\",'Prezenční listina'!H34)","v":"A"}]
[44,{"$f":"IF('Prezenční listina'!F82=0,\"\",'Prezenční listina'!F82)","v":48},{"$f":"IF('Prezenční listina'!F82=0,\"\",'Prezenční listina'!B82)","v":"Kubík"},{"$f":"IF('Prezenční listina'!F82=0,\"\",'Prezenční listina'!C82)","v":"Oldřich"},{"$f":"IF('Prezenční listina'!F82=0,\"\",'Prezenční listina'!D82)","v":1981},{"$f":"IF('Prezenční listina'!F82=0,\"\",'Prezenční listina'!E82)","v":"TJ Jiskra Vír"},{"$f":"IF('Prezenční listina'!F82=0,\"\",'Prezenční listina'!H82)","v":"A"}]
[45,{"$f":"IF('Prezenční listina'!F50=0,\"\",'Prezenční listina'!F50)","v":49},{"$f":"IF('Prezenční listina'!F50=0,\"\",'Prezenční listina'!B50)","v":"Rerych"},{"$f":"IF('Prezenční listina'!F50=0,\"\",'Prezenční listina'!C50)","v":"Jiří"},{"$f":"IF('Prezenční listina'!F50=0,\"\",'Prezenční listina'!D50)","v":1962},{"$f":"IF('Prezenční listina'!F50=0,\"\",'Prezenční listina'!E50)","v":"AC Moravská Slávia Brno"},{"$f":"IF('Prezenční listina'!F50=0,\"\",'Prezenční listina'!H50)","v":"C"}]
[46,{"$f":"IF('Prezenční listina'!F43=0,\"\",'Prezenční listina'!F43)","v":50},{"$f":"IF('Prezenční listina'!F43=0,\"\",'Prezenční listina'!B43)","v":"Ožana"},{"$f":"IF('Prezenční listina'!F43=0,\"\",'Prezenční listina'!C43)","v":"Václav"},{"$f":"IF('Prezenční listina'!F43=0,\"\",'Prezenční listina'!D43)","v":1964},{"$f":"IF('Prezenční listina'!F43=0,\"\",'Prezenční listina'!E43)","v":"TJ Nové Město na Moravě"},{"$f":"IF('Prezenční listina'!F43=0,\"\",'Prezenční listina'!H43)","v":"C"}]
[47,{"$f":"IF('Prezenční listina'!F83=0,\"\",'Prezenční listina'!F83)","v":51},{"$f":"IF('Prezenční listina'!F83=0,\"\",'Prezenční listina'!B83)","v":"Macháček"},{"$f":"IF('Prezenční listina'!F83=0,\"\",'Prezenční listina'!C83)","v":"Martin"},{"$f":"IF('Prezenční listina'!F83=0,\"\",'Prezenční listina'!D83)","v":1955},{"$f":"IF('Prezenční listina'!F83=0,\"\",'Prezenční listina'!E83)","v":"Javůrek"},{"$f":"IF('Prezenční listina'!F83=0,\"\",'Prezenční listina'!H83)","v":"C"}]
[48,{"$f":"IF('Prezenční listina'!F65=0,\"\",'Prezenční listina'!F65)","v":53},{"$f":"IF('Prezenční listina'!F65=0,\"\",'Prezenční listina'!B65)","v":"Alman"},{"$f":"IF('Prezenční listina'!F65=0,\"\",'Prezenční listina'!C65)","v":"Dušan"},{"$f":"IF('Prezenční listina'!F65=0,\"\",'Prezenční listina'!D65)","v":1967},{"$f":"IF('Prezenční listina'!F65=0,\"\",'Prezenční listina'!E65)","v":"Babice"},{"$f":"IF('Prezenční listina'!F65=0,\"\",'Prezenční listina'!H65)","v":"B"}]
[49,{"$f":"IF('Prezenční listina'!F13=0,\"\",'Prezenční listina'!F13)","v":54},{"$f":"IF('Prezenční listina'!F13=0,\"\",'Prezenční listina'!B13)","v":"Havránek"},{"$f":"IF('Prezenční listina'!F13=0,\"\",'Prezenční listina'!C13)","v":"Jan"},{"$f":"IF('Prezenční listina'!F13=0,\"\",'Prezenční listina'!D13)","v":1977},{"$f":"IF('Prezenční listina'!F13=0,\"\",'Prezenční listina'!E13)","v":"Brno"},{"$f":"IF('Prezenční listina'!F13=0,\"\",'Prezenční listina'!H13)","v":"A"}]
[50,{"$f":"IF('Prezenční listina'!F5=0,\"\",'Prezenční listina'!F5)","v":55},{"$f":"IF('Prezenční listina'!F5=0,\"\",'Prezenční listina'!B5)","v":"Bódiová"},{"$f":"IF('Prezenční listina'!F5=0,\"\",'Prezenční listina'!C5)","v":"Adéla"},{"$f":"IF('Prezenční listina'!F5=0,\"\",'Prezenční listina'!D5)","v":1976},{"$f":"IF('Prezenční listina'!F5=0,\"\",'Prezenční listina'!E5)","v":"Sporty.cz Brno"},{"$f":"IF('Prezenční listina'!F5=0,\"\",'Prezenční listina'!H5)","v":"G"}]
[51,{"$f":"IF('Prezenční listina'!F84=0,\"\",'Prezenční listina'!F84)","v":56},{"$f":"IF('Prezenční listina'!F84=0,\"\",'Prezenční listina'!B84)","v":"Janů"},{"$f":"IF('Prezenční listina'!F84=0,\"\",'Prezenční listina'!C84)","v":"Jan"},{"$f":"IF('Prezenční listina'!F84=0,\"\",'Prezenční listina'!D84)","v":1993},{"$f":"IF('Prezenční listina'!F84=0,\"\",'Prezenční listina'!E84)","v":"Hvězda SKP Pardubice"},{"$f":"IF('Prezenční listina'!F84=0,\"\",'Prezenční listina'!H84)","v":"A"}]
[52,{"$f":"IF('Prezenční listina'!F85=0,\"\",'Prezenční listina'!F85)","v":57},{"$f":"IF('Prezenční listina'!F85=0,\"\",'Prezenční listina'!B85)","v":"Vacula"},{"$f":"IF('Prezenční listina'!F85=0,\"\",'Prezenční listina'!C85)","v":"Ondřej"},{"$f":"IF('Prezenční listina'!F85=0,\"\",'Prezenční listina'!D85)","v":1981},{"$f":"IF('Prezenční listina'!F85=0,\"\",'Prezenční listina'!E85)","v":"Medlánky"},{"$f":"IF('Prezenční listina'!F85=0,\"\",'Prezenční listina'!H85)","v":"A"}]
[53,{"$f":"IF('Prezenční listina'!F53=0,\"\",'Prezenční listina'!F53)","v":58},{"$f":"IF('Prezenční listina'!F53=0,\"\",'Prezenční listina'!B53)","v":"Sedlák"},{"$f":"IF('Prezenční listina'!F53=0,\"\",'Prezenční listina'!C53)","v":"Pavel"},{"$f":"IF('Prezenční listina'!F53=0,\"\",'Prezenční listina'!D53)","v":1971},{"$f":"IF('Prezenční listina'!F53=0,\"\",'Prezenční listina'!E53)","v":"Slatiňany"},{"$f":"IF('Prezenční listina'!F53=0,\"\",'Prezenční listina'!H53)","v":"B"}]
[54,{"$f":"IF('Prezenční listina'!F86=0,\"\",'Prezenční listina'!F86)","v":59},{"$f":"IF('Prezenční listina'!F86=0,\"\",'Prezenční listina'!B86)","v":"Poneš"},{"$f":"IF('Prezenční listina'!F86=0,\"\",'Prezenční listina'!C86)","v":"Pavel"},{"$f":"IF('Prezenční listina'!F86=0,\"\",'Prezenční listina'!D86)","v":1978},{"$f":"IF('Prezenční listina'!F86=0,\"\",'Prezenční listina'!E86)","v":"TK Sokoli"},{"$f":"IF('Prezenční listina'!F86=0,\"\",'Prezenční listina'!H86)","v":"A"}]
[55,{"$f":"IF('Prezenční listina'!F87=0,\"\",'Prezenční listina'!F87)","v":60},{"$f":"IF('Prezenční listina'!F87=0,\"\",'Prezenční listina'!B87)","v":"Borek"},{"$f":"IF('Prezenční listina'!F87=0,\"\",'Prezenční listina'!C87)","v":"Aleš"},{"$f":"IF('Prezenční listina'!F87=0,\"\",'Prezenční listina'!D87)","v":1977},{"$f":"IF('Prezenční listina'!F87=0,\"\",'Prezenční listina'!E87)","v":"VSK UNI BRNO"},{"$f":"IF('Prezenční listina'!F87=0,\"\",'Prezenční listina'!H87)","v":"A"}]
[56,{"$f":"IF('Prezenční listina'!F10=0,\"\",'Prezenční listina'!F10)","v":61},{"$f":"IF('Prezenční listina'!F10=0,\"\",'Prezenční listina'!B10)","v":"Fučík"},{"$f":"IF('Prezenční listina'!F10=0,\"\",'Prezenční listina'!C10)","v":"Jaroslav"},{"$f":"IF('Prezenční listina'!F10=0,\"\",'Prezenční listina'!D10)","v":1974},{"$f":"IF('Prezenční listina'!F10=0,\"\",'Prezenční listina'!E10)","v":"Prosetín"},{"$f":"IF('Prezenční listina'!F10=0,\"\",'Prezenční listina'!H10)","v":"B"}]
[57,{"$f":"IF('Prezenční listina'!F88=0,\"\",'Prezenční listina'!F88)","v":62},{"$f":"IF('Prezenční listina'!F88=0,\"\",'Prezenční listina'!B88)","v":"Horák"},{"$f":"IF('Prezenční listina'!F88=0,\"\",'Prezenční listina'!C88)","v":"Pavel"},{"$f":"IF('Prezenční listina'!F88=0,\"\",'Prezenční listina'!D88)","v":1962},{"$f":"IF('Prezenční listina'!F88=0,\"\",'Prezenční listina'!E88)","v":"Brno"},{"$f":"IF('Prezenční listina'!F88=0,\"\",'Prezenční listina'!H88)","v":"C"}]
[58,{"$f":"IF('Prezenční listina'!F89=0,\"\",'Prezenční listina'!F89)","v":63},{"$f":"IF('Prezenční listina'!F89=0,\"\",'Prezenční listina'!B89)","v":"Raclavský"},{"$f":"IF('Prezenční listina'!F89=0,\"\",'Prezenční listina'!C89)","v":"Vlastimil"},{"$f":"IF('Prezenční listina'!F89=0,\"\",'Prezenční listina'!D89)","v":1955},{"$f":"IF('Prezenční listina'!F89=0,\"\",'Prezenční listina'!E89)","v":"Liga 100 Olomouc"},{"$f":"IF('Prezenční listina'!F89=0,\"\",'Prezenční listina'!H89)","v":"C"}]
[59,{"$f":"IF('Prezenční listina'!F90=0,\"\",'Prezenční listina'!F90)","v":64},{"$f":"IF('Prezenční listina'!F90=0,\"\",'Prezenční listina'!B90)","v":"Krčková"},{"$f":"IF('Prezenční listina'!F90=0,\"\",'Prezenční listina'!C90)","v":"Šárka"},{"$f":"IF('Prezenční listina'!F90=0,\"\",'Prezenční listina'!D90)","v":1988},{"$f":"IF('Prezenční listina'!F90=0,\"\",'Prezenční listina'!E90)","v":"Liga 100 Olomouc"},{"$f":"IF('Prezenční listina'!F90=0,\"\",'Prezenční listina'!H90)","v":"F"}]
[60,{"$f":"IF('Prezenční listina'!F49=0,\"\",'Prezenční listina'!F49)","v":66},{"$f":"IF('Prezenční listina'!F49=0,\"\",'Prezenční listina'!B49)","v":"Ráček Pelikánová"},{"$f":"IF('Prezenční listina'!F49=0,\"\",'Prezenční listina'!C49)","v":"Dáša"},{"$f":"IF('Prezenční listina'!F49=0,\"\",'Prezenční listina'!D49)","v":1976},{"$f":"IF('Prezenční listina'!F49=0,\"\",'Prezenční listina'!E49)","v":"Sporty.cz Křoví"},{"$f":"IF('Prezenční listina'!F49=0,\"\",'Prezenční listina'!H49)","v":"G"}]
[61,{"$f":"IF('Prezenční listina'!F35=0,\"\",'Prezenční listina'!F35)","v":67},{"$f":"IF('Prezenční listina'!F35=0,\"\",'Prezenční listina'!B35)","v":"Ledvina"},{"$f":"IF('Prezenční listina'!F35=0,\"\",'Prezenční listina'!C35)","v":"Luděk"},{"$f":"IF('Prezenční listina'!F35=0,\"\",'Prezenční listina'!D35)","v":1976},{"$f":"IF('Prezenční listina'!F35=0,\"\",'Prezenční listina'!E35)","v":"Bílovice nad Svitavou"},{"$f":"IF('Prezenční listina'!F35=0,\"\",'Prezenční listina'!H35)","v":"A"}]
[62,{"$f":"IF('Prezenční listina'!F42=0,\"\",'Prezenční listina'!F42)","v":69},{"$f":"IF('Prezenční listina'!F42=0,\"\",'Prezenční listina'!B42)","v":"Ondráček"},{"$f":"IF('Prezenční listina'!F42=0,\"\",'Prezenční listina'!C42)","v":"Tomáš"},{"$f":"IF('Prezenční listina'!F42=0,\"\",'Prezenční listina'!D42)","v":1977},{"$f":"IF('Prezenční listina'!F42=0,\"\",'Prezenční listina'!E42)","v":"Sporty.cz Brno"},{"$f":"IF('Prezenční listina'!F42=0,\"\",'Prezenční listina'!H42)","v":"A"}]
[63,{"$f":"IF('Prezenční listina'!F75=0,\"\",'Prezenční listina'!F75)","v":70},{"$f":"IF('Prezenční listina'!F75=0,\"\",'Prezenční listina'!B75)","v":"Šperka"},{"$f":"IF('Prezenční listina'!F75=0,\"\",'Prezenční listina'!C75)","v":"Oldřich"},{"$f":"IF('Prezenční listina'!F75=0,\"\",'Prezenční listina'!D75)","v":1956},{"$f":"IF('Prezenční listina'!F75=0,\"\",'Prezenční listina'!E75)","v":"Jedovnice"},{"$f":"IF('Prezenční listina'!F75=0,\"\",'Prezenční listina'!H75)","v":"C"}]
[64,{"$f":"IF('Prezenční listina'!F70=0,\"\",'Prezenční listina'!F70)","v":72},{"$f":"IF('Prezenční listina'!F70=0,\"\",'Prezenční listina'!B70)","v":"Krejsová"},{"$f":"IF('Prezenční listina'!F70=0,\"\",'Prezenční listina'!C70)","v":"Petra"},{"$f":"IF('Prezenční listina'!F70=0,\"\",'Prezenční listina'!D70)","v":1979},{"$f":"IF('Prezenční listina'!F70=0,\"\",'Prezenční listina'!E70)","v":"Boskovice"},{"$f":"IF('Prezenční listina'!F70=0,\"\",'Prezenční listina'!H70)","v":"G"}]
[65,{"$f":"IF('Prezenční listina'!F60=0,\"\",'Prezenční listina'!F60)","v":73},{"$f":"IF('Prezenční listina'!F60=0,\"\",'Prezenční listina'!B60)","v":"Šustrová"},{"$f":"IF('Prezenční listina'!F60=0,\"\",'Prezenční listina'!C60)","v":"Kateřina"},{"$f":"IF('Prezenční listina'!F60=0,\"\",'Prezenční listina'!D60)","v":1979},{"$f":"IF('Prezenční listina'!F60=0,\"\",'Prezenční listina'!E60)","v":"Liga 100 Olomouc"},{"$f":"IF('Prezenční listina'!F60=0,\"\",'Prezenční listina'!H60)","v":"G"}]
[66,{"$f":"IF('Prezenční listina'!F91=0,\"\",'Prezenční listina'!F91)","v":74},{"$f":"IF('Prezenční listina'!F91=0,\"\",'Prezenční listina'!B91)","v":"Stráník"},{"$f":"IF('Prezenční listina'!F91=0,\"\",'Prezenční listina'!C91)","v":"Aleš"},{"$f":"IF('Prezenční listina'!F91=0,\"\",'Prezenční listina'!D91)","v":1950},{"$f":"IF('Prezenční listina'!F91=0,\"\",'Prezenční listina'!E91)","v":"Blansko "},{"$f":"IF('Prezenční listina'!F91=0,\"\",'Prezenční listina'!H91)","v":"D"}]
[67,{"$f":"IF('Prezenční listina'!F92=0,\"\",'Prezenční listina'!F92)","v":75},{"$f":"IF('Prezenční listina'!F92=0,\"\",'Prezenční listina'!B92)","v":"Boháč"},{"$f":"IF('Prezenční listina'!F92=0,\"\",'Prezenční listina'!C92)","v":"Jiří"},{"$f":"IF('Prezenční listina'!F92=0,\"\",'Prezenční listina'!D92)","v":1954},{"$f":"IF('Prezenční listina'!F92=0,\"\",'Prezenční listina'!E92)","v":"Brno"},{"$f":"IF('Prezenční listina'!F92=0,\"\",'Prezenční listina'!H92)","v":"D"}]
[68,{"$f":"IF('Prezenční listina'!F57=0,\"\",'Prezenční listina'!F57)","v":76},{"$f":"IF('Prezenční listina'!F57=0,\"\",'Prezenční listina'!B57)","v":"Šerák"},{"$f":"IF('Prezenční listina'!F57=0,\"\",'Prezenční listina'!C57)","v":"Martin"},{"$f":"IF('Prezenční listina'!F57=0,\"\",'Prezenční listina'!D57)","v":1978},{"$f":"IF('Prezenční listina'!F57=0,\"\",'Prezenční listina'!E57)","v":"Sokol Bílovice nad Svitavou"},{"$f":"IF('Prezenční listina'!F57=0,\"\",'Prezenční listina'!H57)","v":"A"}]
[69,{"$f":"IF('Prezenční listina'!F93=0,\"\",'Prezenční listina'!F93)","v":77},{"$f":"IF('Prezenční listina'!F93=0,\"\",'Prezenční listina'!B93)","v":"Orálek"},{"$f":"IF('Prezenční listina'!F93=0,\"\",'Prezenční listina'!C93)","v":"Daniel"},{"$f":"IF('Prezenční listina'!F93=0,\"\",'Prezenční listina'!D93)","v":1970},{"$f":"IF('Prezenční listina'!F93=0,\"\",'Prezenční listina'!E93)","v":"AC Moravská Slávia - Adidas"},{"$f":"IF('Prezenční listina'!F93=0,\"\",'Prezenční listina'!H93)","v":"B"}]
[{"$f":"IF(C74=\"\",\"\",A73+1)","v":70},{"$f":"IF('Prezenční listina'!F72=0,\"\",'Prezenční listina'!F72)","v":79},{"$f":"IF('Prezenční listina'!F72=0,\"\",'Prezenční listina'!B72)","v":"Sedláček"},{"$f":"IF('Prezenční listina'!F72=0,\"\",'Prezenční listina'!C72)","v":"Svatopluk"},{"$f":"IF('Prezenční listina'!F72=0,\"\",'Prezenční listina'!D72)","v":1957},{"$f":"IF('Prezenční listina'!F72=0,\"\",'Prezenční listina'!E72)","v":"AC Moravská Slávia Brno"},{"$f":"IF('Prezenční listina'!F72=0,\"\",'Prezenční listina'!H72)","v":"C"}]
[71,{"$f":"IF('Prezenční listina'!F31=0,\"\",'Prezenční listina'!F31)","v":80},{"$f":"IF('Prezenční listina'!F31=0,\"\",'Prezenční listina'!B31)","v":"Krejčová"},{"$f":"IF('Prezenční listina'!F31=0,\"\",'Prezenční listina'!C31)","v":"Magda"},{"$f":"IF('Prezenční listina'!F31=0,\"\",'Prezenční listina'!D31)","v":1980},{"$f":"IF('Prezenční listina'!F31=0,\"\",'Prezenční listina'!E31)","v":"Brno"},{"$f":"IF('Prezenční listina'!F31=0,\"\",'Prezenční listina'!H31)","v":"F"}]
[72,{"$f":"IF('Prezenční listina'!F16=0,\"\",'Prezenční listina'!F16)","v":82},{"$f":"IF('Prezenční listina'!F16=0,\"\",'Prezenční listina'!B16)","v":"Janek"},{"$f":"IF('Prezenční listina'!F16=0,\"\",'Prezenční listina'!C16)","v":"Petr"},{"$f":"IF('Prezenční listina'!F16=0,\"\",'Prezenční listina'!D16)","v":1969},{"$f":"IF('Prezenční listina'!F16=0,\"\",'Prezenční listina'!E16)","v":"Brno"},{"$f":"IF('Prezenční listina'!F16=0,\"\",'Prezenční listina'!H16)","v":"B"}]
[73,{"$f":"IF('Prezenční listina'!F12=0,\"\",'Prezenční listina'!F12)","v":83},{"$f":"IF('Prezenční listina'!F12=0,\"\",'Prezenční listina'!B12)","v":"Glier"},{"$f":"IF('Prezenční listina'!F12=0,\"\",'Prezenční listina'!C12)","v":"Michal"},{"$f":"IF('Prezenční listina'!F12=0,\"\",'Prezenční listina'!D12)","v":1982},{"$f":"IF('Prezenční listina'!F12=0,\"\",'Prezenční listina'!E12)","v":"Moravská Slávia Brno"},{"$f":"IF('Prezenční listina'!F12=0,\"\",'Prezenční listina'!H12)","v":"A"}]
[74,{"$f":"IF('Prezenční listina'!F94=0,\"\",'Prezenční listina'!F94)","v":84},{"$f":"IF('Prezenční listina'!F94=0,\"\",'Prezenční listina'!B94)","v":"Kolková"},{"$f":"IF('Prezenční listina'!F94=0,\"\",'Prezenční listina'!C94)","v":"Lucie"},{"$f":"IF('Prezenční listina'!F94=0,\"\",'Prezenční listina'!D94)","v":1982},{"$f":"IF('Prezenční listina'!F94=0,\"\",'Prezenční listina'!E94)","v":"AC Moravská Slávia Brno"},{"$f":"IF('Prezenční listina'!F94=0,\"\",'Prezenční listina'!H94)","v":"F"}]
[75,{"$f":"IF('Prezenční listina'!F23=0,\"\",'Prezenční listina'!F23)","v":85},{"$f":"IF('Prezenční listina'!F23=0,\"\",'Prezenční listina'!B23)","v":"Konečný"},{"$f":"IF('Prezenční listina'!F23=0,\"\",'Prezenční listina'!C23)","v":"Jaroslav"},{"$f":"IF('Prezenční listina'!F23=0,\"\",'Prezenční listina'!D23)","v":1969},{"$f":"IF('Prezenční listina'!F23=0,\"\",'Prezenční listina'!E23)","v":" Popůvky"},{"$f":"IF('Prezenční listina'!F23=0,\"\",'Prezenční listina'!H23)","v":"B"}]
[76,{"$f":"IF('Prezenční listina'!F44=0,\"\",'Prezenční listina'!F44)","v":86},{"$f":"IF('Prezenční listina'!F44=0,\"\",'Prezenční listina'!B44)","v":"Pavelka"},{"$f":"IF('Prezenční listina'!F44=0,\"\",'Prezenční listina'!C44)","v":"Richard"},{"$f":"IF('Prezenční listina'!F44=0,\"\",'Prezenční listina'!D44)","v":1981},{"$f":"IF('Prezenční listina'!F44=0,\"\",'Prezenční listina'!E44)","v":"Brno"},{"$f":"IF('Prezenční listina'!F44=0,\"\",'Prezenční listina'!H44)","v":"A"}]
[77,{"$f":"IF('Prezenční listina'!F58=0,\"\",'Prezenční listina'!F58)","v":87},{"$f":"IF('Prezenční listina'!F58=0,\"\",'Prezenční listina'!B58)","v":"Šorf"},{"$f":"IF('Prezenční listina'!F58=0,\"\",'Prezenční listina'!C58)","v":"Ivo"},{"$f":"IF('Prezenční listina'!F58=0,\"\",'Prezenční listina'!D58)","v":1975},{"$f":"IF('Prezenční listina'!F58=0,\"\",'Prezenční listina'!E58)","v":"ABND Racing Team Bystřice nad Pernštejnem"},{"$f":"IF('Prezenční listina'!F58=0,\"\",'Prezenční listina'!H58)","v":"A"}]
[78,{"$f":"IF('Prezenční listina'!F95=0,\"\",'Prezenční listina'!F95)","v":89},{"$f":"IF('Prezenční listina'!F95=0,\"\",'Prezenční listina'!B95)","v":"Knotek"},{"$f":"IF('Prezenční listina'!F95=0,\"\",'Prezenční listina'!C95)","v":"David"},{"$f":"IF('Prezenční listina'!F95=0,\"\",'Prezenční listina'!D95)","v":1982},{"$f":"IF('Prezenční listina'!F95=0,\"\",'Prezenční listina'!E95)","v":"Brno"},{"$f":"IF('Prezenční listina'!F95=0,\"\",'Prezenční listina'!H95)","v":"A"}]
[79,{"$f":"IF('Prezenční listina'!F68=0,\"\",'Prezenční listina'!F68)","v":90},{"$f":"IF('Prezenční listina'!F68=0,\"\",'Prezenční listina'!B68)","v":"Kalová"},{"$f":"IF('Prezenční listina'!F68=0,\"\",'Prezenční listina'!C68)","v":"Jana"},{"$f":"IF('Prezenční listina'!F68=0,\"\",'Prezenční listina'!D68)","v":1966},{"$f":"IF('Prezenční listina'!F68=0,\"\",'Prezenční listina'!E68)","v":"Zetor Brno"},{"$f":"IF('Prezenční listina'!F68=0,\"\",'Prezenční listina'!H68)","v":"H"}]
[80,{"$f":"IF('Prezenční listina'!F96=0,\"\",'Prezenční listina'!F96)","v":91},{"$f":"IF('Prezenční listina'!F96=0,\"\",'Prezenční listina'!B96)","v":"Cacek"},{"$f":"IF('Prezenční listina'!F96=0,\"\",'Prezenční listina'!C96)","v":"Josef"},{"$f":"IF('Prezenční listina'!F96=0,\"\",'Prezenční listina'!D96)","v":1978},{"$f":"IF('Prezenční listina'!F96=0,\"\",'Prezenční listina'!E96)","v":"Cáca team Tišnov"},{"$f":"IF('Prezenční listina'!F96=0,\"\",'Prezenční listina'!H96)","v":"A"}]
[81,{"$f":"IF('Prezenční listina'!F74=0,\"\",'Prezenční listina'!F74)","v":92},{"$f":"IF('Prezenční listina'!F74=0,\"\",'Prezenční listina'!B74)","v":"Szabová"},{"$f":"IF('Prezenční listina'!F74=0,\"\",'Prezenční listina'!C74)","v":"Dana"},{"$f":"IF('Prezenční listina'!F74=0,\"\",'Prezenční listina'!D74)","v":1967},{"$f":"IF('Prezenční listina'!F74=0,\"\",'Prezenční listina'!E74)","v":"LRS Vyškov"},{"$f":"IF('Prezenční listina'!F74=0,\"\",'Prezenční listina'!H74)","v":"H"}]
[82,{"$f":"IF('Prezenční listina'!F73=0,\"\",'Prezenční listina'!F73)","v":93},{"$f":"IF('Prezenční listina'!F73=0,\"\",'Prezenční listina'!B73)","v":"Skřivánek"},{"$f":"IF('Prezenční listina'!F73=0,\"\",'Prezenční listina'!C73)","v":"Petr"},{"$f":"IF('Prezenční listina'!F73=0,\"\",'Prezenční listina'!D73)","v":1966},{"$f":"IF('Prezenční listina'!F73=0,\"\",'Prezenční listina'!E73)","v":"LRS Vyškov"},{"$f":"IF('Prezenční listina'!F73=0,\"\",'Prezenční listina'!H73)","v":"B"}]
[83,{"$f":"IF('Prezenční listina'!F97=0,\"\",'Prezenční listina'!F97)","v":94},{"$f":"IF('Prezenční listina'!F97=0,\"\",'Prezenční listina'!B97)","v":"Kunc"},{"$f":"IF('Prezenční listina'!F97=0,\"\",'Prezenční listina'!C97)","v":"Josef"},{"$f":"IF('Prezenční listina'!F97=0,\"\",'Prezenční listina'!D97)","v":1960},{"$f":"IF('Prezenční listina'!F97=0,\"\",'Prezenční listina'!E97)","v":"LRS Vyškov"},{"$f":"IF('Prezenční listina'!F97=0,\"\",'Prezenční listina'!H97)","v":"C"}]
[84,{"$f":"IF('Prezenční listina'!F9=0,\"\",'Prezenční listina'!F9)","v":95},{"$f":"IF('Prezenční listina'!F9=0,\"\",'Prezenční listina'!B9)","v":"Filip"},{"$f":"IF('Prezenční listina'!F9=0,\"\",'Prezenční listina'!C9)","v":"Rostislav"},{"$f":"IF('Prezenční listina'!F9=0,\"\",'Prezenční listina'!D9)","v":1986},{"$f":"IF('Prezenční listina'!F9=0,\"\",'Prezenční listina'!E9)","v":" Horolezecký oddíl Vír"},{"$f":"IF('Prezenční listina'!F9=0,\"\",'Prezenční listina'!H9)","v":"A"}]
[85,{"$f":"IF('Prezenční listina'!F25=0,\"\",'Prezenční listina'!F25)","v":96},{"$f":"IF('Prezenční listina'!F25=0,\"\",'Prezenční listina'!B25)","v":"Koutský"},{"$f":"IF('Prezenční listina'!F25=0,\"\",'Prezenční listina'!C25)","v":"Tomáš"},{"$f":"IF('Prezenční listina'!F25=0,\"\",'Prezenční listina'!D25)","v":1987},{"$f":"IF('Prezenční listina'!F25=0,\"\",'Prezenční listina'!E25)","v":" Horolezecký oddíl Vír"},{"$f":"IF('Prezenční listina'!F25=0,\"\",'Prezenční listina'!H25)","v":"A"}]
[86,{"$f":"IF('Prezenční listina'!F27=0,\"\",'Prezenční listina'!F27)","v":97},{"$f":"IF('Prezenční listina'!F27=0,\"\",'Prezenční listina'!B27)","v":"Krátká"},{"$f":"IF('Prezenční listina'!F27=0,\"\",'Prezenční listina'!C27)","v":"Anna"},{"$f":"IF('Prezenční listina'!F27=0,\"\",'Prezenční listina'!D27)","v":1969},{"$f":"IF('Prezenční listina'!F27=0,\"\",'Prezenční listina'!E27)","v":"Hvězda SKP Pardubice"},{"$f":"IF('Prezenční listina'!F27=0,\"\",'Prezenční listina'!H27)","v":"H"}]
[{"$f":"IF(C91=\"\",\"\",A90+1)","v":87},{"$f":"IF('Prezenční listina'!F98=0,\"\",'Prezenční listina'!F98)","v":98},{"$f":"IF('Prezenční listina'!F98=0,\"\",'Prezenční listina'!B98)","v":"Tyleček"},{"$f":"IF('Prezenční listina'!F98=0,\"\",'Prezenční listina'!C98)","v":"Pavel"},{"$f":"IF('Prezenční listina'!F98=0,\"\",'Prezenční listina'!D98)","v":1973},{"$f":"IF('Prezenční listina'!F98=0,\"\",'Prezenční listina'!E98)","v":"Brno - Jundrov"},{"$f":"IF('Prezenční listina'!F98=0,\"\",'Prezenční listina'!H98)","v":"B"}]
[88,{"$f":"IF('Prezenční listina'!F99=0,\"\",'Prezenční listina'!F99)","v":99},{"$f":"IF('Prezenční listina'!F99=0,\"\",'Prezenční listina'!B99)","v":"Všetečková"},{"$f":"IF('Prezenční listina'!F99=0,\"\",'Prezenční listina'!C99)","v":"Pavla"},{"$f":"IF('Prezenční listina'!F99=0,\"\",'Prezenční listina'!D99)","v":1975},{"$f":"IF('Prezenční listina'!F99=0,\"\",'Prezenční listina'!E99)","v":"MOTOR JOURNAL"},{"$f":"IF('Prezenční listina'!F99=0,\"\",'Prezenční listina'!H99)","v":"G"}]
[89,{"$f":"IF('Prezenční listina'!F41=0,\"\",'Prezenční listina'!F41)","v":100},{"$f":"IF('Prezenční listina'!F41=0,\"\",'Prezenční listina'!B41)","v":"Novotný"},{"$f":"IF('Prezenční listina'!F41=0,\"\",'Prezenční listina'!C41)","v":"Petr"},{"$f":"IF('Prezenční listina'!F41=0,\"\",'Prezenční listina'!D41)","v":1965},{"$f":"IF('Prezenční listina'!F41=0,\"\",'Prezenční listina'!E41)","v":"Kuřim"},{"$f":"IF('Prezenční listina'!F41=0,\"\",'Prezenční listina'!H41)","v":"B"}]
[90,{"$f":"IF('Prezenční listina'!F100=0,\"\",'Prezenční listina'!F100)","v":101},{"$f":"IF('Prezenční listina'!F100=0,\"\",'Prezenční listina'!B100)","v":"Skoták"},{"$f":"IF('Prezenční listina'!F100=0,\"\",'Prezenční listina'!C100)","v":"Jiří"},{"$f":"IF('Prezenční listina'!F100=0,\"\",'Prezenční listina'!D100)","v":1964},{"$f":"IF('Prezenční listina'!F100=0,\"\",'Prezenční listina'!E100)","v":"SC Ráječko"},{"$f":"IF('Prezenční listina'!F100=0,\"\",'Prezenční listina'!H100)","v":"C"}]
[91,{"$f":"IF('Prezenční listina'!F101=0,\"\",'Prezenční listina'!F101)","v":102},{"$f":"IF('Prezenční listina'!F101=0,\"\",'Prezenční listina'!B101)","v":"Konečný"},{"$f":"IF('Prezenční listina'!F101=0,\"\",'Prezenční listina'!C101)","v":"Libor"},{"$f":"IF('Prezenční listina'!F101=0,\"\",'Prezenční listina'!D101)","v":1971},{"$f":"IF('Prezenční listina'!F101=0,\"\",'Prezenční listina'!E101)","v":"Kuřim"},{"$f":"IF('Prezenční listina'!F101=0,\"\",'Prezenční listina'!H101)","v":"B"}]
[92,{"$f":"IF('Prezenční listina'!F17=0,\"\",'Prezenční listina'!F17)","v":103},{"$f":"IF('Prezenční listina'!F17=0,\"\",'Prezenční listina'!B17)","v":"Jaskulka"},{"$f":"IF('Prezenční listina'!F17=0,\"\",'Prezenční listina'!C17)","v":"Martin"},{"$f":"IF('Prezenční listina'!F17=0,\"\",'Prezenční listina'!D17)","v":1968},{"$f":"IF('Prezenční listina'!F17=0,\"\",'Prezenční listina'!E17)","v":"Kuřim"},{"$f":"IF('Prezenční listina'!F17=0,\"\",'Prezenční listina'!H17)","v":"B"}]
["",{"$f":"IF('Prezenční listina'!F24=0,\"\",'Prezenční listina'!F24)","v":""},{"$f":"IF('Prezenční listina'!F24=0,\"\",'Prezenční listina'!B24)","v":""},{"$f":"IF('Prezenční listina'!F24=0,\"\",'Prezenční listina'!C24)","v":""},{"$f":"IF('Prezenční listina'!F24=0,\"\",'Prezenční listina'!D24)","v":""},{"$f":"IF('Prezenční listina'!F24=0,\"\",'Prezenční listina'!E24)","v":""},{"$f":"IF('Prezenční listina'!F24=0,\"\",'Prezenční listina'!H24)","v":""}]
["",{"$f":"IF('Prezenční listina'!F11=0,\"\",'Prezenční listina'!F11)","v":""},{"$f":"IF('Prezenční listina'!F11=0,\"\",'Prezenční listina'!B11)","v":""},{"$f":"IF('Prezenční listina'!F11=0,\"\",'Prezenční listina'!C11)","v":""},{"$f":"IF('Prezenční listina'!F11=0,\"\",'Prezenční listina'!D11)","v":""},{"$f":"IF('Prezenční listina'!F11=0,\"\",'Prezenční listina'!E11)","v":""},{"$f":"IF('Prezenční listina'!F11=0,\"\",'Prezenční listina'!H11)","v":""}]
["",{"$f":"IF('Prezenční listina'!F26=0,\"\",'Prezenční listina'!F26)","v":""},{"$f":"IF('Prezenční listina'!F26=0,\"\",'Prezenční listina'!B26)","v":""},{"$f":"IF('Prezenční listina'!F26=0,\"\",'Prezenční listina'!C26)","v":""},{"$f":"IF('Prezenční listina'!F26=0,\"\",'Prezenční listina'!D26)","v":""},{"$f":"IF('Prezenční listina'!F26=0,\"\",'Prezenční listina'!E26)","v":""},{"$f":"IF('Prezenční listina'!F26=0,\"\",'Prezenční listina'!H26)","v":""}]
["",{"$f":"IF('Prezenční listina'!F28=0,\"\",'Prezenční listina'!F28)","v":""},{"$f":"IF('Prezenční listina'!F28=0,\"\",'Prezenční listina'!B28)","v":""},{"$f":"IF('Prezenční listina'!F28=0,\"\",'Prezenční listina'!C28)","v":""},{"$f":"IF('Prezenční listina'!F28=0,\"\",'Prezenční listina'!D28)","v":""},{"$f":"IF('Prezenční listina'!F28=0,\"\",'Prezenční listina'!E28)","v":""},{"$f":"IF('Prezenční listina'!F28=0,\"\",'Prezenční listina'!H28)","v":""}]
["",{"$f":"IF('Prezenční listina'!F39=0,\"\",'Prezenční listina'!F39)","v":""},{"$f":"IF('Prezenční listina'!F39=0,\"\",'Prezenční listina'!B39)","v":""},{"$f":"IF('Prezenční listina'!F39=0,\"\",'Prezenční listina'!C39)","v":""},{"$f":"IF('Prezenční listina'!F39=0,\"\",'Prezenční listina'!D39)","v":""},{"$f":"IF('Prezenční listina'!F39=0,\"\",'Prezenční listina'!E39)","v":""},{"$f":"IF('Prezenční listina'!F39=0,\"\",'Prezenční listina'!H39)","v":""}]
["",{"$f":"IF('Prezenční listina'!F45=0,\"\",'Prezenční listina'!F45)","v":""},{"$f":"IF('Prezenční listina'!F45=0,\"\",'Prezenční listina'!B45)","v":""},{"$f":"IF('Prezenční listina'!F45=0,\"\",'Prezenční listina'!C45)","v":""},{"$f":"IF('Prezenční listina'!F45=0,\"\",'Prezenční listina'!D45)","v":""},{"$f":"IF('Prezenční listina'!F45=0,\"\",'Prezenční listina'!E45)","v":""},{"$f":"IF('Prezenční listina'!F45=0,\"\",'Prezenční listina'!H45)","v":""}]
["",{"$f":"IF('Prezenční listina'!F71=0,\"\",'Prezenční listina'!F71)","v":""},{"$f":"IF('Prezenční listina'!F71=0,\"\",'Prezenční listina'!B71)","v":""},{"$f":"IF('Prezenční listina'!F71=0,\"\",'Prezenční listina'!C71)","v":""},{"$f":"IF('Prezenční listina'!F71=0,\"\",'Prezenční listina'!D71)","v":""},{"$f":"IF('Prezenční listina'!F71=0,\"\",'Prezenční listina'!E71)","v":""},{"$f":"IF('Prezenční listina'!F71=0,\"\",'Prezenční listina'!H71)","v":""}]
["",{"$f":"IF('Prezenční listina'!F102=0,\"\",'Prezenční listina'!F102)","v":""},{"$f":"IF('Prezenční listina'!F102=0,\"\",'Prezenční listina'!B102)","v":""},{"$f":"IF('Prezenční listina'!F102=0,\"\",'Prezenční listina'!C102)","v":""},{"$f":"IF('Prezenční listina'!F102=0,\"\",'Prezenční listina'!D102)","v":""},{"$f":"IF('Prezenční listina'!F102=0,\"\",'Prezenční listina'!E102)","v":""},{"$f":"IF('Prezenční listina'!F102=0,\"\",'Prezenční listina'!H102)","v":""}]
["",{"$f":"IF('Prezenční listina'!F103=0,\"\",'Prezenční listina'!F103)","v":""},{"$f":"IF('Prezenční listina'!F103=0,\"\",'Prezenční listina'!B103)","v":""},{"$f":"IF('Prezenční listina'!F103=0,\"\",'Prezenční listina'!C103)","v":""},{"$f":"IF('Prezenční listina'!F103=0,\"\",'Prezenční listina'!D103)","v":""},{"$f":"IF('Prezenční listina'!F103=0,\"\",'Prezenční listina'!E103)","v":""},{"$f":"IF('Prezenční listina'!F103=0,\"\",'Prezenční listina'!H103)","v":""}]
["",{"$f":"IF('Prezenční listina'!F104=0,\"\",'Prezenční listina'!F104)","v":""},{"$f":"IF('Prezenční listina'!F104=0,\"\",'Prezenční listina'!B104)","v":""},{"$f":"IF('Prezenční listina'!F104=0,\"\",'Prezenční listina'!C104)","v":""},{"$f":"IF('Prezenční listina'!F104=0,\"\",'Prezenční listina'!D104)","v":""},{"$f":"IF('Prezenční listina'!F104=0,\"\",'Prezenční listina'!E104)","v":""},{"$f":"IF('Prezenční listina'!F104=0,\"\",'Prezenční listina'!H104)","v":""}]
["",{"$f":"IF('Prezenční listina'!F105=0,\"\",'Prezenční listina'!F105)","v":""},{"$f":"IF('Prezenční listina'!F105=0,\"\",'Prezenční listina'!B105)","v":""},{"$f":"IF('Prezenční listina'!F105=0,\"\",'Prezenční listina'!C105)","v":""},{"$f":"IF('Prezenční listina'!F105=0,\"\",'Prezenční listina'!D105)","v":""},{"$f":"IF('Prezenční listina'!F105=0,\"\",'Prezenční listina'!E105)","v":""},{"$f":"IF('Prezenční listina'!F105=0,\"\",'Prezenční listina'!H105)","v":""}]
["",{"$f":"IF('Prezenční listina'!F106=0,\"\",'Prezenční listina'!F106)","v":""},{"$f":"IF('Prezenční listina'!F106=0,\"\",'Prezenční listina'!B106)","v":""},{"$f":"IF('Prezenční listina'!F106=0,\"\",'Prezenční listina'!C106)","v":""},{"$f":"IF('Prezenční listina'!F106=0,\"\",'Prezenční listina'!D106)","v":""},{"$f":"IF('Prezenční listina'!F106=0,\"\",'Prezenční listina'!E106)","v":""},{"$f":"IF('Prezenční listina'!F106=0,\"\",'Prezenční listina'!H106)","v":""}]
["",{"$f":"IF('Prezenční listina'!F107=0,\"\",'Prezenční listina'!F107)","v":""},{"$f":"IF('Prezenční listina'!F107=0,\"\",'Prezenční listina'!B107)","v":""},{"$f":"IF('Prezenční listina'!F107=0,\"\",'Prezenční listina'!C107)","v":""},{"$f":"IF('Prezenční listina'!F107=0,\"\",'Prezenční listina'!D107)","v":""},{"$f":"IF('Prezenční listina'!F107=0,\"\",'Prezenční listina'!E107)","v":""},{"$f":"IF('Prezenční listina'!F107=0,\"\",'Prezenční listina'!H107)","v":""}]
["",{"$f":"IF('Prezenční listina'!F108=0,\"\",'Prezenční listina'!F108)","v":""},{"$f":"IF('Prezenční listina'!F108=0,\"\",'Prezenční listina'!B108)","v":""},{"$f":"IF('Prezenční listina'!F108=0,\"\",'Prezenční listina'!C108)","v":""},{"$f":"IF('Prezenční listina'!F108=0,\"\",'Prezenční listina'!D108)","v":""},{"$f":"IF('Prezenční listina'!F108=0,\"\",'Prezenční listina'!E108)","v":""},{"$f":"IF('Prezenční listina'!F108=0,\"\",'Prezenční listina'!H108)","v":""}]
["",{"$f":"IF('Prezenční listina'!F109=0,\"\",'Prezenční listina'!F109)","v":""},{"$f":"IF('Prezenční listina'!F109=0,\"\",'Prezenční listina'!B109)","v":""},{"$f":"IF('Prezenční listina'!F109=0,\"\",'Prezenční listina'!C109)","v":""},{"$f":"IF('Prezenční listina'!F109=0,\"\",'Prezenční listina'!D109)","v":""},{"$f":"IF('Prezenční listina'!F109=0,\"\",'Prezenční listina'!E109)","v":""},{"$f":"IF('Prezenční listina'!F109=0,\"\",'Prezenční listina'!H109)","v":""}]
["",{"$f":"IF('Prezenční listina'!F110=0,\"\",'Prezenční listina'!F110)","v":""},{"$f":"IF('Prezenční listina'!F110=0,\"\",'Prezenční listina'!B110)","v":""},{"$f":"IF('Prezenční listina'!F110=0,\"\",'Prezenční listina'!C110)","v":""},{"$f":"IF('Prezenční listina'!F110=0,\"\",'Prezenční listina'!D110)","v":""},{"$f":"IF('Prezenční listina'!F110=0,\"\",'Prezenční listina'!E110)","v":""},{"$f":"IF('Prezenční listina'!F110=0,\"\",'Prezenční listina'!H110)","v":""}]
["",{"$f":"IF('Prezenční listina'!F111=0,\"\",'Prezenční listina'!F111)","v":""},{"$f":"IF('Prezenční listina'!F111=0,\"\",'Prezenční listina'!B111)","v":""},{"$f":"IF('Prezenční listina'!F111=0,\"\",'Prezenční listina'!C111)","v":""},{"$f":"IF('Prezenční listina'!F111=0,\"\",'Prezenční listina'!D111)","v":""},{"$f":"IF('Prezenční listina'!F111=0,\"\",'Prezenční listina'!E111)","v":""},{"$f":"IF('Prezenční listina'!F111=0,\"\",'Prezenční listina'!H111)","v":""}]
["",{"$f":"IF('Prezenční listina'!F112=0,\"\",'Prezenční listina'!F112)","v":""},{"$f":"IF('Prezenční listina'!F112=0,\"\",'Prezenční listina'!B112)","v":""},{"$f":"IF('Prezenční listina'!F112=0,\"\",'Prezenční listina'!C112)","v":""},{"$f":"IF('Prezenční listina'!F112=0,\"\",'Prezenční listina'!D112)","v":""},{"$f":"IF('Prezenční listina'!F112=0,\"\",'Prezenční listina'!E112)","v":""},{"$f":"IF('Prezenční listina'!F112=0,\"\",'Prezenční listina'!H112)","v":""}]
["",{"$f":"IF('Prezenční listina'!F113=0,\"\",'Prezenční listina'!F113)","v":""},{"$f":"IF('Prezenční listina'!F113=0,\"\",'Prezenční listina'!B113)","v":""},{"$f":"IF('Prezenční listina'!F113=0,\"\",'Prezenční listina'!C113)","v":""},{"$f":"IF('Prezenční listina'!F113=0,\"\",'Prezenční listina'!D113)","v":""},{"$f":"IF('Prezenční listina'!F113=0,\"\",'Prezenční listina'!E113)","v":""},{"$f":"IF('Prezenční listina'!F113=0,\"\",'Prezenční listina'!H113)","v":""}]
["",{"$f":"IF('Prezenční listina'!F114=0,\"\",'Prezenční listina'!F114)","v":""},{"$f":"IF('Prezenční listina'!F114=0,\"\",'Prezenční listina'!B114)","v":""},{"$f":"IF('Prezenční listina'!F114=0,\"\",'Prezenční listina'!C114)","v":""},{"$f":"IF('Prezenční listina'!F114=0,\"\",'Prezenční listina'!D114)","v":""},{"$f":"IF('Prezenční listina'!F114=0,\"\",'Prezenční listina'!E114)","v":""},{"$f":"IF('Prezenční listina'!F114=0,\"\",'Prezenční listina'!H114)","v":""}]
["",{"$f":"IF('Prezenční listina'!F115=0,\"\",'Prezenční listina'!F115)","v":""},{"$f":"IF('Prezenční listina'!F115=0,\"\",'Prezenční listina'!B115)","v":""},{"$f":"IF('Prezenční listina'!F115=0,\"\",'Prezenční listina'!C115)","v":""},{"$f":"IF('Prezenční listina'!F115=0,\"\",'Prezenční listina'!D115)","v":""},{"$f":"IF('Prezenční listina'!F115=0,\"\",'Prezenční listina'!E115)","v":""},{"$f":"IF('Prezenční listina'!F115=0,\"\",'Prezenční listina'!H115)","v":""}]
["",{"$f":"IF('Prezenční listina'!F116=0,\"\",'Prezenční listina'!F116)","v":""},{"$f":"IF('Prezenční listina'!F116=0,\"\",'Prezenční listina'!B116)","v":""},{"$f":"IF('Prezenční listina'!F116=0,\"\",'Prezenční listina'!C116)","v":""},{"$f":"IF('Prezenční listina'!F116=0,\"\",'Prezenční listina'!D116)","v":""},{"$f":"IF('Prezenční listina'!F116=0,\"\",'Prezenční listina'!E116)","v":""},{"$f":"IF('Prezenční listina'!F116=0,\"\",'Prezenční listina'!H116)","v":""}]
["",{"$f":"IF('Prezenční listina'!F117=0,\"\",'Prezenční listina'!F117)","v":""},{"$f":"IF('Prezenční listina'!F117=0,\"\",'Prezenční listina'!B117)","v":""},{"$f":"IF('Prezenční listina'!F117=0,\"\",'Prezenční listina'!C117)","v":""},{"$f":"IF('Prezenční listina'!F117=0,\"\",'Prezenční listina'!D117)","v":""},{"$f":"IF('Prezenční listina'!F117=0,\"\",'Prezenční listina'!E117)","v":""},{"$f":"IF('Prezenční listina'!F117=0,\"\",'Prezenční listina'!H117)","v":""}]
["",{"$f":"IF('Prezenční listina'!F118=0,\"\",'Prezenční listina'!F118)","v":""},{"$f":"IF('Prezenční listina'!F118=0,\"\",'Prezenční listina'!B118)","v":""},{"$f":"IF('Prezenční listina'!F118=0,\"\",'Prezenční listina'!C118)","v":""},{"$f":"IF('Prezenční listina'!F118=0,\"\",'Prezenční listina'!D118)","v":""},{"$f":"IF('Prezenční listina'!F118=0,\"\",'Prezenční listina'!E118)","v":""},{"$f":"IF('Prezenční listina'!F118=0,\"\",'Prezenční listina'!H118)","v":""}]
["",{"$f":"IF('Prezenční listina'!F119=0,\"\",'Prezenční listina'!F119)","v":""},{"$f":"IF('Prezenční listina'!F119=0,\"\",'Prezenční listina'!B119)","v":""},{"$f":"IF('Prezenční listina'!F119=0,\"\",'Prezenční listina'!C119)","v":""},{"$f":"IF('Prezenční listina'!F119=0,\"\",'Prezenční listina'!D119)","v":""},{"$f":"IF('Prezenční listina'!F119=0,\"\",'Prezenční listina'!E119)","v":""},{"$f":"IF('Prezenční listina'!F119=0,\"\",'Prezenční listina'!H119)","v":""}]
["",{"$f":"IF('Prezenční listina'!F120=0,\"\",'Prezenční listina'!F120)","v":""},{"$f":"IF('Prezenční listina'!F120=0,\"\",'Prezenční listina'!B120)","v":""},{"$f":"IF('Prezenční listina'!F120=0,\"\",'Prezenční listina'!C120)","v":""},{"$f":"IF('Prezenční listina'!F120=0,\"\",'Prezenční listina'!D120)","v":""},{"$f":"IF('Prezenční listina'!F120=0,\"\",'Prezenční listina'!E120)","v":""},{"$f":"IF('Prezenční listina'!F120=0,\"\",'Prezenční listina'!H120)","v":""}]
["",{"$f":"IF('Prezenční listina'!F121=0,\"\",'Prezenční listina'!F121)","v":""},{"$f":"IF('Prezenční listina'!F121=0,\"\",'Prezenční listina'!B121)","v":""},{"$f":"IF('Prezenční listina'!F121=0,\"\",'Prezenční listina'!C121)","v":""},{"$f":"IF('Prezenční listina'!F121=0,\"\",'Prezenční listina'!D121)","v":""},{"$f":"IF('Prezenční listina'!F121=0,\"\",'Prezenční listina'!E121)","v":""},{"$f":"IF('Prezenční listina'!F121=0,\"\",'Prezenční listina'!H121)","v":""}]
["",{"$f":"IF('Prezenční listina'!F122=0,\"\",'Prezenční listina'!F122)","v":""},{"$f":"IF('Prezenční listina'!F122=0,\"\",'Prezenční listina'!B122)","v":""},{"$f":"IF('Prezenční listina'!F122=0,\"\",'Prezenční listina'!C122)","v":""},{"$f":"IF('Prezenční listina'!F122=0,\"\",'Prezenční listina'!D122)","v":""},{"$f":"IF('Prezenční listina'!F122=0,\"\",'Prezenční listina'!E122)","v":""},{"$f":"IF('Prezenční listina'!F122=0,\"\",'Prezenční listina'!H122)","v":""}]
["",{"$f":"IF('Prezenční listina'!F123=0,\"\",'Prezenční listina'!F123)","v":""},{"$f":"IF('Prezenční listina'!F123=0,\"\",'Prezenční listina'!B123)","v":""},{"$f":"IF('Prezenční listina'!F123=0,\"\",'Prezenční listina'!C123)","v":""},{"$f":"IF('Prezenční listina'!F123=0,\"\",'Prezenční listina'!D123)","v":""},{"$f":"IF('Prezenční listina'!F123=0,\"\",'Prezenční listina'!E123)","v":""},{"$f":"IF('Prezenční listina'!F123=0,\"\",'Prezenční listina'!H123)","v":""}]
["",{"$f":"IF('Prezenční listina'!F124=0,\"\",'Prezenční listina'!F124)","v":""},{"$f":"IF('Prezenční listina'!F124=0,\"\",'Prezenční listina'!B124)","v":""},{"$f":"IF('Prezenční listina'!F124=0,\"\",'Prezenční listina'!C124)","v":""},{"$f":"IF('Prezenční listina'!F124=0,\"\",'Prezenční listina'!D124)","v":""},{"$f":"IF('Prezenční listina'!F124=0,\"\",'Prezenční listina'!E124)","v":""},{"$f":"IF('Prezenční listina'!F124=0,\"\",'Prezenční listina'!H124)","v":""}]
["",{"$f":"IF('Prezenční listina'!F125=0,\"\",'Prezenční listina'!F125)","v":""},{"$f":"IF('Prezenční listina'!F125=0,\"\",'Prezenční listina'!B125)","v":""},{"$f":"IF('Prezenční listina'!F125=0,\"\",'Prezenční listina'!C125)","v":""},{"$f":"IF('Prezenční listina'!F125=0,\"\",'Prezenční listina'!D125)","v":""},{"$f":"IF('Prezenční listina'!F125=0,\"\",'Prezenční listina'!E125)","v":""},{"$f":"IF('Prezenční listina'!F125=0,\"\",'Prezenční listina'!H125)","v":""}]
["",{"$f":"IF('Prezenční listina'!F126=0,\"\",'Prezenční listina'!F126)","v":""},{"$f":"IF('Prezenční listina'!F126=0,\"\",'Prezenční listina'!B126)","v":""},{"$f":"IF('Prezenční listina'!F126=0,\"\",'Prezenční listina'!C126)","v":""},{"$f":"IF('Prezenční listina'!F126=0,\"\",'Prezenční listina'!D126)","v":""},{"$f":"IF('Prezenční listina'!F126=0,\"\",'Prezenční listina'!E126)","v":""},{"$f":"IF('Prezenční listina'!F126=0,\"\",'Prezenční listina'!H126)","v":""}]
["",{"$f":"IF('Prezenční listina'!F127=0,\"\",'Prezenční listina'!F127)","v":""},{"$f":"IF('Prezenční listina'!F127=0,\"\",'Prezenční listina'!B127)","v":""},{"$f":"IF('Prezenční listina'!F127=0,\"\",'Prezenční listina'!C127)","v":""},{"$f":"IF('Prezenční listina'!F127=0,\"\",'Prezenční listina'!D127)","v":""},{"$f":"IF('Prezenční listina'!F127=0,\"\",'Prezenční listina'!E127)","v":""},{"$f":"IF('Prezenční listina'!F127=0,\"\",'Prezenční listina'!H127)","v":""}]
["",{"$f":"IF('Prezenční listina'!F128=0,\"\",'Prezenční listina'!F128)","v":""},{"$f":"IF('Prezenční listina'!F128=0,\"\",'Prezenční listina'!B128)","v":""},{"$f":"IF('Prezenční listina'!F128=0,\"\",'Prezenční listina'!C128)","v":""},{"$f":"IF('Prezenční listina'!F128=0,\"\",'Prezenční listina'!D128)","v":""},{"$f":"IF('Prezenční listina'!F128=0,\"\",'Prezenční listina'!E128)","v":""},{"$f":"IF('Prezenční listina'!F128=0,\"\",'Prezenční listina'!H128)","v":""}]
["",{"$f":"IF('Prezenční listina'!F129=0,\"\",'Prezenční listina'!F129)","v":""},{"$f":"IF('Prezenční listina'!F129=0,\"\",'Prezenční listina'!B129)","v":""},{"$f":"IF('Prezenční listina'!F129=0,\"\",'Prezenční listina'!C129)","v":""},{"$f":"IF('Prezenční listina'!F129=0,\"\",'Prezenční listina'!D129)","v":""},{"$f":"IF('Prezenční listina'!F129=0,\"\",'Prezenční listina'!E129)","v":""},{"$f":"IF('Prezenční listina'!F129=0,\"\",'Prezenční listina'!H129)","v":""}]
["",{"$f":"IF('Prezenční listina'!F130=0,\"\",'Prezenční listina'!F130)","v":""},{"$f":"IF('Prezenční listina'!F130=0,\"\",'Prezenční listina'!B130)","v":""},{"$f":"IF('Prezenční listina'!F130=0,\"\",'Prezenční listina'!C130)","v":""},{"$f":"IF('Prezenční listina'!F130=0,\"\",'Prezenční listina'!D130)","v":""},{"$f":"IF('Prezenční listina'!F130=0,\"\",'Prezenční listina'!E130)","v":""},{"$f":"IF('Prezenční listina'!F130=0,\"\",'Prezenční listina'!H130)","v":""}]
["",{"$f":"IF('Prezenční listina'!F131=0,\"\",'Prezenční listina'!F131)","v":""},{"$f":"IF('Prezenční listina'!F131=0,\"\",'Prezenční listina'!B131)","v":""},{"$f":"IF('Prezenční listina'!F131=0,\"\",'Prezenční listina'!C131)","v":""},{"$f":"IF('Prezenční listina'!F131=0,\"\",'Prezenční listina'!D131)","v":""},{"$f":"IF('Prezenční listina'!F131=0,\"\",'Prezenční listina'!E131)","v":""},{"$f":"IF('Prezenční listina'!F131=0,\"\",'Prezenční listina'!H131)","v":""}]
["",{"$f":"IF('Prezenční listina'!F132=0,\"\",'Prezenční listina'!F132)","v":""},{"$f":"IF('Prezenční listina'!F132=0,\"\",'Prezenční listina'!B132)","v":""},{"$f":"IF('Prezenční listina'!F132=0,\"\",'Prezenční listina'!C132)","v":""},{"$f":"IF('Prezenční listina'!F132=0,\"\",'Prezenční listina'!D132)","v":""},{"$f":"IF('Prezenční listina'!F132=0,\"\",'Prezenční listina'!E132)","v":""},{"$f":"IF('Prezenční listina'!F132=0,\"\",'Prezenční listina'!H132)","v":""}]
["",{"$f":"IF('Prezenční listina'!F133=0,\"\",'Prezenční listina'!F133)","v":""},{"$f":"IF('Prezenční listina'!F133=0,\"\",'Prezenční listina'!B133)","v":""},{"$f":"IF('Prezenční listina'!F133=0,\"\",'Prezenční listina'!C133)","v":""},{"$f":"IF('Prezenční listina'!F133=0,\"\",'Prezenční listina'!D133)","v":""},{"$f":"IF('Prezenční listina'!F133=0,\"\",'Prezenční listina'!E133)","v":""},{"$f":"IF('Prezenční listina'!F133=0,\"\",'Prezenční listina'!H133)","v":""}]
["",{"$f":"IF('Prezenční listina'!F134=0,\"\",'Prezenční listina'!F134)","v":""},{"$f":"IF('Prezenční listina'!F134=0,\"\",'Prezenční listina'!B134)","v":""},{"$f":"IF('Prezenční listina'!F134=0,\"\",'Prezenční listina'!C134)","v":""},{"$f":"IF('Prezenční listina'!F134=0,\"\",'Prezenční listina'!D134)","v":""},{"$f":"IF('Prezenční listina'!F134=0,\"\",'Prezenční listina'!E134)","v":""},{"$f":"IF('Prezenční listina'!F134=0,\"\",'Prezenční listina'!H134)","v":""}]
["",{"$f":"IF('Prezenční listina'!F135=0,\"\",'Prezenční listina'!F135)","v":""},{"$f":"IF('Prezenční listina'!F135=0,\"\",'Prezenční listina'!B135)","v":""},{"$f":"IF('Prezenční listina'!F135=0,\"\",'Prezenční listina'!C135)","v":""},{"$f":"IF('Prezenční listina'!F135=0,\"\",'Prezenční listina'!D135)","v":""},{"$f":"IF('Prezenční listina'!F135=0,\"\",'Prezenční listina'!E135)","v":""},{"$f":"IF('Prezenční listina'!F135=0,\"\",'Prezenční listina'!H135)","v":""}]
["",{"$f":"IF('Prezenční listina'!F136=0,\"\",'Prezenční listina'!F136)","v":""},{"$f":"IF('Prezenční listina'!F136=0,\"\",'Prezenční listina'!B136)","v":""},{"$f":"IF('Prezenční listina'!F136=0,\"\",'Prezenční listina'!C136)","v":""},{"$f":"IF('Prezenční listina'!F136=0,\"\",'Prezenční listina'!D136)","v":""},{"$f":"IF('Prezenční listina'!F136=0,\"\",'Prezenční listina'!E136)","v":""},{"$f":"IF('Prezenční listina'!F136=0,\"\",'Prezenční listina'!H136)","v":""}]
["",{"$f":"IF('Prezenční listina'!F137=0,\"\",'Prezenční listina'!F137)","v":""},{"$f":"IF('Prezenční listina'!F137=0,\"\",'Prezenční listina'!B137)","v":""},{"$f":"IF('Prezenční listina'!F137=0,\"\",'Prezenční listina'!C137)","v":""},{"$f":"IF('Prezenční listina'!F137=0,\"\",'Prezenční listina'!D137)","v":""},{"$f":"IF('Prezenční listina'!F137=0,\"\",'Prezenční listina'!E137)","v":""},{"$f":"IF('Prezenční listina'!F137=0,\"\",'Prezenční listina'!H137)","v":""}]
["",{"$f":"IF('Prezenční listina'!F138=0,\"\",'Prezenční listina'!F138)","v":""},{"$f":"IF('Prezenční listina'!F138=0,\"\",'Prezenční listina'!B138)","v":""},{"$f":"IF('Prezenční listina'!F138=0,\"\",'Prezenční listina'!C138)","v":""},{"$f":"IF('Prezenční listina'!F138=0,\"\",'Prezenční listina'!D138)","v":""},{"$f":"IF('Prezenční listina'!F138=0,\"\",'Prezenční listina'!E138)","v":""},{"$f":"IF('Prezenční listina'!F138=0,\"\",'Prezenční listina'!H138)","v":""}]
["",{"$f":"IF('Prezenční listina'!F139=0,\"\",'Prezenční listina'!F139)","v":""},{"$f":"IF('Prezenční listina'!F139=0,\"\",'Prezenční listina'!B139)","v":""},{"$f":"IF('Prezenční listina'!F139=0,\"\",'Prezenční listina'!C139)","v":""},{"$f":"IF('Prezenční listina'!F139=0,\"\",'Prezenční listina'!D139)","v":""},{"$f":"IF('Prezenční listina'!F139=0,\"\",'Prezenční listina'!E139)","v":""},{"$f":"IF('Prezenční listina'!F139=0,\"\",'Prezenční listina'!H139)","v":""}]

{"sheet":"Výsledková listina","index":2,"n_rows":147,"n_cols":11,"rows_kept":147,"cut":false,"hidden":false,"merged":[[0,0,0,8],[2,0,2,8],[146,3,152,7],[1,0,1,8],[1,10,13,14]]}
[{"$f":"\"Výsledková listina - Bystřickem kolem Vírské přehrady \"&'Prezenční listina'!O2","v":"Výsledková listina - Bystřickem kolem Vírské přehrady 2014"}]
[{"$f":"'Prezenční listina'!O2-2004&\". ročník\"","v":"10. ročník"},null,null,null,null,null,null,null,null,null,"\nPoté, co jsou dopsány časy VŠECH běžců, stisknout tlačítko 1.řazení \n\n\nVe sloupci B (Pořadí v kategorii) vytvořit posloupnou číselnou řadu pro každou kategorii a poté stisknout tlačítko 2.řazení\n\n\n                      !!! POZOR!!!\n\n               Použití tlačítek je nevratný krok!"]
["2014-05-31"]
["Celkové pořadí","Pořadí v kategorii","Kategorie","Startovní číslo","Příjmení","Jméno","Narození","Oddíl / Bydliště","Čas"]
[1,1,{"$f":"'Startovní listina'!G55","v":"A"},{"$f":"'Startovní listina'!B55","v":56},{"$f":"'Startovní listina'!C55","v":"Janů"},{"$f":"'Startovní listina'!D55","v":"Jan"},{"$f":"'Startovní listina'!E55","v":1993},{"$f":"'Startovní listina'!F55","v":"Hvězda SKP Pardubice"},"01:39:00"]
[2,2,{"$f":"'Startovní listina'!G24","v":"A"},{"$f":"'Startovní listina'!B24","v":21},{"$f":"'Startovní listina'!C24","v":"Kohut"},{"$f":"'Startovní listina'!D24","v":"Jan"},{"$f":"'Startovní listina'!E24","v":1985},{"$f":"'Startovní listina'!F24","v":"MIZUNO RELAX-FIT TEAM"},"01:39:45"]
[3,1,{"$f":"'Startovní listina'!G73","v":"B"},{"$f":"'Startovní listina'!B73","v":77},{"$f":"'Startovní listina'!C73","v":"Orálek"},{"$f":"'Startovní listina'!D73","v":"Daniel"},{"$f":"'Startovní listina'!E73","v":1970},{"$f":"'Startovní listina'!F73","v":"AC Moravská Slávia - Adidas"},"01:45:40"]
[4,2,{"$f":"'Startovní listina'!G27","v":"B"},{"$f":"'Startovní listina'!B27","v":24},{"$f":"'Startovní listina'!C27","v":"Žák"},{"$f":"'Startovní listina'!D27","v":"Jiří"},{"$f":"'Startovní listina'!E27","v":1971},{"$f":"'Startovní listina'!F27","v":"MK Seitl Ostrava"},"01:45:47"]
[5,3,{"$f":"'Startovní listina'!G77","v":"A"},{"$f":"'Startovní listina'!B77","v":83},{"$f":"'Startovní listina'!C77","v":"Glier"},{"$f":"'Startovní listina'!D77","v":"Michal"},{"$f":"'Startovní listina'!E77","v":1982},{"$f":"'Startovní listina'!F77","v":"Moravská Slávia Brno"},"01:45:57"]
[6,3,{"$f":"'Startovní listina'!G19","v":"B"},{"$f":"'Startovní listina'!B19","v":16},{"$f":"'Startovní listina'!C19","v":"Štýbnar"},{"$f":"'Startovní listina'!D19","v":"Zbyněk"},{"$f":"'Startovní listina'!E19","v":1974},{"$f":"'Startovní listina'!F19","v":"Běžec Vysočiny Jihlava"},"01:48:08"]
[7,4,{"$f":"'Startovní listina'!G59","v":"A"},{"$f":"'Startovní listina'!B59","v":60},{"$f":"'Startovní listina'!C59","v":"Borek"},{"$f":"'Startovní listina'!D59","v":"Aleš"},{"$f":"'Startovní listina'!E59","v":1977},{"$f":"'Startovní listina'!F59","v":"VSK UNI BRNO"},"01:49:51"]
[8,5,{"$f":"'Startovní listina'!G66","v":"A"},{"$f":"'Startovní listina'!B66","v":69},{"$f":"'Startovní listina'!C66","v":"Ondráček"},{"$f":"'Startovní listina'!D66","v":"Tomáš"},{"$f":"'Startovní listina'!E66","v":1977},{"$f":"'Startovní listina'!F66","v":"Sporty.cz Brno"},"01:50:59"]
[9,6,{"$f":"'Startovní listina'!G36","v":"A"},{"$f":"'Startovní listina'!B36","v":35},{"$f":"'Startovní listina'!C36","v":"Hrdina"},{"$f":"'Startovní listina'!D36","v":"Tomáš"},{"$f":"'Startovní listina'!E36","v":1979},{"$f":"'Startovní listina'!F36","v":"Mravský Krumlov"},"01:51:04"]
[10,7,{"$f":"'Startovní listina'!G84","v":"A"},{"$f":"'Startovní listina'!B84","v":91},{"$f":"'Startovní listina'!C84","v":"Cacek"},{"$f":"'Startovní listina'!D84","v":"Josef"},{"$f":"'Startovní listina'!E84","v":1978},{"$f":"'Startovní listina'!F84","v":"Cáca team Tišnov"},"01:51:11"]
[11,8,{"$f":"'Startovní listina'!G41","v":"A"},{"$f":"'Startovní listina'!B41","v":41},{"$f":"'Startovní listina'!C41","v":"Serban"},{"$f":"'Startovní listina'!D41","v":"Baciu"},{"$f":"'Startovní listina'!E41","v":1980},{"$f":"'Startovní listina'!F41","v":"Brno"},"01:51:26"]
[12,9,{"$f":"'Startovní listina'!G20","v":"A"},{"$f":"'Startovní listina'!B20","v":17},{"$f":"'Startovní listina'!C20","v":"Czerný"},{"$f":"'Startovní listina'!D20","v":"Pavel"},{"$f":"'Startovní listina'!E20","v":1981},{"$f":"'Startovní listina'!F20","v":"Karviná"},"01:51:30"]
[13,1,{"$f":"'Startovní listina'!G49","v":"C"},{"$f":"'Startovní listina'!B49","v":49},{"$f":"'Startovní listina'!C49","v":"Rerych"},{"$f":"'Startovní listina'!D49","v":"Jiří"},{"$f":"'Startovní listina'!E49","v":1962},{"$f":"'Startovní listina'!F49","v":"AC Moravská Slávia Brno"},"01:53:19"]
[14,2,{"$f":"'Startovní listina'!G50","v":"C"},{"$f":"'Startovní listina'!B50","v":50},{"$f":"'Startovní listina'!C50","v":"Ožana"},{"$f":"'Startovní listina'!D50","v":"Václav"},{"$f":"'Startovní listina'!E50","v":1964},{"$f":"'Startovní listina'!F50","v":"TJ Nové Město na Moravě"},"01:54:12"]
[15,10,{"$f":"'Startovní listina'!G5","v":"A"},{"$f":"'Startovní listina'!B5","v":1},{"$f":"'Startovní listina'!C5","v":"Kratochvíl"},{"$f":"'Startovní listina'!D5","v":"Jaroslav"},{"$f":"'Startovní listina'!E5","v":1977},{"$f":"'Startovní listina'!F5","v":"SDH Hluboké"},"01:55:44"]
[16,11,{"$f":"'Startovní listina'!G13","v":"A"},{"$f":"'Startovní listina'!B13","v":9},{"$f":"'Startovní listina'!C13","v":"Klíma"},{"$f":"'Startovní listina'!D13","v":"Miroslav"},{"$f":"'Startovní listina'!E13","v":1975},{"$f":"'Startovní listina'!F13","v":"Mechanika Prostějov"},"01:56:08"]
[17,12,{"$f":"'Startovní listina'!G34","v":"A"},{"$f":"'Startovní listina'!B34","v":33},{"$f":"'Startovní listina'!C34","v":"Polcar"},{"$f":"'Startovní listina'!D34","v":"Jiří"},{"$f":"'Startovní listina'!E34","v":1977},{"$f":"'Startovní listina'!F34","v":"Farma Jiřího Chrásta - SK Veselí"},"01:56:28"]
[18,4,{"$f":"'Startovní listina'!G57","v":"B"},{"$f":"'Startovní listina'!B57","v":58},{"$f":"'Startovní listina'!C57","v":"Sedlák"},{"$f":"'Startovní listina'!D57","v":"Pavel"},{"$f":"'Startovní listina'!E57","v":1971},{"$f":"'Startovní listina'!F57","v":"Slatiňany"},"01:57:35"]
[19,3,{"$f":"'Startovní listina'!G29","v":"C"},{"$f":"'Startovní listina'!B29","v":27},{"$f":"'Startovní listina'!C29","v":"Kratochvíl"},{"$f":"'Startovní listina'!D29","v":"Pavel"},{"$f":"'Startovní listina'!E29","v":1960},{"$f":"'Startovní listina'!F29","v":"Sokol Rudíkov"},"01:58:19"]
[20,13,{"$f":"'Startovní listina'!G53","v":"A"},{"$f":"'Startovní listina'!B53","v":54},{"$f":"'Startovní listina'!C53","v":"Havránek"},{"$f":"'Startovní listina'!D53","v":"Jan"},{"$f":"'Startovní listina'!E53","v":1977},{"$f":"'Startovní listina'!F53","v":"Brno"},"01:58:25"]
[21,4,{"$f":"'Startovní listina'!G23","v":"C"},{"$f":"'Startovní listina'!B23","v":20},{"$f":"'Startovní listina'!C23","v":"Jína"},{"$f":"'Startovní listina'!D23","v":"Pavel"},{"$f":"'Startovní listina'!E23","v":1962},{"$f":"'Startovní listina'!F23","v":"TJ Liga 100 Olomouc"},"01:58:34"]
[22,5,{"$f":"'Startovní listina'!G95","v":"B"},{"$f":"'Startovní listina'!B95","v":102},{"$f":"'Startovní listina'!C95","v":"Konečný"},{"$f":"'Startovní listina'!D95","v":"Libor"},{"$f":"'Startovní listina'!E95","v":1971},{"$f":"'Startovní listina'!F95","v":"Kuřim"},"02:01:32"]
[23,5,{"$f":"'Startovní listina'!G6","v":"C"},{"$f":"'Startovní listina'!B6","v":2},{"$f":"'Startovní listina'!C6","v":"Skalický"},{"$f":"'Startovní listina'!D6","v":"Josef"},{"$f":"'Startovní listina'!E6","v":1962},{"$f":"'Startovní listina'!F6","v":"POLDR Žichlínek"},"02:01:36"]
[24,6,{"$f":"'Startovní listina'!G17","v":"C"},{"$f":"'Startovní listina'!B17","v":13},{"$f":"'Startovní listina'!C17","v":"Zouhar"},{"$f":"'Startovní listina'!D17","v":"Libor"},{"$f":"'Startovní listina'!E17","v":1958},{"$f":"'Startovní listina'!F17","v":"Brno - Líšeň"},"02:02:12"]
[25,7,{"$f":"'Startovní listina'!G14","v":"C"},{"$f":"'Startovní listina'!B14","v":10},{"$f":"'Startovní listina'!C14","v":"Sedláček"},{"$f":"'Startovní listina'!D14","v":"Roman"},{"$f":"'Startovní listina'!E14","v":1964},{"$f":"'Startovní listina'!F14","v":"Activity Lanškroun"},"02:02:45"]
[26,6,{"$f":"'Startovní listina'!G52","v":"B"},{"$f":"'Startovní listina'!B52","v":53},{"$f":"'Startovní listina'!C52","v":"Alman"},{"$f":"'Startovní listina'!D52","v":"Dušan"},{"$f":"'Startovní listina'!E52","v":1967},{"$f":"'Startovní listina'!F52","v":"Babice"},"02:03:31"]
[27,14,{"$f":"'Startovní listina'!G81","v":"A"},{"$f":"'Startovní listina'!B81","v":87},{"$f":"'Startovní listina'!C81","v":"Šorf"},{"$f":"'Startovní listina'!D81","v":"Ivo"},{"$f":"'Startovní listina'!E81","v":1975},{"$f":"'Startovní listina'!F81","v":"ABND Racing Team Bystřice nad Pernštejnem"},"02:04:20"]
[28,7,{"$f":"'Startovní listina'!G60","v":"B"},{"$f":"'Startovní listina'!B60","v":61},{"$f":"'Startovní listina'!C60","v":"Fučík"},{"$f":"'Startovní listina'!D60","v":"Jaroslav"},{"$f":"'Startovní listina'!E60","v":1974},{"$f":"'Startovní listina'!F60","v":"Prosetín"},"02:04:51"]
[29,8,{"$f":"'Startovní listina'!G7","v":"B"},{"$f":"'Startovní listina'!B7","v":3},{"$f":"'Startovní listina'!C7","v":"Zavadil"},{"$f":"'Startovní listina'!D7","v":"Alexandr"},{"$f":"'Startovní listina'!E7","v":1966},{"$f":"'Startovní listina'!F7","v":"Kondor Jeseník"},"02:06:25"]
[30,15,{"$f":"'Startovní listina'!G21","v":"A"},{"$f":"'Startovní listina'!B21","v":18},{"$f":"'Startovní listina'!C21","v":"Rozkoš"},{"$f":"'Startovní listina'!D21","v":"Tomáš"},{"$f":"'Startovní listina'!E21","v":1984},{"$f":"'Startovní listina'!F21","v":"Hradec Králové"},"02:06:35"]
[31,1,{"$f":"'Startovní listina'!G37","v":"H"},{"$f":"'Startovní listina'!B37","v":36},{"$f":"'Startovní listina'!C37","v":"Martincová"},{"$f":"'Startovní listina'!D37","v":"Ivana"},{"$f":"'Startovní listina'!E37","v":1963},{"$f":"'Startovní listina'!F37","v":"Moravská Slávia Brno"},"02:07:07"]
[32,16,{"$f":"'Startovní listina'!G25","v":"A"},{"$f":"'Startovní listina'!B25","v":22},{"$f":"'Startovní listina'!C25","v":"Veškrna"},{"$f":"'Startovní listina'!D25","v":"Ivan"},{"$f":"'Startovní listina'!E25","v":1983},{"$f":"'Startovní listina'!F25","v":"Brno"},"02:07:15"]
[33,1,{"$f":"'Startovní listina'!G26","v":"F"},{"$f":"'Startovní listina'!B26","v":23},{"$f":"'Startovní listina'!C26","v":"Procházková"},{"$f":"'Startovní listina'!D26","v":"Tereza"},{"$f":"'Startovní listina'!E26","v":1990},{"$f":"'Startovní listina'!F26","v":"Orel Ořechov"},"02:07:31"]
[34,2,{"$f":"'Startovní listina'!G90","v":"H"},{"$f":"'Startovní listina'!B90","v":97},{"$f":"'Startovní listina'!C90","v":"Krátká"},{"$f":"'Startovní listina'!D90","v":"Anna"},{"$f":"'Startovní listina'!E90","v":1969},{"$f":"'Startovní listina'!F90","v":"Hvězda SKP Pardubice"},"02:09:17"]
[35,1,{"$f":"'Startovní listina'!G43","v":"G"},{"$f":"'Startovní listina'!B43","v":43},{"$f":"'Startovní listina'!C43","v":"Komárková"},{"$f":"'Startovní listina'!D43","v":"Zdeňka"},{"$f":"'Startovní listina'!E43","v":1974},{"$f":"'Startovní listina'!F43","v":"SDH Bolešín"},"02:09:22"]
[36,9,{"$f":"'Startovní listina'!G15","v":"B"},{"$f":"'Startovní listina'!B15","v":11},{"$f":"'Startovní listina'!C15","v":"Kropáček"},{"$f":"'Startovní listina'!D15","v":"Jaroslav"},{"$f":"'Startovní listina'!E15","v":1970},{"$f":"'Startovní listina'!F15","v":"Brno"},"02:09:49"]
[37,17,{"$f":"'Startovní listina'!G35","v":"A"},{"$f":"'Startovní listina'!B35","v":34},{"$f":"'Startovní listina'!C35","v":"Čech"},{"$f":"'Startovní listina'!D35","v":"Petr"},{"$f":"'Startovní listina'!E35","v":1981},{"$f":"'Startovní listina'!F35","v":"M K Prostějov"},"02:09:52"]
[38,2,{"$f":"'Startovní listina'!G78","v":"F"},{"$f":"'Startovní listina'!B78","v":84},{"$f":"'Startovní listina'!C78","v":"Kolková"},{"$f":"'Startovní listina'!D78","v":"Lucie"},{"$f":"'Startovní listina'!E78","v":1982},{"$f":"'Startovní listina'!F78","v":"AC Moravská Slávia Brno"},"02:10:11"]
[39,18,{"$f":"'Startovní listina'!G16","v":"A"},{"$f":"'Startovní listina'!B16","v":12},{"$f":"'Startovní listina'!C16","v":"Kocur"},{"$f":"'Startovní listina'!D16","v":"Lukáš"},{"$f":"'Startovní listina'!E16","v":1977},{"$f":"'Startovní listina'!F16","v":"Otmarov"},"02:11:22"]
[40,10,{"$f":"'Startovní listina'!G8","v":"B"},{"$f":"'Startovní listina'!B8","v":4},{"$f":"'Startovní listina'!C8","v":"Hejtmánek"},{"$f":"'Startovní listina'!D8","v":"Miroslav"},{"$f":"'Startovní listina'!E8","v":1970},{"$f":"'Startovní listina'!F8","v":"Brno"},"02:11:38"]
[41,11,{"$f":"'Startovní listina'!G86","v":"B"},{"$f":"'Startovní listina'!B86","v":93},{"$f":"'Startovní listina'!C86","v":"Skřivánek"},{"$f":"'Startovní listina'!D86","v":"Petr"},{"$f":"'Startovní listina'!E86","v":1966},{"$f":"'Startovní listina'!F86","v":"LRS Vyškov"},"02:11:44"]
[42,19,{"$f":"'Startovní listina'!G82","v":"A"},{"$f":"'Startovní listina'!B82","v":89},{"$f":"'Startovní listina'!C82","v":"Knotek"},{"$f":"'Startovní listina'!D82","v":"David"},{"$f":"'Startovní listina'!E82","v":1982},{"$f":"'Startovní listina'!F82","v":"Brno"},"02:12:01"]
[43,20,{"$f":"'Startovní listina'!G32","v":"A"},{"$f":"'Startovní listina'!B32","v":30},{"$f":"'Startovní listina'!C32","v":"Stejskal"},{"$f":"'Startovní listina'!D32","v":"Petr"},{"$f":"'Startovní listina'!E32","v":1976},{"$f":"'Startovní listina'!F32","v":"Farma Jiřího Chrásta - SK Veselí"},"02:12:13"]
[44,1,{"$f":"'Startovní listina'!G45","v":"D"},{"$f":"'Startovní listina'!B45","v":45},{"$f":"'Startovní listina'!C45","v":"Kaše"},{"$f":"'Startovní listina'!D45","v":"Jaroslav"},{"$f":"'Startovní listina'!E45","v":1953},{"$f":"'Startovní listina'!F45","v":"Club běžeckých outsiderů"},"02:12:22"]
[45,8,{"$f":"'Startovní listina'!G31","v":"C"},{"$f":"'Startovní listina'!B31","v":29},{"$f":"'Startovní listina'!C31","v":"Suchý"},{"$f":"'Startovní listina'!D31","v":"Karel"},{"$f":"'Startovní listina'!E31","v":1956},{"$f":"'Startovní listina'!F31","v":"Náměšť nad Oslavou"},"02:12:43"]
[46,21,{"$f":"'Startovní listina'!G72","v":"A"},{"$f":"'Startovní listina'!B72","v":76},{"$f":"'Startovní listina'!C72","v":"Šerák"},{"$f":"'Startovní listina'!D72","v":"Martin"},{"$f":"'Startovní listina'!E72","v":1978},{"$f":"'Startovní listina'!F72","v":"Sokol Bílovice nad Svitavou"},"02:13:25"]
[47,2,{"$f":"'Startovní listina'!G54","v":"G"},{"$f":"'Startovní listina'!B54","v":55},{"$f":"'Startovní listina'!C54","v":"Bódiová"},{"$f":"'Startovní listina'!D54","v":"Adéla"},{"$f":"'Startovní listina'!E54","v":1976},{"$f":"'Startovní listina'!F54","v":"Sporty.cz Brno"},"02:13:41"]
[48,22,{"$f":"'Startovní listina'!G56","v":"A"},{"$f":"'Startovní listina'!B56","v":57},{"$f":"'Startovní listina'!C56","v":"Vacula"},{"$f":"'Startovní listina'!D56","v":"Ondřej"},{"$f":"'Startovní listina'!E56","v":1981},{"$f":"'Startovní listina'!F56","v":"Medlánky"},"02:13:42"]
[49,23,{"$f":"'Startovní listina'!G80","v":"A"},{"$f":"'Startovní listina'!B80","v":86},{"$f":"'Startovní listina'!C80","v":"Pavelka"},{"$f":"'Startovní listina'!D80","v":"Richard"},{"$f":"'Startovní listina'!E80","v":1981},{"$f":"'Startovní listina'!F80","v":"Brno"},"02:14:46"]
[50,3,{"$f":"'Startovní listina'!G75","v":"F"},{"$f":"'Startovní listina'!B75","v":80},{"$f":"'Startovní listina'!C75","v":"Krejčová"},{"$f":"'Startovní listina'!D75","v":"Magda"},{"$f":"'Startovní listina'!E75","v":1980},{"$f":"'Startovní listina'!F75","v":"Brno"},"02:15:19"]
[51,24,{"$f":"'Startovní listina'!G58","v":"A"},{"$f":"'Startovní listina'!B58","v":59},{"$f":"'Startovní listina'!C58","v":"Poneš"},{"$f":"'Startovní listina'!D58","v":"Pavel"},{"$f":"'Startovní listina'!E58","v":1978},{"$f":"'Startovní listina'!F58","v":"TK Sokoli"},"02:15:56"]
[52,25,{"$f":"'Startovní listina'!G33","v":"A"},{"$f":"'Startovní listina'!B33","v":31},{"$f":"'Startovní listina'!C33","v":"Čech"},{"$f":"'Startovní listina'!D33","v":"Martin"},{"$f":"'Startovní listina'!E33","v":1978},{"$f":"'Startovní listina'!F33","v":"Farma Jiřího Chrásta - SK Veselí"},"02:16:09"]
[53,12,{"$f":"'Startovní listina'!G76","v":"B"},{"$f":"'Startovní listina'!B76","v":82},{"$f":"'Startovní listina'!C76","v":"Janek"},{"$f":"'Startovní listina'!D76","v":"Petr"},{"$f":"'Startovní listina'!E76","v":1969},{"$f":"'Startovní listina'!F76","v":"Brno"},"02:16:18"]
[54,9,{"$f":"'Startovní listina'!G28","v":"C"},{"$f":"'Startovní listina'!B28","v":26},{"$f":"'Startovní listina'!C28","v":"Měřínský"},{"$f":"'Startovní listina'!D28","v":"Jaroslav"},{"$f":"'Startovní listina'!E28","v":1961},{"$f":"'Startovní listina'!F28","v":"AK Perná"},"02:16:26"]
[55,10,{"$f":"'Startovní listina'!G18","v":"C"},{"$f":"'Startovní listina'!B18","v":14},{"$f":"'Startovní listina'!C18","v":"Kučínský"},{"$f":"'Startovní listina'!D18","v":"Pavel"},{"$f":"'Startovní listina'!E18","v":1959},{"$f":"'Startovní listina'!F18","v":"Brno"},"02:16:36"]
[56,26,{"$f":"'Startovní listina'!G47","v":"A"},{"$f":"'Startovní listina'!B47","v":47},{"$f":"'Startovní listina'!C47","v":"Kupka"},{"$f":"'Startovní listina'!D47","v":"Pavel"},{"$f":"'Startovní listina'!E47","v":1975},{"$f":"'Startovní listina'!F47","v":"Lukovany"},"02:17:40"]
[57,3,{"$f":"'Startovní listina'!G92","v":"G"},{"$f":"'Startovní listina'!B92","v":99},{"$f":"'Startovní listina'!C92","v":"Všetečková"},{"$f":"'Startovní listina'!D92","v":"Pavla"},{"$f":"'Startovní listina'!E92","v":1975},{"$f":"'Startovní listina'!F92","v":"MOTOR JOURNAL"},"02:18:06"]
[58,13,{"$f":"'Startovní listina'!G93","v":"B"},{"$f":"'Startovní listina'!B93","v":100},{"$f":"'Startovní listina'!C93","v":"Novotný"},{"$f":"'Startovní listina'!D93","v":"Petr"},{"$f":"'Startovní listina'!E93","v":1965},{"$f":"'Startovní listina'!F93","v":"Kuřim"},"02:18:46"]
[59,11,{"$f":"'Startovní listina'!G74","v":"C"},{"$f":"'Startovní listina'!B74","v":79},{"$f":"'Startovní listina'!C74","v":"Sedláček"},{"$f":"'Startovní listina'!D74","v":"Svatopluk"},{"$f":"'Startovní listina'!E74","v":1957},{"$f":"'Startovní listina'!F74","v":"AC Moravská Slávia Brno"},"02:20:10"]
[60,27,{"$f":"'Startovní listina'!G65","v":"A"},{"$f":"'Startovní listina'!B65","v":67},{"$f":"'Startovní listina'!C65","v":"Ledvina"},{"$f":"'Startovní listina'!D65","v":"Luděk"},{"$f":"'Startovní listina'!E65","v":1976},{"$f":"'Startovní listina'!F65","v":"Bílovice nad Svitavou"},"02:20:39"]
[61,28,{"$f":"'Startovní listina'!G22","v":"A"},{"$f":"'Startovní listina'!B22","v":19},{"$f":"'Startovní listina'!C22","v":"Pozler"},{"$f":"'Startovní listina'!D22","v":"Jiří"},{"$f":"'Startovní listina'!E22","v":1983},{"$f":"'Startovní listina'!F22","v":"Hradec Králové"},"02:20:48"]
[62,4,{"$f":"'Startovní listina'!G64","v":"G"},{"$f":"'Startovní listina'!B64","v":66},{"$f":"'Startovní listina'!C64","v":"Ráček Pelikánová"},{"$f":"'Startovní listina'!D64","v":"Dáša"},{"$f":"'Startovní listina'!E64","v":1976},{"$f":"'Startovní listina'!F64","v":"Sporty.cz Křoví"},"02:20:54"]
[63,5,{"$f":"'Startovní listina'!G68","v":"G"},{"$f":"'Startovní listina'!B68","v":72},{"$f":"'Startovní listina'!C68","v":"Krejsová"},{"$f":"'Startovní listina'!D68","v":"Petra"},{"$f":"'Startovní listina'!E68","v":1979},{"$f":"'Startovní listina'!F68","v":"Boskovice"},"02:21:09"]
[64,2,{"$f":"'Startovní listina'!G30","v":"D"},{"$f":"'Startovní listina'!B30","v":28},{"$f":"'Startovní listina'!C30","v":"Mareš"},{"$f":"'Startovní listina'!D30","v":"Bohumil"},{"$f":"'Startovní listina'!E30","v":1951},{"$f":"'Startovní listina'!F30","v":"LEAR Brno"},"02:21:46"]
[65,12,{"$f":"'Startovní listina'!G67","v":"C"},{"$f":"'Startovní listina'!B67","v":70},{"$f":"'Startovní listina'!C67","v":"Šperka"},{"$f":"'Startovní listina'!D67","v":"Oldřich"},{"$f":"'Startovní listina'!E67","v":1956},{"$f":"'Startovní listina'!F67","v":"Jedovnice"},"02:25:06"]
[66,13,{"$f":"'Startovní listina'!G38","v":"C"},{"$f":"'Startovní listina'!B38","v":37},{"$f":"'Startovní listina'!C38","v":"Kohutek"},{"$f":"'Startovní listina'!D38","v":"Jaromír"},{"$f":"'Startovní listina'!E38","v":1955},{"$f":"'Startovní listina'!F38","v":"Brno"},"02:26:18"]
[67,14,{"$f":"'Startovní listina'!G62","v":"C"},{"$f":"'Startovní listina'!B62","v":63},{"$f":"'Startovní listina'!C62","v":"Raclavský"},{"$f":"'Startovní listina'!D62","v":"Vlastimil"},{"$f":"'Startovní listina'!E62","v":1955},{"$f":"'Startovní listina'!F62","v":"Liga 100 Olomouc"},"02:27:15"]
[68,29,{"$f":"'Startovní listina'!G88","v":"A"},{"$f":"'Startovní listina'!B88","v":95},{"$f":"'Startovní listina'!C88","v":"Filip"},{"$f":"'Startovní listina'!D88","v":"Rostislav"},{"$f":"'Startovní listina'!E88","v":1986},{"$f":"'Startovní listina'!F88","v":" Horolezecký oddíl Vír"},"02:27:53"]
[69,30,{"$f":"'Startovní listina'!G89","v":"A"},{"$f":"'Startovní listina'!B89","v":96},{"$f":"'Startovní listina'!C89","v":"Koutský"},{"$f":"'Startovní listina'!D89","v":"Tomáš"},{"$f":"'Startovní listina'!E89","v":1987},{"$f":"'Startovní listina'!F89","v":" Horolezecký oddíl Vír"},"02:27:53"]
[70,15,{"$f":"'Startovní listina'!G51","v":"C"},{"$f":"'Startovní listina'!B51","v":51},{"$f":"'Startovní listina'!C51","v":"Macháček"},{"$f":"'Startovní listina'!D51","v":"Martin"},{"$f":"'Startovní listina'!E51","v":1955},{"$f":"'Startovní listina'!F51","v":"Javůrek"},"02:28:19"]
[71,31,{"$f":"'Startovní listina'!G42","v":"A"},{"$f":"'Startovní listina'!B42","v":42},{"$f":"'Startovní listina'!C42","v":"Blaha"},{"$f":"'Startovní listina'!D42","v":"Rostislav"},{"$f":"'Startovní listina'!E42","v":1989},{"$f":"'Startovní listina'!F42","v":"BK Vísky"},"02:28:47"]
[72,6,{"$f":"'Startovní listina'!G69","v":"G"},{"$f":"'Startovní listina'!B69","v":73},{"$f":"'Startovní listina'!C69","v":"Šustrová"},{"$f":"'Startovní listina'!D69","v":"Kateřina"},{"$f":"'Startovní listina'!E69","v":1979},{"$f":"'Startovní listina'!F69","v":"Liga 100 Olomouc"},"02:30:15"]
[73,3,{"$f":"'Startovní listina'!G70","v":"D"},{"$f":"'Startovní listina'!B70","v":74},{"$f":"'Startovní listina'!C70","v":"Stráník"},{"$f":"'Startovní listina'!D70","v":"Aleš"},{"$f":"'Startovní listina'!E70","v":1950},{"$f":"'Startovní listina'!F70","v":"Blansko "},"02:30:22"]
[74,16,{"$f":"'Startovní listina'!G46","v":"C"},{"$f":"'Startovní listina'!B46","v":46},{"$f":"'Startovní listina'!C46","v":"Brabenec"},{"$f":"'Startovní listina'!D46","v":"Miroslav"},{"$f":"'Startovní listina'!E46","v":1959},{"$f":"'Startovní listina'!F46","v":"Žďár nad Sázavou"},"02:30:37"]
[75,17,{"$f":"'Startovní listina'!G61","v":"C"},{"$f":"'Startovní listina'!B61","v":62},{"$f":"'Startovní listina'!C61","v":"Horák"},{"$f":"'Startovní listina'!D61","v":"Pavel"},{"$f":"'Startovní listina'!E61","v":1962},{"$f":"'Startovní listina'!F61","v":"Brno"},"02:33:35"]
[76,32,{"$f":"'Startovní listina'!G9","v":"A"},{"$f":"'Startovní listina'!B9","v":5},{"$f":"'Startovní listina'!C9","v":"Milka"},{"$f":"'Startovní listina'!D9","v":"Zdeněk"},{"$f":"'Startovní listina'!E9","v":1984},{"$f":"'Startovní listina'!F9","v":"Brno"},"02:34:46"]
[77,4,{"$f":"'Startovní listina'!G71","v":"D"},{"$f":"'Startovní listina'!B71","v":75},{"$f":"'Startovní listina'!C71","v":"Boháč"},{"$f":"'Startovní listina'!D71","v":"Jiří"},{"$f":"'Startovní listina'!E71","v":1954},{"$f":"'Startovní listina'!F71","v":"Brno"},"02:35:04"]
[78,14,{"$f":"'Startovní listina'!G91","v":"B"},{"$f":"'Startovní listina'!B91","v":98},{"$f":"'Startovní listina'!C91","v":"Tyleček"},{"$f":"'Startovní listina'!D91","v":"Pavel"},{"$f":"'Startovní listina'!E91","v":1973},{"$f":"'Startovní listina'!F91","v":"Brno - Jundrov"},"02:35:45"]
[79,33,{"$f":"'Startovní listina'!G48","v":"A"},{"$f":"'Startovní listina'!B48","v":48},{"$f":"'Startovní listina'!C48","v":"Kubík"},{"$f":"'Startovní listina'!D48","v":"Oldřich"},{"$f":"'Startovní listina'!E48","v":1981},{"$f":"'Startovní listina'!F48","v":"TJ Jiskra Vír"},"02:35:46"]
[80,3,{"$f":"'Startovní listina'!G85","v":"H"},{"$f":"'Startovní listina'!B85","v":92},{"$f":"'Startovní listina'!C85","v":"Szabová"},{"$f":"'Startovní listina'!D85","v":"Dana"},{"$f":"'Startovní listina'!E85","v":1967},{"$f":"'Startovní listina'!F85","v":"LRS Vyškov"},"02:38:40"]
[81,18,{"$f":"'Startovní listina'!G87","v":"C"},{"$f":"'Startovní listina'!B87","v":94},{"$f":"'Startovní listina'!C87","v":"Kunc"},{"$f":"'Startovní listina'!D87","v":"Josef"},{"$f":"'Startovní listina'!E87","v":1960},{"$f":"'Startovní listina'!F87","v":"LRS Vyškov"},"02:38:41"]
[82,4,{"$f":"'Startovní listina'!G63","v":"F"},{"$f":"'Startovní listina'!B63","v":64},{"$f":"'Startovní listina'!C63","v":"Krčková"},{"$f":"'Startovní listina'!D63","v":"Šárka"},{"$f":"'Startovní listina'!E63","v":1988},{"$f":"'Startovní listina'!F63","v":"Liga 100 Olomouc"},"02:44:29"]
[83,15,{"$f":"'Startovní listina'!G96","v":"B"},{"$f":"'Startovní listina'!B96","v":103},{"$f":"'Startovní listina'!C96","v":"Jaskulka"},{"$f":"'Startovní listina'!D96","v":"Martin"},{"$f":"'Startovní listina'!E96","v":1968},{"$f":"'Startovní listina'!F96","v":"Kuřim"},"02:49:02"]
[84,4,{"$f":"'Startovní listina'!G83","v":"H"},{"$f":"'Startovní listina'!B83","v":90},{"$f":"'Startovní listina'!C83","v":"Kalová"},{"$f":"'Startovní listina'!D83","v":"Jana"},{"$f":"'Startovní listina'!E83","v":1966},{"$f":"'Startovní listina'!F83","v":"Zetor Brno"},"02:52:22"]
[85,19,{"$f":"'Startovní listina'!G40","v":"C"},{"$f":"'Startovní listina'!B40","v":40},{"$f":"'Startovní listina'!C40","v":"Blaha"},{"$f":"'Startovní listina'!D40","v":"Stanislav"},{"$f":"'Startovní listina'!E40","v":1963},{"$f":"'Startovní listina'!F40","v":"BK Vísky"},"02:57:21"]
[86,20,{"$f":"'Startovní listina'!G94","v":"C"},{"$f":"'Startovní listina'!B94","v":101},{"$f":"'Startovní listina'!C94","v":"Skoták"},{"$f":"'Startovní listina'!D94","v":"Jiří"},{"$f":"'Startovní listina'!E94","v":1964},{"$f":"'Startovní listina'!F94","v":"SC Ráječko"},"03:00:39"]
[87,5,{"$f":"'Startovní listina'!G11","v":"H"},{"$f":"'Startovní listina'!B11","v":7},{"$f":"'Startovní listina'!C11","v":"Tesařová"},{"$f":"'Startovní listina'!D11","v":"Marie"},{"$f":"'Startovní listina'!E11","v":1954},{"$f":"'Startovní listina'!F11","v":"Křižanov"},"03:03:35"]
[88,16,{"$f":"'Startovní listina'!G79","v":"B"},{"$f":"'Startovní listina'!B79","v":85},{"$f":"'Startovní listina'!C79","v":"Konečný"},{"$f":"'Startovní listina'!D79","v":"Jaroslav"},{"$f":"'Startovní listina'!E79","v":1969},{"$f":"'Startovní listina'!F79","v":" Popůvky"},"03:06:01"]
[89,17,{"$f":"'Startovní listina'!G44","v":"B"},{"$f":"'Startovní listina'!B44","v":44},{"$f":"'Startovní listina'!C44","v":"Ónodi"},{"$f":"'Startovní listina'!D44","v":"Otto"},{"$f":"'Startovní listina'!E44","v":1974},{"$f":"'Startovní listina'!F44","v":"Brno"},"03:15:02"]
[90,7,{"$f":"'Startovní listina'!G39","v":"G"},{"$f":"'Startovní listina'!B39","v":38},{"$f":"'Startovní listina'!C39","v":"Ježová"},{"$f":"'Startovní listina'!D39","v":"Martina"},{"$f":"'Startovní listina'!E39","v":1975},{"$f":"'Startovní listina'!F39","v":"Brno"},"03:15:55"]
[91,1,{"$f":"'Startovní listina'!G10","v":"E"},{"$f":"'Startovní listina'!B10","v":6},{"$f":"'Startovní listina'!C10","v":"Holý"},{"$f":"'Startovní listina'!D10","v":"Josef"},{"$f":"'Startovní listina'!E10","v":1941},{"$f":"'Startovní listina'!F10","v":"Moravská Slávia Brno"},"03:15:56"]
[92,2,{"$f":"'Startovní listina'!G12","v":"E"},{"$f":"'Startovní listina'!B12","v":8},{"$f":"'Startovní listina'!C12","v":"Hrubý"},{"$f":"'Startovní listina'!D12","v":"Milan"},{"$f":"'Startovní listina'!E12","v":1938},{"$f":"'Startovní listina'!F12","v":"Blansko "},"03:32:17"]
[{"$f":"IF('Výsledková listina'!D97<>\"\",A96+1,\"\")","v":""},null,{"$f":"'Startovní listina'!G97","v":""},{"$f":"'Startovní listina'!B97","v":""},{"$f":"'Startovní listina'!C97","v":""},{"$f":"'Startovní listina'!D97","v":""},{"$f":"'Startovní listina'!E97","v":""},{"$f":"'Startovní listina'!F97","v":""}]
[{"$f":"IF('Výsledková listina'!D98<>\"\",A97+1,\"\")","v":""},null,{"$f":"'Startovní listina'!G98","v":""},{"$f":"'Startovní listina'!B98","v":""},{"$f":"'Startovní listina'!C98","v":""},{"$f":"'Startovní listina'!D98","v":""},{"$f":"'Startovní listina'!E98","v":""},{"$f":"'Startovní listina'!F98","v":""}]
[{"$f":"IF('Výsledková listina'!D99<>\"\",A98+1,\"\")","v":""},null,{"$f":"'Startovní listina'!G99","v":""},{"$f":"'Startovní listina'!B99","v":""},{"$f":"'Startovní listina'!C99","v":""},{"$f":"'Startovní listina'!D99","v":""},{"$f":"'Startovní listina'!E99","v":""},{"$f":"'Startovní listina'!F99","v":""}]
[{"$f":"IF('Výsledková listina'!D100<>\"\",A99+1,\"\")","v":""},null,{"$f":"'Startovní listina'!G100","v":""},{"$f":"'Startovní listina'!B100","v":""},{"$f":"'Startovní listina'!C100","v":""},{"$f":"'Startovní listina'!D100","v":""},{"$f":"'Startovní listina'!E100","v":""},{"$f":"'Startovní listina'!F100","v":""}]
[{"$f":"IF('Výsledková listina'!D101<>\"\",A100+1,\"\")","v":""},null,{"$f":"'Startovní listina'!G101","v":""},{"$f":"'Startovní listina'!B101","v":""},{"$f":"'Startovní listina'!C101","v":""},{"$f":"'Startovní listina'!D101","v":""},{"$f":"'Startovní listina'!E101","v":""},{"$f":"'Startovní listina'!F101","v":""}]
[{"$f":"IF('Výsledková listina'!D102<>\"\",A101+1,\"\")","v":""},null,{"$f":"'Startovní listina'!G102","v":""},{"$f":"'Startovní listina'!B102","v":""},{"$f":"'Startovní listina'!C102","v":""},{"$f":"'Startovní listina'!D102","v":""},{"$f":"'Startovní listina'!E102","v":""},{"$f":"'Startovní listina'!F102","v":""}]
[{"$f":"IF('Výsledková listina'!D103<>\"\",A102+1,\"\")","v":""},null,{"$f":"'Startovní listina'!G103","v":""},{"$f":"'Startovní listina'!B103","v":""},{"$f":"'Startovní listina'!C103","v":""},{"$f":"'Startovní listina'!D103","v":""},{"$f":"'Startovní listina'!E103","v":""},{"$f":"'Startovní listina'!F103","v":""}]
[{"$f":"IF('Výsledková listina'!D104<>\"\",A103+1,\"\")","v":""},null,{"$f":"'Startovní listina'!G104","v":""},{"$f":"'Startovní listina'!B104","v":""},{"$f":"'Startovní listina'!C104","v":""},{"$f":"'Startovní listina'!D104","v":""},{"$f":"'Startovní listina'!E104","v":""},{"$f":"'Startovní listina'!F104","v":""}]
[{"$f":"IF('Výsledková listina'!D105<>\"\",A104+1,\"\")","v":""},null,{"$f":"'Startovní listina'!G105","v":""},{"$f":"'Startovní listina'!B105","v":""},{"$f":"'Startovní listina'!C105","v":""},{"$f":"'Startovní listina'!D105","v":""},{"$f":"'Startovní listina'!E105","v":""},{"$f":"'Startovní listina'!F105","v":""}]
[{"$f":"IF('Výsledková listina'!D106<>\"\",A105+1,\"\")","v":""},null,{"$f":"'Startovní listina'!G106","v":""},{"$f":"'Startovní listina'!B106","v":""},{"$f":"'Startovní listina'!C106","v":""},{"$f":"'Startovní listina'!D106","v":""},{"$f":"'Startovní listina'!E106","v":""},{"$f":"'Startovní listina'!F106","v":""}]
[{"$f":"IF('Výsledková listina'!D107<>\"\",A106+1,\"\")","v":""},null,{"$f":"'Startovní listina'!G107","v":""},{"$f":"'Startovní listina'!B107","v":""},{"$f":"'Startovní listina'!C107","v":""},{"$f":"'Startovní listina'!D107","v":""},{"$f":"'Startovní listina'!E107","v":""},{"$f":"'Startovní listina'!F107","v":""}]
[{"$f":"IF('Výsledková listina'!D108<>\"\",A107+1,\"\")","v":""},null,{"$f":"'Startovní listina'!G108","v":""},{"$f":"'Startovní listina'!B108","v":""},{"$f":"'Startovní listina'!C108","v":""},{"$f":"'Startovní listina'!D108","v":""},{"$f":"'Startovní listina'!E108","v":""},{"$f":"'Startovní listina'!F108","v":""}]
[{"$f":"IF('Výsledková listina'!D109<>\"\",A108+1,\"\")","v":""},null,{"$f":"'Startovní listina'!G109","v":""},{"$f":"'Startovní listina'!B109","v":""},{"$f":"'Startovní listina'!C109","v":""},{"$f":"'Startovní listina'!D109","v":""},{"$f":"'Startovní listina'!E109","v":""},{"$f":"'Startovní listina'!F109","v":""}]
[{"$f":"IF('Výsledková listina'!D110<>\"\",A109+1,\"\")","v":""},null,{"$f":"'Startovní listina'!G110","v":""},{"$f":"'Startovní listina'!B110","v":""},{"$f":"'Startovní listina'!C110","v":""},{"$f":"'Startovní listina'!D110","v":""},{"$f":"'Startovní listina'!E110","v":""},{"$f":"'Startovní listina'!F110","v":""}]
[{"$f":"IF('Výsledková listina'!D111<>\"\",A110+1,\"\")","v":""},null,{"$f":"'Startovní listina'!G111","v":""},{"$f":"'Startovní listina'!B111","v":""},{"$f":"'Startovní listina'!C111","v":""},{"$f":"'Startovní listina'!D111","v":""},{"$f":"'Startovní listina'!E111","v":""},{"$f":"'Startovní listina'!F111","v":""}]
[{"$f":"IF('Výsledková listina'!D112<>\"\",A111+1,\"\")","v":""},null,{"$f":"'Startovní listina'!G112","v":""},{"$f":"'Startovní listina'!B112","v":""},{"$f":"'Startovní listina'!C112","v":""},{"$f":"'Startovní listina'!D112","v":""},{"$f":"'Startovní listina'!E112","v":""},{"$f":"'Startovní listina'!F112","v":""}]
[{"$f":"IF('Výsledková listina'!D113<>\"\",A112+1,\"\")","v":""},null,{"$f":"'Startovní listina'!G113","v":""},{"$f":"'Startovní listina'!B113","v":""},{"$f":"'Startovní listina'!C113","v":""},{"$f":"'Startovní listina'!D113","v":""},{"$f":"'Startovní listina'!E113","v":""},{"$f":"'Startovní listina'!F113","v":""}]
[{"$f":"IF('Výsledková listina'!D114<>\"\",A113+1,\"\")","v":""},null,{"$f":"'Startovní listina'!G114","v":""},{"$f":"'Startovní listina'!B114","v":""},{"$f":"'Startovní listina'!C114","v":""},{"$f":"'Startovní listina'!D114","v":""},{"$f":"'Startovní listina'!E114","v":""},{"$f":"'Startovní listina'!F114","v":""}]
[{"$f":"IF('Výsledková listina'!D115<>\"\",A114+1,\"\")","v":""},null,{"$f":"'Startovní listina'!G115","v":""},{"$f":"'Startovní listina'!B115","v":""},{"$f":"'Startovní listina'!C115","v":""},{"$f":"'Startovní listina'!D115","v":""},{"$f":"'Startovní listina'!E115","v":""},{"$f":"'Startovní listina'!F115","v":""}]
[{"$f":"IF('Výsledková listina'!D116<>\"\",A115+1,\"\")","v":""},null,{"$f":"'Startovní listina'!G116","v":""},{"$f":"'Startovní listina'!B116","v":""},{"$f":"'Startovní listina'!C116","v":""},{"$f":"'Startovní listina'!D116","v":""},{"$f":"'Startovní listina'!E116","v":""},{"$f":"'Startovní listina'!F116","v":""}]
[{"$f":"IF('Výsledková listina'!D117<>\"\",A116+1,\"\")","v":""},null,{"$f":"'Startovní listina'!G117","v":""},{"$f":"'Startovní listina'!B117","v":""},{"$f":"'Startovní listina'!C117","v":""},{"$f":"'Startovní listina'!D117","v":""},{"$f":"'Startovní listina'!E117","v":""},{"$f":"'Startovní listina'!F117","v":""}]
[{"$f":"IF('Výsledková listina'!D118<>\"\",A117+1,\"\")","v":""},null,{"$f":"'Startovní listina'!G118","v":""},{"$f":"'Startovní listina'!B118","v":""},{"$f":"'Startovní listina'!C118","v":""},{"$f":"'Startovní listina'!D118","v":""},{"$f":"'Startovní listina'!E118","v":""},{"$f":"'Startovní listina'!F118","v":""}]
[{"$f":"IF('Výsledková listina'!D119<>\"\",A118+1,\"\")","v":""},null,{"$f":"'Startovní listina'!G119","v":""},{"$f":"'Startovní listina'!B119","v":""},{"$f":"'Startovní listina'!C119","v":""},{"$f":"'Startovní listina'!D119","v":""},{"$f":"'Startovní listina'!E119","v":""},{"$f":"'Startovní listina'!F119","v":""}]
[{"$f":"IF('Výsledková listina'!D120<>\"\",A119+1,\"\")","v":""},null,{"$f":"'Startovní listina'!G120","v":""},{"$f":"'Startovní listina'!B120","v":""},{"$f":"'Startovní listina'!C120","v":""},{"$f":"'Startovní listina'!D120","v":""},{"$f":"'Startovní listina'!E120","v":""},{"$f":"'Startovní listina'!F120","v":""}]
[{"$f":"IF('Výsledková listina'!D121<>\"\",A120+1,\"\")","v":""},null,{"$f":"'Startovní listina'!G121","v":""},{"$f":"'Startovní listina'!B121","v":""},{"$f":"'Startovní listina'!C121","v":""},{"$f":"'Startovní listina'!D121","v":""},{"$f":"'Startovní listina'!E121","v":""},{"$f":"'Startovní listina'!F121","v":""}]
[{"$f":"IF('Výsledková listina'!D122<>\"\",A121+1,\"\")","v":""},null,{"$f":"'Startovní listina'!G122","v":""},{"$f":"'Startovní listina'!B122","v":""},{"$f":"'Startovní listina'!C122","v":""},{"$f":"'Startovní listina'!D122","v":""},{"$f":"'Startovní listina'!E122","v":""},{"$f":"'Startovní listina'!F122","v":""}]
[{"$f":"IF('Výsledková listina'!D123<>\"\",A122+1,\"\")","v":""},null,{"$f":"'Startovní listina'!G123","v":""},{"$f":"'Startovní listina'!B123","v":""},{"$f":"'Startovní listina'!C123","v":""},{"$f":"'Startovní listina'!D123","v":""},{"$f":"'Startovní listina'!E123","v":""},{"$f":"'Startovní listina'!F123","v":""}]
[{"$f":"IF('Výsledková listina'!D124<>\"\",A123+1,\"\")","v":""},null,{"$f":"'Startovní listina'!G124","v":""},{"$f":"'Startovní listina'!B124","v":""},{"$f":"'Startovní listina'!C124","v":""},{"$f":"'Startovní listina'!D124","v":""},{"$f":"'Startovní listina'!E124","v":""},{"$f":"'Startovní listina'!F124","v":""}]
[{"$f":"IF('Výsledková listina'!D125<>\"\",A124+1,\"\")","v":""},null,{"$f":"'Startovní listina'!G125","v":""},{"$f":"'Startovní listina'!B125","v":""},{"$f":"'Startovní listina'!C125","v":""},{"$f":"'Startovní listina'!D125","v":""},{"$f":"'Startovní listina'!E125","v":""},{"$f":"'Startovní listina'!F125","v":""}]
[{"$f":"IF('Výsledková listina'!D126<>\"\",A125+1,\"\")","v":""},null,{"$f":"'Startovní listina'!G126","v":""},{"$f":"'Startovní listina'!B126","v":""},{"$f":"'Startovní listina'!C126","v":""},{"$f":"'Startovní listina'!D126","v":""},{"$f":"'Startovní listina'!E126","v":""},{"$f":"'Startovní listina'!F126","v":""}]
[{"$f":"IF('Výsledková listina'!D127<>\"\",A126+1,\"\")","v":""},null,{"$f":"'Startovní listina'!G127","v":""},{"$f":"'Startovní listina'!B127","v":""},{"$f":"'Startovní listina'!C127","v":""},{"$f":"'Startovní listina'!D127","v":""},{"$f":"'Startovní listina'!E127","v":""},{"$f":"'Startovní listina'!F127","v":""}]
[{"$f":"IF('Výsledková listina'!D128<>\"\",A127+1,\"\")","v":""},null,{"$f":"'Startovní listina'!G128","v":""},{"$f":"'Startovní listina'!B128","v":""},{"$f":"'Startovní listina'!C128","v":""},{"$f":"'Startovní listina'!D128","v":""},{"$f":"'Startovní listina'!E128","v":""},{"$f":"'Startovní listina'!F128","v":""}]
[{"$f":"IF('Výsledková listina'!D129<>\"\",A128+1,\"\")","v":""},null,{"$f":"'Startovní listina'!G129","v":""},{"$f":"'Startovní listina'!B129","v":""},{"$f":"'Startovní listina'!C129","v":""},{"$f":"'Startovní listina'!D129","v":""},{"$f":"'Startovní listina'!E129","v":""},{"$f":"'Startovní listina'!F129","v":""}]
[{"$f":"IF('Výsledková listina'!D130<>\"\",A129+1,\"\")","v":""},null,{"$f":"'Startovní listina'!G130","v":""},{"$f":"'Startovní listina'!B130","v":""},{"$f":"'Startovní listina'!C130","v":""},{"$f":"'Startovní listina'!D130","v":""},{"$f":"'Startovní listina'!E130","v":""},{"$f":"'Startovní listina'!F130","v":""}]
[{"$f":"IF('Výsledková listina'!D131<>\"\",A130+1,\"\")","v":""},null,{"$f":"'Startovní listina'!G131","v":""},{"$f":"'Startovní listina'!B131","v":""},{"$f":"'Startovní listina'!C131","v":""},{"$f":"'Startovní listina'!D131","v":""},{"$f":"'Startovní listina'!E131","v":""},{"$f":"'Startovní listina'!F131","v":""}]
[{"$f":"IF('Výsledková listina'!D132<>\"\",A131+1,\"\")","v":""},null,{"$f":"'Startovní listina'!G132","v":""},{"$f":"'Startovní listina'!B132","v":""},{"$f":"'Startovní listina'!C132","v":""},{"$f":"'Startovní listina'!D132","v":""},{"$f":"'Startovní listina'!E132","v":""},{"$f":"'Startovní listina'!F132","v":""}]
[{"$f":"IF('Výsledková listina'!D133<>\"\",A132+1,\"\")","v":""},null,{"$f":"'Startovní listina'!G133","v":""},{"$f":"'Startovní listina'!B133","v":""},{"$f":"'Startovní listina'!C133","v":""},{"$f":"'Startovní listina'!D133","v":""},{"$f":"'Startovní listina'!E133","v":""},{"$f":"'Startovní listina'!F133","v":""}]
[{"$f":"IF('Výsledková listina'!D134<>\"\",A133+1,\"\")","v":""},null,{"$f":"'Startovní listina'!G134","v":""},{"$f":"'Startovní listina'!B134","v":""},{"$f":"'Startovní listina'!C134","v":""},{"$f":"'Startovní listina'!D134","v":""},{"$f":"'Startovní listina'!E134","v":""},{"$f":"'Startovní listina'!F134","v":""}]
[{"$f":"IF('Výsledková listina'!D135<>\"\",A134+1,\"\")","v":""},null,{"$f":"'Startovní listina'!G135","v":""},{"$f":"'Startovní listina'!B135","v":""},{"$f":"'Startovní listina'!C135","v":""},{"$f":"'Startovní listina'!D135","v":""},{"$f":"'Startovní listina'!E135","v":""},{"$f":"'Startovní listina'!F135","v":""}]
[{"$f":"IF('Výsledková listina'!D136<>\"\",A135+1,\"\")","v":""},null,{"$f":"'Startovní listina'!G136","v":""},{"$f":"'Startovní listina'!B136","v":""},{"$f":"'Startovní listina'!C136","v":""},{"$f":"'Startovní listina'!D136","v":""},{"$f":"'Startovní listina'!E136","v":""},{"$f":"'Startovní listina'!F136","v":""}]
[{"$f":"IF('Výsledková listina'!D137<>\"\",A136+1,\"\")","v":""},null,{"$f":"'Startovní listina'!G137","v":""},{"$f":"'Startovní listina'!B137","v":""},{"$f":"'Startovní listina'!C137","v":""},{"$f":"'Startovní listina'!D137","v":""},{"$f":"'Startovní listina'!E137","v":""},{"$f":"'Startovní listina'!F137","v":""}]
[{"$f":"IF('Výsledková listina'!D138<>\"\",A137+1,\"\")","v":""},null,{"$f":"'Startovní listina'!G138","v":""},{"$f":"'Startovní listina'!B138","v":""},{"$f":"'Startovní listina'!C138","v":""},{"$f":"'Startovní listina'!D138","v":""},{"$f":"'Startovní listina'!E138","v":""},{"$f":"'Startovní listina'!F138","v":""}]
[{"$f":"IF('Výsledková listina'!D139<>\"\",A138+1,\"\")","v":""},null,{"$f":"'Startovní listina'!G139","v":""},{"$f":"'Startovní listina'!B139","v":""},{"$f":"'Startovní listina'!C139","v":""},{"$f":"'Startovní listina'!D139","v":""},{"$f":"'Startovní listina'!E139","v":""},{"$f":"'Startovní listina'!F139","v":""}]
[{"$f":"IF('Výsledková listina'!D140<>\"\",A139+1,\"\")","v":""},null,{"$f":"'Startovní listina'!G140","v":""},{"$f":"'Startovní listina'!B140","v":""},{"$f":"'Startovní listina'!C140","v":""},{"$f":"'Startovní listina'!D140","v":""},{"$f":"'Startovní listina'!E140","v":""},{"$f":"'Startovní listina'!F140","v":""}]
[{"$f":"IF('Výsledková listina'!D141<>\"\",A140+1,\"\")","v":""},null,{"$f":"'Startovní listina'!G141","v":""},{"$f":"'Startovní listina'!B141","v":""},{"$f":"'Startovní listina'!C141","v":""},{"$f":"'Startovní listina'!D141","v":""},{"$f":"'Startovní listina'!E141","v":""},{"$f":"'Startovní listina'!F141","v":""}]
[]
[]
[]
[]
[]
[null,null,null,"seřadit podle kategorie a pak podle času"]

{"sheet":"Běh přes přehradu","index":3,"n_rows":53,"n_cols":11,"rows_kept":53,"cut":false,"hidden":false,"merged":[[0,0,0,7],[1,0,1,7]]}
[{"$f":"\"Běh přes přehradu \"&'Startovní listina'!A2","v":"Běh přes přehradu 10. ročník"}]
["2014-05-31"]
[null,"Příjmení","Jméno","Narození","Oddíl / Bydliště","Startovní číslo","Čas","Pohlaví"]
[1,"Janů","Pavel",1999,"Hvězda SKP Pardubice",112,"00:18:34",{"$f":"IF(LEN(B4)=0,\" \",IF(MID(B4,LEN(B4),1)=\"á\",\"Ž\",\"M\"))","v":"M"}]
[2,"Janů","Petr",2003,"Hvězda SKP Pardubice",109,"00:20:47","M"]
[3,"Coural","Jaroslav",2002,"TJ Jiskra Vír",107,"00:21:22","M"]
[4,"Stalmach","Tomáš",2002,"Vír",108,"00:22:04","M"]
[5,"Fučík","Štěpán",2002,"Prosetín",111,"00:22:17","M",null,null,","]
[6,"Pelíšek","Josef",1991,"Vír",104,"00:25:30","M"]
[7,"Štýbnar","Štěpán",2003,"SK Karate Jihlava",110,"00:25:52","M"]
[]
[1,"Blahová","Tereza",1999,"BK Vísky",106,"00:30:11",{"$f":"IF(LEN(B12)=0,\" \",IF(MID(B12,LEN(B12),1)=\"á\",\"Ž\",\"M\"))","v":"Ž"}]
[2,"Blahová","Jaroslava",1967,"BK Vísky",105,"00:30:12","Ž"]
[null,null,null,null,null,null,null," "]
[null,null,null,null,null,null,null," "]
[null,null,null,null,null,null,null," "]
[null,null,null,null,null,null,null," "]
[null,null,null,null,null,null,null," "]
[null,null,null,null,null,null,null," "]
[null,null,null,null,null,null,null," "]
[null,null,null,null,null,null,null,{"$f":"IF(LEN(B21)=0,\" \",IF(MID(B21,LEN(B21),1)=\"á\",\"Ž\",\"M\"))","v":" "}]
[null,null,null,null,null,null,null," "]
[null,null,null,null,null,null,null," "]
[null,null,null,null,null,null,null," "]
[null,null,null,null,null,null,null," "]
[null,null,null,null,null,null,null," "]
[null,null,null,null,null,null,null," "]
[null,null,null,null,null,null,null," "]
[null,null,null,null,null,null,null," "]
[null,null,null,null,null,null,null," "]
[null,null,null,null,null,null,null," "]
[null,null,null,null,null,null,null," "]
[null,null,null,null,null,null,null," "]
[null,null,null,null,null,null,null," "]
[null,null,null,null,null,null,null," "]
[null,null,null,null,null,null,null," "]
[null,null,null,null,null,null,null," "]
[null,null,null,null,null,null,null," "]
[null,null,null,null,null,null,null," "]
[null,null,null,null,null,null,null," "]
[null,null,null,null,null,null,null," "]
[null,null,null,null,null,null,null," "]
[null,null,null,null,null,null,null," "]
[null,null,null,null,null,null,null," "]
[null,null,null,null,null,null,null," "]
[null,null,null,null,null,null,null," "]
[null,null,null,null,null,null,null," "]
[null,null,null,null,null,null,null," "]
[null,null,null,null,null,null,null," "]
[null,null,null,null,null,null,null," "]
[null,null,null,null,null,null,null," "]
[null,null,null,null,null,null,null," "]
[null,null,null,null,null,null,null," "]

{"sheet":"mezičasy","index":4,"n_rows":2,"n_cols":6,"rows_kept":2,"cut":false,"hidden":true,"merged":[[0,0,0,1],[0,2,0,3],[0,4,0,5]]}
["5. km",null,"10. km",null,"22. km"]
["číslo","čas","číslo","čas","číslo","čas"]

{"sheet":"Výsledková listina A","index":5,"n_rows":88,"n_cols":11,"rows_kept":88,"cut":false,"hidden":false,"merged":[[0,0,0,8],[1,0,1,8],[1,10,13,14],[2,0,2,8],[87,3,93,7]]}
[{"$f":"\"Výsledková listina - Bystřickem kolem Vírské přehrady \"&'Prezenční listina'!O2","v":"Výsledková listina - Bystřickem kolem Vírské přehrady 2014"}]
[{"$f":"'Prezenční listina'!O2-2004&\". ročník\"","v":"10. ročník"},null,null,null,null,null,null,null,null,null,"\nPoté, co jsou dopsány časy VŠECH běžců, stisknout tlačítko 1.řazení \n\n\nVe sloupci B (Pořadí v kategorii) vytvořit posloupnou číselnou řadu pro každou kategorii a poté stisknout tlačítko 2.řazení\n\n\n                      !!! POZOR!!!\n\n               Použití tlačítek je nevratný krok!"]
["2014-05-31"]
["Celkové pořadí","Pořadí v kategorii","Kategorie","Startovní číslo","Příjmení","Jméno","Narození","Oddíl / Bydliště","Čas"]
[1,1,{"$f":"'Startovní listina'!G55","v":"A"},{"$f":"'Startovní listina'!B55","v":56},{"$f":"'Startovní listina'!C55","v":"Janů"},{"$f":"'Startovní listina'!D55","v":"Jan"},{"$f":"'Startovní listina'!E55","v":1993},{"$f":"'Startovní listina'!F55","v":"Hvězda SKP Pardubice"},"01:39:00"]
[2,2,{"$f":"'Startovní listina'!G24","v":"A"},{"$f":"'Startovní listina'!B24","v":21},{"$f":"'Startovní listina'!C24","v":"Kohut"},{"$f":"'Startovní listina'!D24","v":"Jan"},{"$f":"'Startovní listina'!E24","v":1985},{"$f":"'Startovní listina'!F24","v":"MIZUNO RELAX-FIT TEAM"},"01:39:45"]
[5,3,{"$f":"'Startovní listina'!G77","v":"A"},{"$f":"'Startovní listina'!B77","v":83},{"$f":"'Startovní listina'!C77","v":"Glier"},{"$f":"'Startovní listina'!D77","v":"Michal"},{"$f":"'Startovní listina'!E77","v":1982},{"$f":"'Startovní listina'!F77","v":"Moravská Slávia Brno"},"01:45:57"]
[7,4,{"$f":"'Startovní listina'!G59","v":"A"},{"$f":"'Startovní listina'!B59","v":60},{"$f":"'Startovní listina'!C59","v":"Borek"},{"$f":"'Startovní listina'!D59","v":"Aleš"},{"$f":"'Startovní listina'!E59","v":1977},{"$f":"'Startovní listina'!F59","v":"VSK UNI BRNO"},"01:49:51"]
[8,5,{"$f":"'Startovní listina'!G66","v":"A"},{"$f":"'Startovní listina'!B66","v":69},{"$f":"'Startovní listina'!C66","v":"Ondráček"},{"$f":"'Startovní listina'!D66","v":"Tomáš"},{"$f":"'Startovní listina'!E66","v":1977},{"$f":"'Startovní listina'!F66","v":"Sporty.cz Brno"},"01:50:59"]
[9,6,{"$f":"'Startovní listina'!G36","v":"A"},{"$f":"'Startovní listina'!B36","v":35},{"$f":"'Startovní listina'!C36","v":"Hrdina"},{"$f":"'Startovní listina'!D36","v":"Tomáš"},{"$f":"'Startovní listina'!E36","v":1979},{"$f":"'Startovní listina'!F36","v":"Mravský Krumlov"},"01:51:04"]
[10,7,{"$f":"'Startovní listina'!G84","v":"A"},{"$f":"'Startovní listina'!B84","v":91},{"$f":"'Startovní listina'!C84","v":"Cacek"},{"$f":"'Startovní listina'!D84","v":"Josef"},{"$f":"'Startovní listina'!E84","v":1978},{"$f":"'Startovní listina'!F84","v":"Cáca team Tišnov"},"01:51:11"]
[11,8,{"$f":"'Startovní listina'!G41","v":"A"},{"$f":"'Startovní listina'!B41","v":41},{"$f":"'Startovní listina'!C41","v":"Serban"},{"$f":"'Startovní listina'!D41","v":"Baciu"},{"$f":"'Startovní listina'!E41","v":1980},{"$f":"'Startovní listina'!F41","v":"Brno"},"01:51:26"]
[12,9,{"$f":"'Startovní listina'!G20","v":"A"},{"$f":"'Startovní listina'!B20","v":17},{"$f":"'Startovní listina'!C20","v":"Czerný"},{"$f":"'Startovní listina'!D20","v":"Pavel"},{"$f":"'Startovní listina'!E20","v":1981},{"$f":"'Startovní listina'!F20","v":"Karviná"},"01:51:30"]
[15,10,{"$f":"'Startovní listina'!G5","v":"A"},{"$f":"'Startovní listina'!B5","v":1},{"$f":"'Startovní listina'!C5","v":"Kratochvíl"},{"$f":"'Startovní listina'!D5","v":"Jaroslav"},{"$f":"'Startovní listina'!E5","v":1977},{"$f":"'Startovní listina'!F5","v":"SDH Hluboké"},"01:55:44"]
[16,11,{"$f":"'Startovní listina'!G13","v":"A"},{"$f":"'Startovní listina'!B13","v":9},{"$f":"'Startovní listina'!C13","v":"Klíma"},{"$f":"'Startovní listina'!D13","v":"Miroslav"},{"$f":"'Startovní listina'!E13","v":1975},{"$f":"'Startovní listina'!F13","v":"Mechanika Prostějov"},"01:56:08"]
[17,12,{"$f":"'Startovní listina'!G34","v":"A"},{"$f":"'Startovní listina'!B34","v":33},{"$f":"'Startovní listina'!C34","v":"Polcar"},{"$f":"'Startovní listina'!D34","v":"Jiří"},{"$f":"'Startovní listina'!E34","v":1977},{"$f":"'Startovní listina'!F34","v":"Farma Jiřího Chrásta - SK Veselí"},"01:56:28"]
[20,13,{"$f":"'Startovní listina'!G53","v":"A"},{"$f":"'Startovní listina'!B53","v":54},{"$f":"'Startovní listina'!C53","v":"Havránek"},{"$f":"'Startovní listina'!D53","v":"Jan"},{"$f":"'Startovní listina'!E53","v":1977},{"$f":"'Startovní listina'!F53","v":"Brno"},"01:58:25"]
[27,14,{"$f":"'Startovní listina'!G81","v":"A"},{"$f":"'Startovní listina'!B81","v":87},{"$f":"'Startovní listina'!C81","v":"Šorf"},{"$f":"'Startovní listina'!D81","v":"Ivo"},{"$f":"'Startovní listina'!E81","v":1975},{"$f":"'Startovní listina'!F81","v":"ABND Racing Team Bystřice nad Pernštejnem"},"02:04:20"]
[30,15,{"$f":"'Startovní listina'!G21","v":"A"},{"$f":"'Startovní listina'!B21","v":18},{"$f":"'Startovní listina'!C21","v":"Rozkoš"},{"$f":"'Startovní listina'!D21","v":"Tomáš"},{"$f":"'Startovní listina'!E21","v":1984},{"$f":"'Startovní listina'!F21","v":"Hradec Králové"},"02:06:35"]
[32,16,{"$f":"'Startovní listina'!G25","v":"A"},{"$f":"'Startovní listina'!B25","v":22},{"$f":"'Startovní listina'!C25","v":"Veškrna"},{"$f":"'Startovní listina'!D25","v":"Ivan"},{"$f":"'Startovní listina'!E25","v":1983},{"$f":"'Startovní listina'!F25","v":"Brno"},"02:07:15"]
[37,17,{"$f":"'Startovní listina'!G35","v":"A"},{"$f":"'Startovní listina'!B35","v":34},{"$f":"'Startovní listina'!C35","v":"Čech"},{"$f":"'Startovní listina'!D35","v":"Petr"},{"$f":"'Startovní listina'!E35","v":1981},{"$f":"'Startovní listina'!F35","v":"M K Prostějov"},"02:09:52"]
[39,18,{"$f":"'Startovní listina'!G16","v":"A"},{"$f":"'Startovní listina'!B16","v":12},{"$f":"'Startovní listina'!C16","v":"Kocur"},{"$f":"'Startovní listina'!D16","v":"Lukáš"},{"$f":"'Startovní listina'!E16","v":1977},{"$f":"'Startovní listina'!F16","v":"Otmarov"},"02:11:22"]
[42,19,{"$f":"'Startovní listina'!G82","v":"A"},{"$f":"'Startovní listina'!B82","v":89},{"$f":"'Startovní listina'!C82","v":"Knotek"},{"$f":"'Startovní listina'!D82","v":"David"},{"$f":"'Startovní listina'!E82","v":1982},{"$f":"'Startovní listina'!F82","v":"Brno"},"02:12:01"]
[43,20,{"$f":"'Startovní listina'!G32","v":"A"},{"$f":"'Startovní listina'!B32","v":30},{"$f":"'Startovní listina'!C32","v":"Stejskal"},{"$f":"'Startovní listina'!D32","v":"Petr"},{"$f":"'Startovní listina'!E32","v":1976},{"$f":"'Startovní listina'!F32","v":"Farma Jiřího Chrásta - SK Veselí"},"02:12:13"]
[46,21,{"$f":"'Startovní listina'!G72","v":"A"},{"$f":"'Startovní listina'!B72","v":76},{"$f":"'Startovní listina'!C72","v":"Šerák"},{"$f":"'Startovní listina'!D72","v":"Martin"},{"$f":"'Startovní listina'!E72","v":1978},{"$f":"'Startovní listina'!F72","v":"Sokol Bílovice nad Svitavou"},"02:13:25"]
[48,22,{"$f":"'Startovní listina'!G56","v":"A"},{"$f":"'Startovní listina'!B56","v":57},{"$f":"'Startovní listina'!C56","v":"Vacula"},{"$f":"'Startovní listina'!D56","v":"Ondřej"},{"$f":"'Startovní listina'!E56","v":1981},{"$f":"'Startovní listina'!F56","v":"Medlánky"},"02:13:42"]
[49,23,{"$f":"'Startovní listina'!G80","v":"A"},{"$f":"'Startovní listina'!B80","v":86},{"$f":"'Startovní listina'!C80","v":"Pavelka"},{"$f":"'Startovní listina'!D80","v":"Richard"},{"$f":"'Startovní listina'!E80","v":1981},{"$f":"'Startovní listina'!F80","v":"Brno"},"02:14:46"]
[51,24,{"$f":"'Startovní listina'!G58","v":"A"},{"$f":"'Startovní listina'!B58","v":59},{"$f":"'Startovní listina'!C58","v":"Poneš"},{"$f":"'Startovní listina'!D58","v":"Pavel"},{"$f":"'Startovní listina'!E58","v":1978},{"$f":"'Startovní listina'!F58","v":"TK Sokoli"},"02:15:56"]
[52,25,{"$f":"'Startovní listina'!G33","v":"A"},{"$f":"'Startovní listina'!B33","v":31},{"$f":"'Startovní listina'!C33","v":"Čech"},{"$f":"'Startovní listina'!D33","v":"Martin"},{"$f":"'Startovní listina'!E33","v":1978},{"$f":"'Startovní listina'!F33","v":"Farma Jiřího Chrásta - SK Veselí"},"02:16:09"]
[56,26,{"$f":"'Startovní listina'!G47","v":"A"},{"$f":"'Startovní listina'!B47","v":47},{"$f":"'Startovní listina'!C47","v":"Kupka"},{"$f":"'Startovní listina'!D47","v":"Pavel"},{"$f":"'Startovní listina'!E47","v":1975},{"$f":"'Startovní listina'!F47","v":"Lukovany"},"02:17:40"]
[60,27,{"$f":"'Startovní listina'!G65","v":"A"},{"$f":"'Startovní listina'!B65","v":67},{"$f":"'Startovní listina'!C65","v":"Ledvina"},{"$f":"'Startovní listina'!D65","v":"Luděk"},{"$f":"'Startovní listina'!E65","v":1976},{"$f":"'Startovní listina'!F65","v":"Bílovice nad Svitavou"},"02:20:39"]
[61,28,{"$f":"'Startovní listina'!G22","v":"A"},{"$f":"'Startovní listina'!B22","v":19},{"$f":"'Startovní listina'!C22","v":"Pozler"},{"$f":"'Startovní listina'!D22","v":"Jiří"},{"$f":"'Startovní listina'!E22","v":1983},{"$f":"'Startovní listina'!F22","v":"Hradec Králové"},"02:20:48"]
[68,29,{"$f":"'Startovní listina'!G88","v":"A"},{"$f":"'Startovní listina'!B88","v":95},{"$f":"'Startovní listina'!C88","v":"Filip"},{"$f":"'Startovní listina'!D88","v":"Rostislav"},{"$f":"'Startovní listina'!E88","v":1986},{"$f":"'Startovní listina'!F88","v":" Horolezecký oddíl Vír"},"02:27:53"]
[69,30,{"$f":"'Startovní listina'!G89","v":"A"},{"$f":"'Startovní listina'!B89","v":96},{"$f":"'Startovní listina'!C89","v":"Koutský"},{"$f":"'Startovní listina'!D89","v":"Tomáš"},{"$f":"'Startovní listina'!E89","v":1987},{"$f":"'Startovní listina'!F89","v":" Horolezecký oddíl Vír"},"02:27:53"]
[71,31,{"$f":"'Startovní listina'!G42","v":"A"},{"$f":"'Startovní listina'!B42","v":42},{"$f":"'Startovní listina'!C42","v":"Blaha"},{"$f":"'Startovní listina'!D42","v":"Rostislav"},{"$f":"'Startovní listina'!E42","v":1989},{"$f":"'Startovní listina'!F42","v":"BK Vísky"},"02:28:47"]
[76,32,{"$f":"'Startovní listina'!G9","v":"A"},{"$f":"'Startovní listina'!B9","v":5},{"$f":"'Startovní listina'!C9","v":"Milka"},{"$f":"'Startovní listina'!D9","v":"Zdeněk"},{"$f":"'Startovní listina'!E9","v":1984},{"$f":"'Startovní listina'!F9","v":"Brno"},"02:34:46"]
[79,33,{"$f":"'Startovní listina'!G48","v":"A"},{"$f":"'Startovní listina'!B48","v":48},{"$f":"'Startovní listina'!C48","v":"Kubík"},{"$f":"'Startovní listina'!D48","v":"Oldřich"},{"$f":"'Startovní listina'!E48","v":1981},{"$f":"'Startovní listina'!F48","v":"TJ Jiskra Vír"},"02:35:46"]
[{"$f":"IF('Výsledková listina A'!D38<>\"\",#REF!+1,\"\")","v":""},null,{"$f":"'Startovní listina'!G97","v":""},{"$f":"'Startovní listina'!B97","v":""},{"$f":"'Startovní listina'!C97","v":""},{"$f":"'Startovní listina'!D97","v":""},{"$f":"'Startovní listina'!E97","v":""},{"$f":"'Startovní listina'!F97","v":""}]
[{"$f":"IF('Výsledková listina A'!D39<>\"\",A38+1,\"\")","v":""},null,{"$f":"'Startovní listina'!G98","v":""},{"$f":"'Startovní listina'!B98","v":""},{"$f":"'Startovní listina'!C98","v":""},{"$f":"'Startovní listina'!D98","v":""},{"$f":"'Startovní listina'!E98","v":""},{"$f":"'Startovní listina'!F98","v":""}]
[{"$f":"IF('Výsledková listina A'!D40<>\"\",A39+1,\"\")","v":""},null,{"$f":"'Startovní listina'!G99","v":""},{"$f":"'Startovní listina'!B99","v":""},{"$f":"'Startovní listina'!C99","v":""},{"$f":"'Startovní listina'!D99","v":""},{"$f":"'Startovní listina'!E99","v":""},{"$f":"'Startovní listina'!F99","v":""}]
[{"$f":"IF('Výsledková listina A'!D41<>\"\",A40+1,\"\")","v":""},null,{"$f":"'Startovní listina'!G100","v":""},{"$f":"'Startovní listina'!B100","v":""},{"$f":"'Startovní listina'!C100","v":""},{"$f":"'Startovní listina'!D100","v":""},{"$f":"'Startovní listina'!E100","v":""},{"$f":"'Startovní listina'!F100","v":""}]
[{"$f":"IF('Výsledková listina A'!D42<>\"\",A41+1,\"\")","v":""},null,{"$f":"'Startovní listina'!G101","v":""},{"$f":"'Startovní listina'!B101","v":""},{"$f":"'Startovní listina'!C101","v":""},{"$f":"'Startovní listina'!D101","v":""},{"$f":"'Startovní listina'!E101","v":""},{"$f":"'Startovní listina'!F101","v":""}]
[{"$f":"IF('Výsledková listina A'!D43<>\"\",A42+1,\"\")","v":""},null,{"$f":"'Startovní listina'!G102","v":""},{"$f":"'Startovní listina'!B102","v":""},{"$f":"'Startovní listina'!C102","v":""},{"$f":"'Startovní listina'!D102","v":""},{"$f":"'Startovní listina'!E102","v":""},{"$f":"'Startovní listina'!F102","v":""}]
[{"$f":"IF('Výsledková listina A'!D44<>\"\",A43+1,\"\")","v":""},null,{"$f":"'Startovní listina'!G103","v":""},{"$f":"'Startovní listina'!B103","v":""},{"$f":"'Startovní listina'!C103","v":""},{"$f":"'Startovní listina'!D103","v":""},{"$f":"'Startovní listina'!E103","v":""},{"$f":"'Startovní listina'!F103","v":""}]
[{"$f":"IF('Výsledková listina A'!D45<>\"\",A44+1,\"\")","v":""},null,{"$f":"'Startovní listina'!G104","v":""},{"$f":"'Startovní listina'!B104","v":""},{"$f":"'Startovní listina'!C104","v":""},{"$f":"'Startovní listina'!D104","v":""},{"$f":"'Startovní listina'!E104","v":""},{"$f":"'Startovní listina'!F104","v":""}]
[{"$f":"IF('Výsledková listina A'!D46<>\"\",A45+1,\"\")","v":""},null,{"$f":"'Startovní listina'!G105","v":""},{"$f":"'Startovní listina'!B105","v":""},{"$f":"'Startovní listina'!C105","v":""},{"$f":"'Startovní listina'!D105","v":""},{"$f":"'Startovní listina'!E105","v":""},{"$f":"'Startovní listina'!F105","v":""}]
[{"$f":"IF('Výsledková listina A'!D47<>\"\",A46+1,\"\")","v":""},null,{"$f":"'Startovní listina'!G106","v":""},{"$f":"'Startovní listina'!B106","v":""},{"$f":"'Startovní listina'!C106","v":""},{"$f":"'Startovní listina'!D106","v":""},{"$f":"'Startovní listina'!E106","v":""},{"$f":"'Startovní listina'!F106","v":""}]
[{"$f":"IF('Výsledková listina A'!D48<>\"\",A47+1,\"\")","v":""},null,{"$f":"'Startovní listina'!G107","v":""},{"$f":"'Startovní listina'!B107","v":""},{"$f":"'Startovní listina'!C107","v":""},{"$f":"'Startovní listina'!D107","v":""},{"$f":"'Startovní listina'!E107","v":""},{"$f":"'Startovní listina'!F107","v":""}]
[{"$f":"IF('Výsledková listina A'!D49<>\"\",A48+1,\"\")","v":""},null,{"$f":"'Startovní listina'!G108","v":""},{"$f":"'Startovní listina'!B108","v":""},{"$f":"'Startovní listina'!C108","v":""},{"$f":"'Startovní listina'!D108","v":""},{"$f":"'Startovní listina'!E108","v":""},{"$f":"'Startovní listina'!F108","v":""}]
[{"$f":"IF('Výsledková listina A'!D50<>\"\",A49+1,\"\")","v":""},null,{"$f":"'Startovní listina'!G109","v":""},{"$f":"'Startovní listina'!B109","v":""},{"$f":"'Startovní listina'!C109","v":""},{"$f":"'Startovní listina'!D109","v":""},{"$f":"'Startovní listina'!E109","v":""},{"$f":"'Startovní listina'!F109","v":""}]
[{"$f":"IF('Výsledková listina A'!D51<>\"\",A50+1,\"\")","v":""},null,{"$f":"'Startovní listina'!G110","v":""},{"$f":"'Startovní listina'!B110","v":""},{"$f":"'Startovní listina'!C110","v":""},{"$f":"'Startovní listina'!D110","v":""},{"$f":"'Startovní listina'!E110","v":""},{"$f":"'Startovní listina'!F110","v":""}]
[{"$f":"IF('Výsledková listina A'!D52<>\"\",A51+1,\"\")","v":""},null,{"$f":"'Startovní listina'!G111","v":""},{"$f":"'Startovní listina'!B111","v":""},{"$f":"'Startovní listina'!C111","v":""},{"$f":"'Startovní listina'!D111","v":""},{"$f":"'Startovní listina'!E111","v":""},{"$f":"'Startovní listina'!F111","v":""}]
[{"$f":"IF('Výsledková listina A'!D53<>\"\",A52+1,\"\")","v":""},null,{"$f":"'Startovní listina'!G112","v":""},{"$f":"'Startovní listina'!B112","v":""},{"$f":"'Startovní listina'!C112","v":""},{"$f":"'Startovní listina'!D112","v":""},{"$f":"'Startovní listina'!E112","v":""},{"$f":"'Startovní listina'!F112","v":""}]
[{"$f":"IF('Výsledková listina A'!D54<>\"\",A53+1,\"\")","v":""},null,{"$f":"'Startovní listina'!G113","v":""},{"$f":"'Startovní listina'!B113","v":""},{"$f":"'Startovní listina'!C113","v":""},{"$f":"'Startovní listina'!D113","v":""},{"$f":"'Startovní listina'!E113","v":""},{"$f":"'Startovní listina'!F113","v":""}]
[{"$f":"IF('Výsledková listina A'!D55<>\"\",A54+1,\"\")","v":""},null,{"$f":"'Startovní listina'!G114","v":""},{"$f":"'Startovní listina'!B114","v":""},{"$f":"'Startovní listina'!C114","v":""},{"$f":"'Startovní listina'!D114","v":""},{"$f":"'Startovní listina'!E114","v":""},{"$f":"'Startovní listina'!F114","v":""}]
[{"$f":"IF('Výsledková listina A'!D56<>\"\",A55+1,\"\")","v":""},null,{"$f":"'Startovní listina'!G115","v":""},{"$f":"'Startovní listina'!B115","v":""},{"$f":"'Startovní listina'!C115","v":""},{"$f":"'Startovní listina'!D115","v":""},{"$f":"'Startovní listina'!E115","v":""},{"$f":"'Startovní listina'!F115","v":""}]
[{"$f":"IF('Výsledková listina A'!D57<>\"\",A56+1,\"\")","v":""},null,{"$f":"'Startovní listina'!G116","v":""},{"$f":"'Startovní listina'!B116","v":""},{"$f":"'Startovní listina'!C116","v":""},{"$f":"'Startovní listina'!D116","v":""},{"$f":"'Startovní listina'!E116","v":""},{"$f":"'Startovní listina'!F116","v":""}]
[{"$f":"IF('Výsledková listina A'!D58<>\"\",A57+1,\"\")","v":""},null,{"$f":"'Startovní listina'!G117","v":""},{"$f":"'Startovní listina'!B117","v":""},{"$f":"'Startovní listina'!C117","v":""},{"$f":"'Startovní listina'!D117","v":""},{"$f":"'Startovní listina'!E117","v":""},{"$f":"'Startovní listina'!F117","v":""}]
[{"$f":"IF('Výsledková listina A'!D59<>\"\",A58+1,\"\")","v":""},null,{"$f":"'Startovní listina'!G118","v":""},{"$f":"'Startovní listina'!B118","v":""},{"$f":"'Startovní listina'!C118","v":""},{"$f":"'Startovní listina'!D118","v":""},{"$f":"'Startovní listina'!E118","v":""},{"$f":"'Startovní listina'!F118","v":""}]
[{"$f":"IF('Výsledková listina A'!D60<>\"\",A59+1,\"\")","v":""},null,{"$f":"'Startovní listina'!G119","v":""},{"$f":"'Startovní listina'!B119","v":""},{"$f":"'Startovní listina'!C119","v":""},{"$f":"'Startovní listina'!D119","v":""},{"$f":"'Startovní listina'!E119","v":""},{"$f":"'Startovní listina'!F119","v":""}]
[{"$f":"IF('Výsledková listina A'!D61<>\"\",A60+1,\"\")","v":""},null,{"$f":"'Startovní listina'!G120","v":""},{"$f":"'Startovní listina'!B120","v":""},{"$f":"'Startovní listina'!C120","v":""},{"$f":"'Startovní listina'!D120","v":""},{"$f":"'Startovní listina'!E120","v":""},{"$f":"'Startovní listina'!F120","v":""}]
[{"$f":"IF('Výsledková listina A'!D62<>\"\",A61+1,\"\")","v":""},null,{"$f":"'Startovní listina'!G121","v":""},{"$f":"'Startovní listina'!B121","v":""},{"$f":"'Startovní listina'!C121","v":""},{"$f":"'Startovní listina'!D121","v":""},{"$f":"'Startovní listina'!E121","v":""},{"$f":"'Startovní listina'!F121","v":""}]
[{"$f":"IF('Výsledková listina A'!D63<>\"\",A62+1,\"\")","v":""},null,{"$f":"'Startovní listina'!G122","v":""},{"$f":"'Startovní listina'!B122","v":""},{"$f":"'Startovní listina'!C122","v":""},{"$f":"'Startovní listina'!D122","v":""},{"$f":"'Startovní listina'!E122","v":""},{"$f":"'Startovní listina'!F122","v":""}]
[{"$f":"IF('Výsledková listina A'!D64<>\"\",A63+1,\"\")","v":""},null,{"$f":"'Startovní listina'!G123","v":""},{"$f":"'Startovní listina'!B123","v":""},{"$f":"'Startovní listina'!C123","v":""},{"$f":"'Startovní listina'!D123","v":""},{"$f":"'Startovní listina'!E123","v":""},{"$f":"'Startovní listina'!F123","v":""}]
[{"$f":"IF('Výsledková listina A'!D65<>\"\",A64+1,\"\")","v":""},null,{"$f":"'Startovní listina'!G124","v":""},{"$f":"'Startovní listina'!B124","v":""},{"$f":"'Startovní listina'!C124","v":""},{"$f":"'Startovní listina'!D124","v":""},{"$f":"'Startovní listina'!E124","v":""},{"$f":"'Startovní listina'!F124","v":""}]
[{"$f":"IF('Výsledková listina A'!D66<>\"\",A65+1,\"\")","v":""},null,{"$f":"'Startovní listina'!G125","v":""},{"$f":"'Startovní listina'!B125","v":""},{"$f":"'Startovní listina'!C125","v":""},{"$f":"'Startovní listina'!D125","v":""},{"$f":"'Startovní listina'!E125","v":""},{"$f":"'Startovní listina'!F125","v":""}]
[{"$f":"IF('Výsledková listina A'!D67<>\"\",A66+1,\"\")","v":""},null,{"$f":"'Startovní listina'!G126","v":""},{"$f":"'Startovní listina'!B126","v":""},{"$f":"'Startovní listina'!C126","v":""},{"$f":"'Startovní listina'!D126","v":""},{"$f":"'Startovní listina'!E126","v":""},{"$f":"'Startovní listina'!F126","v":""}]
[{"$f":"IF('Výsledková listina A'!D68<>\"\",A67+1,\"\")","v":""},null,{"$f":"'Startovní listina'!G127","v":""},{"$f":"'Startovní listina'!B127","v":""},{"$f":"'Startovní listina'!C127","v":""},{"$f":"'Startovní listina'!D127","v":""},{"$f":"'Startovní listina'!E127","v":""},{"$f":"'Startovní listina'!F127","v":""}]
[{"$f":"IF('Výsledková listina A'!D69<>\"\",A68+1,\"\")","v":""},null,{"$f":"'Startovní listina'!G128","v":""},{"$f":"'Startovní listina'!B128","v":""},{"$f":"'Startovní listina'!C128","v":""},{"$f":"'Startovní listina'!D128","v":""},{"$f":"'Startovní listina'!E128","v":""},{"$f":"'Startovní listina'!F128","v":""}]
[{"$f":"IF('Výsledková listina A'!D70<>\"\",A69+1,\"\")","v":""},null,{"$f":"'Startovní listina'!G129","v":""},{"$f":"'Startovní listina'!B129","v":""},{"$f":"'Startovní listina'!C129","v":""},{"$f":"'Startovní listina'!D129","v":""},{"$f":"'Startovní listina'!E129","v":""},{"$f":"'Startovní listina'!F129","v":""}]
[{"$f":"IF('Výsledková listina A'!D71<>\"\",A70+1,\"\")","v":""},null,{"$f":"'Startovní listina'!G130","v":""},{"$f":"'Startovní listina'!B130","v":""},{"$f":"'Startovní listina'!C130","v":""},{"$f":"'Startovní listina'!D130","v":""},{"$f":"'Startovní listina'!E130","v":""},{"$f":"'Startovní listina'!F130","v":""}]
[{"$f":"IF('Výsledková listina A'!D72<>\"\",A71+1,\"\")","v":""},null,{"$f":"'Startovní listina'!G131","v":""},{"$f":"'Startovní listina'!B131","v":""},{"$f":"'Startovní listina'!C131","v":""},{"$f":"'Startovní listina'!D131","v":""},{"$f":"'Startovní listina'!E131","v":""},{"$f":"'Startovní listina'!F131","v":""}]
[{"$f":"IF('Výsledková listina A'!D73<>\"\",A72+1,\"\")","v":""},null,{"$f":"'Startovní listina'!G132","v":""},{"$f":"'Startovní listina'!B132","v":""},{"$f":"'Startovní listina'!C132","v":""},{"$f":"'Startovní listina'!D132","v":""},{"$f":"'Startovní listina'!E132","v":""},{"$f":"'Startovní listina'!F132","v":""}]
[{"$f":"IF('Výsledková listina A'!D74<>\"\",A73+1,\"\")","v":""},null,{"$f":"'Startovní listina'!G133","v":""},{"$f":"'Startovní listina'!B133","v":""},{"$f":"'Startovní listina'!C133","v":""},{"$f":"'Startovní listina'!D133","v":""},{"$f":"'Startovní listina'!E133","v":""},{"$f":"'Startovní listina'!F133","v":""}]
[{"$f":"IF('Výsledková listina A'!D75<>\"\",A74+1,\"\")","v":""},null,{"$f":"'Startovní listina'!G134","v":""},{"$f":"'Startovní listina'!B134","v":""},{"$f":"'Startovní listina'!C134","v":""},{"$f":"'Startovní listina'!D134","v":""},{"$f":"'Startovní listina'!E134","v":""},{"$f":"'Startovní listina'!F134","v":""}]
[{"$f":"IF('Výsledková listina A'!D76<>\"\",A75+1,\"\")","v":""},null,{"$f":"'Startovní listina'!G135","v":""},{"$f":"'Startovní listina'!B135","v":""},{"$f":"'Startovní listina'!C135","v":""},{"$f":"'Startovní listina'!D135","v":""},{"$f":"'Startovní listina'!E135","v":""},{"$f":"'Startovní listina'!F135","v":""}]
[{"$f":"IF('Výsledková listina A'!D77<>\"\",A76+1,\"\")","v":""},null,{"$f":"'Startovní listina'!G136","v":""},{"$f":"'Startovní listina'!B136","v":""},{"$f":"'Startovní listina'!C136","v":""},{"$f":"'Startovní listina'!D136","v":""},{"$f":"'Startovní listina'!E136","v":""},{"$f":"'Startovní listina'!F136","v":""}]
[{"$f":"IF('Výsledková listina A'!D78<>\"\",A77+1,\"\")","v":""},null,{"$f":"'Startovní listina'!G137","v":""},{"$f":"'Startovní listina'!B137","v":""},{"$f":"'Startovní listina'!C137","v":""},{"$f":"'Startovní listina'!D137","v":""},{"$f":"'Startovní listina'!E137","v":""},{"$f":"'Startovní listina'!F137","v":""}]
[{"$f":"IF('Výsledková listina A'!D79<>\"\",A78+1,\"\")","v":""},null,{"$f":"'Startovní listina'!G138","v":""},{"$f":"'Startovní listina'!B138","v":""},{"$f":"'Startovní listina'!C138","v":""},{"$f":"'Startovní listina'!D138","v":""},{"$f":"'Startovní listina'!E138","v":""},{"$f":"'Startovní listina'!F138","v":""}]
[{"$f":"IF('Výsledková listina A'!D80<>\"\",A79+1,\"\")","v":""},null,{"$f":"'Startovní listina'!G139","v":""},{"$f":"'Startovní listina'!B139","v":""},{"$f":"'Startovní listina'!C139","v":""},{"$f":"'Startovní listina'!D139","v":""},{"$f":"'Startovní listina'!E139","v":""},{"$f":"'Startovní listina'!F139","v":""}]
[{"$f":"IF('Výsledková listina A'!D81<>\"\",A80+1,\"\")","v":""},null,{"$f":"'Startovní listina'!G140","v":""},{"$f":"'Startovní listina'!B140","v":""},{"$f":"'Startovní listina'!C140","v":""},{"$f":"'Startovní listina'!D140","v":""},{"$f":"'Startovní listina'!E140","v":""},{"$f":"'Startovní listina'!F140","v":""}]
[{"$f":"IF('Výsledková listina A'!D82<>\"\",A81+1,\"\")","v":""},null,{"$f":"'Startovní listina'!G141","v":""},{"$f":"'Startovní listina'!B141","v":""},{"$f":"'Startovní listina'!C141","v":""},{"$f":"'Startovní listina'!D141","v":""},{"$f":"'Startovní listina'!E141","v":""},{"$f":"'Startovní listina'!F141","v":""}]
[]
[]
[]
[]
[]
[null,null,null,"seřadit podle kategorie a pak podle času"]

{"sheet":"Výsledková listina B","index":6,"n_rows":72,"n_cols":11,"rows_kept":72,"cut":false,"hidden":false,"merged":[[0,0,0,8],[1,0,1,8],[1,10,3,14],[2,0,2,8],[71,3,77,7]]}
[{"$f":"\"Výsledková listina - Bystřickem kolem Vírské přehrady \"&'Prezenční listina'!O2","v":"Výsledková listina - Bystřickem kolem Vírské přehrady 2014"}]
[{"$f":"'Prezenční listina'!O2-2004&\". ročník\"","v":"10. ročník"},null,null,null,null,null,null,null,null,null,"\nPoté, co jsou dopsány časy VŠECH běžců, stisknout tlačítko 1.řazení \n\n\nVe sloupci B (Pořadí v kategorii) vytvořit posloupnou číselnou řadu pro každou kategorii a poté stisknout tlačítko 2.řazení\n\n\n                      !!! POZOR!!!\n\n               Použití tlačítek je nevratný krok!"]
["2014-05-31"]
["Celkové pořadí","Pořadí v kategorii","Kategorie","Startovní číslo","Příjmení","Jméno","Narození","Oddíl / Bydliště","Čas"]
[3,1,{"$f":"'Startovní listina'!G73","v":"B"},{"$f":"'Startovní listina'!B73","v":77},{"$f":"'Startovní listina'!C73","v":"Orálek"},{"$f":"'Startovní listina'!D73","v":"Daniel"},{"$f":"'Startovní listina'!E73","v":1970},{"$f":"'Startovní listina'!F73","v":"AC Moravská Slávia - Adidas"},"01:45:40"]
[4,2,{"$f":"'Startovní listina'!G27","v":"B"},{"$f":"'Startovní listina'!B27","v":24},{"$f":"'Startovní listina'!C27","v":"Žák"},{"$f":"'Startovní listina'!D27","v":"Jiří"},{"$f":"'Startovní listina'!E27","v":1971},{"$f":"'Startovní listina'!F27","v":"MK Seitl Ostrava"},"01:45:47"]
[6,3,{"$f":"'Startovní listina'!G19","v":"B"},{"$f":"'Startovní listina'!B19","v":16},{"$f":"'Startovní listina'!C19","v":"Štýbnar"},{"$f":"'Startovní listina'!D19","v":"Zbyněk"},{"$f":"'Startovní listina'!E19","v":1974},{"$f":"'Startovní listina'!F19","v":"Běžec Vysočiny Jihlava"},"01:48:08"]
[18,4,{"$f":"'Startovní listina'!G57","v":"B"},{"$f":"'Startovní listina'!B57","v":58},{"$f":"'Startovní listina'!C57","v":"Sedlák"},{"$f":"'Startovní listina'!D57","v":"Pavel"},{"$f":"'Startovní listina'!E57","v":1971},{"$f":"'Startovní listina'!F57","v":"Slatiňany"},"01:57:35"]
[22,5,{"$f":"'Startovní listina'!G95","v":"B"},{"$f":"'Startovní listina'!B95","v":102},{"$f":"'Startovní listina'!C95","v":"Konečný"},{"$f":"'Startovní listina'!D95","v":"Libor"},{"$f":"'Startovní listina'!E95","v":1971},{"$f":"'Startovní listina'!F95","v":"Kuřim"},"02:01:32"]
[26,6,{"$f":"'Startovní listina'!G52","v":"B"},{"$f":"'Startovní listina'!B52","v":53},{"$f":"'Startovní listina'!C52","v":"Alman"},{"$f":"'Startovní listina'!D52","v":"Dušan"},{"$f":"'Startovní listina'!E52","v":1967},{"$f":"'Startovní listina'!F52","v":"Babice"},"02:03:31"]
[28,7,{"$f":"'Startovní listina'!G60","v":"B"},{"$f":"'Startovní listina'!B60","v":61},{"$f":"'Startovní listina'!C60","v":"Fučík"},{"$f":"'Startovní listina'!D60","v":"Jaroslav"},{"$f":"'Startovní listina'!E60","v":1974},{"$f":"'Startovní listina'!F60","v":"Prosetín"},"02:04:51"]
[29,8,{"$f":"'Startovní listina'!G7","v":"B"},{"$f":"'Startovní listina'!B7","v":3},{"$f":"'Startovní listina'!C7","v":"Zavadil"},{"$f":"'Startovní listina'!D7","v":"Alexandr"},{"$f":"'Startovní listina'!E7","v":1966},{"$f":"'Startovní listina'!F7","v":"Kondor Jeseník"},"02:06:25"]
[36,9,{"$f":"'Startovní listina'!G15","v":"B"},{"$f":"'Startovní listina'!B15","v":11},{"$f":"'Startovní listina'!C15","v":"Kropáček"},{"$f":"'Startovní listina'!D15","v":"Jaroslav"},{"$f":"'Startovní listina'!E15","v":1970},{"$f":"'Startovní listina'!F15","v":"Brno"},"02:09:49"]
[40,10,{"$f":"'Startovní listina'!G8","v":"B"},{"$f":"'Startovní listina'!B8","v":4},{"$f":"'Startovní listina'!C8","v":"Hejtmánek"},{"$f":"'Startovní listina'!D8","v":"Miroslav"},{"$f":"'Startovní listina'!E8","v":1970},{"$f":"'Startovní listina'!F8","v":"Brno"},"02:11:38"]
[41,11,{"$f":"'Startovní listina'!G86","v":"B"},{"$f":"'Startovní listina'!B86","v":93},{"$f":"'Startovní listina'!C86","v":"Skřivánek"},{"$f":"'Startovní listina'!D86","v":"Petr"},{"$f":"'Startovní listina'!E86","v":1966},{"$f":"'Startovní listina'!F86","v":"LRS Vyškov"},"02:11:44"]
[53,12,{"$f":"'Startovní listina'!G76","v":"B"},{"$f":"'Startovní listina'!B76","v":82},{"$f":"'Startovní listina'!C76","v":"Janek"},{"$f":"'Startovní listina'!D76","v":"Petr"},{"$f":"'Startovní listina'!E76","v":1969},{"$f":"'Startovní listina'!F76","v":"Brno"},"02:16:18"]
[58,13,{"$f":"'Startovní listina'!G93","v":"B"},{"$f":"'Startovní listina'!B93","v":100},{"$f":"'Startovní listina'!C93","v":"Novotný"},{"$f":"'Startovní listina'!D93","v":"Petr"},{"$f":"'Startovní listina'!E93","v":1965},{"$f":"'Startovní listina'!F93","v":"Kuřim"},"02:18:46"]
[78,14,{"$f":"'Startovní listina'!G91","v":"B"},{"$f":"'Startovní listina'!B91","v":98},{"$f":"'Startovní listina'!C91","v":"Tyleček"},{"$f":"'Startovní listina'!D91","v":"Pavel"},{"$f":"'Startovní listina'!E91","v":1973},{"$f":"'Startovní listina'!F91","v":"Brno - Jundrov"},"02:35:45"]
[83,15,{"$f":"'Startovní listina'!G96","v":"B"},{"$f":"'Startovní listina'!B96","v":103},{"$f":"'Startovní listina'!C96","v":"Jaskulka"},{"$f":"'Startovní listina'!D96","v":"Martin"},{"$f":"'Startovní listina'!E96","v":1968},{"$f":"'Startovní listina'!F96","v":"Kuřim"},"02:49:02"]
[88,16,{"$f":"'Startovní listina'!G79","v":"B"},{"$f":"'Startovní listina'!B79","v":85},{"$f":"'Startovní listina'!C79","v":"Konečný"},{"$f":"'Startovní listina'!D79","v":"Jaroslav"},{"$f":"'Startovní listina'!E79","v":1969},{"$f":"'Startovní listina'!F79","v":" Popůvky"},"03:06:01"]
[89,17,{"$f":"'Startovní listina'!G44","v":"B"},{"$f":"'Startovní listina'!B44","v":44},{"$f":"'Startovní listina'!C44","v":"Ónodi"},{"$f":"'Startovní listina'!D44","v":"Otto"},{"$f":"'Startovní listina'!E44","v":1974},{"$f":"'Startovní listina'!F44","v":"Brno"},"03:15:02"]
[{"$f":"IF('Výsledková listina B'!D22<>\"\",#REF!+1,\"\")","v":""},null,{"$f":"'Startovní listina'!G97","v":""},{"$f":"'Startovní listina'!B97","v":""},{"$f":"'Startovní listina'!C97","v":""},{"$f":"'Startovní listina'!D97","v":""},{"$f":"'Startovní listina'!E97","v":""},{"$f":"'Startovní listina'!F97","v":""}]
[{"$f":"IF('Výsledková listina B'!D23<>\"\",A22+1,\"\")","v":""},null,{"$f":"'Startovní listina'!G98","v":""},{"$f":"'Startovní listina'!B98","v":""},{"$f":"'Startovní listina'!C98","v":""},{"$f":"'Startovní listina'!D98","v":""},{"$f":"'Startovní listina'!E98","v":""},{"$f":"'Startovní listina'!F98","v":""}]
[{"$f":"IF('Výsledková listina B'!D24<>\"\",A23+1,\"\")","v":""},null,{"$f":"'Startovní listina'!G99","v":""},{"$f":"'Startovní listina'!B99","v":""},{"$f":"'Startovní listina'!C99","v":""},{"$f":"'Startovní listina'!D99","v":""},{"$f":"'Startovní listina'!E99","v":""},{"$f":"'Startovní listina'!F99","v":""}]
[{"$f":"IF('Výsledková listina B'!D25<>\"\",A24+1,\"\")","v":""},null,{"$f":"'Startovní listina'!G100","v":""},{"$f":"'Startovní listina'!B100","v":""},{"$f":"'Startovní listina'!C100","v":""},{"$f":"'Startovní listina'!D100","v":""},{"$f":"'Startovní listina'!E100","v":""},{"$f":"'Startovní listina'!F100","v":""}]
[{"$f":"IF('Výsledková listina B'!D26<>\"\",A25+1,\"\")","v":""},null,{"$f":"'Startovní listina'!G101","v":""},{"$f":"'Startovní listina'!B101","v":""},{"$f":"'Startovní listina'!C101","v":""},{"$f":"'Startovní listina'!D101","v":""},{"$f":"'Startovní listina'!E101","v":""},{"$f":"'Startovní listina'!F101","v":""}]
[{"$f":"IF('Výsledková listina B'!D27<>\"\",A26+1,\"\")","v":""},null,{"$f":"'Startovní listina'!G102","v":""},{"$f":"'Startovní listina'!B102","v":""},{"$f":"'Startovní listina'!C102","v":""},{"$f":"'Startovní listina'!D102","v":""},{"$f":"'Startovní listina'!E102","v":""},{"$f":"'Startovní listina'!F102","v":""}]
[{"$f":"IF('Výsledková listina B'!D28<>\"\",A27+1,\"\")","v":""},null,{"$f":"'Startovní listina'!G103","v":""},{"$f":"'Startovní listina'!B103","v":""},{"$f":"'Startovní listina'!C103","v":""},{"$f":"'Startovní listina'!D103","v":""},{"$f":"'Startovní listina'!E103","v":""},{"$f":"'Startovní listina'!F103","v":""}]
[{"$f":"IF('Výsledková listina B'!D29<>\"\",A28+1,\"\")","v":""},null,{"$f":"'Startovní listina'!G104","v":""},{"$f":"'Startovní listina'!B104","v":""},{"$f":"'Startovní listina'!C104","v":""},{"$f":"'Startovní listina'!D104","v":""},{"$f":"'Startovní listina'!E104","v":""},{"$f":"'Startovní listina'!F104","v":""}]
[{"$f":"IF('Výsledková listina B'!D30<>\"\",A29+1,\"\")","v":""},null,{"$f":"'Startovní listina'!G105","v":""},{"$f":"'Startovní listina'!B105","v":""},{"$f":"'Startovní listina'!C105","v":""},{"$f":"'Startovní listina'!D105","v":""},{"$f":"'Startovní listina'!E105","v":""},{"$f":"'Startovní listina'!F105","v":""}]
[{"$f":"IF('Výsledková listina B'!D31<>\"\",A30+1,\"\")","v":""},null,{"$f":"'Startovní listina'!G106","v":""},{"$f":"'Startovní listina'!B106","v":""},{"$f":"'Startovní listina'!C106","v":""},{"$f":"'Startovní listina'!D106","v":""},{"$f":"'Startovní listina'!E106","v":""},{"$f":"'Startovní listina'!F106","v":""}]
[{"$f":"IF('Výsledková listina B'!D32<>\"\",A31+1,\"\")","v":""},null,{"$f":"'Startovní listina'!G107","v":""},{"$f":"'Startovní listina'!B107","v":""},{"$f":"'Startovní listina'!C107","v":""},{"$f":"'Startovní listina'!D107","v":""},{"$f":"'Startovní listina'!E107","v":""},{"$f":"'Startovní listina'!F107","v":""}]
[{"$f":"IF('Výsledková listina B'!D33<>\"\",A32+1,\"\")","v":""},null,{"$f":"'Startovní listina'!G108","v":""},{"$f":"'Startovní listina'!B108","v":""},{"$f":"'Startovní listina'!C108","v":""},{"$f":"'Startovní listina'!D108","v":""},{"$f":"'Startovní listina'!E108","v":""},{"$f":"'Startovní listina'!F108","v":""}]
[{"$f":"IF('Výsledková listina B'!D34<>\"\",A33+1,\"\")","v":""},null,{"$f":"'Startovní listina'!G109","v":""},{"$f":"'Startovní listina'!B109","v":""},{"$f":"'Startovní listina'!C109","v":""},{"$f":"'Startovní listina'!D109","v":""},{"$f":"'Startovní listina'!E109","v":""},{"$f":"'Startovní listina'!F109","v":""}]
[{"$f":"IF('Výsledková listina B'!D35<>\"\",A34+1,\"\")","v":""},null,{"$f":"'Startovní listina'!G110","v":""},{"$f":"'Startovní listina'!B110","v":""},{"$f":"'Startovní listina'!C110","v":""},{"$f":"'Startovní listina'!D110","v":""},{"$f":"'Startovní listina'!E110","v":""},{"$f":"'Startovní listina'!F110","v":""}]
[{"$f":"IF('Výsledková listina B'!D36<>\"\",A35+1,\"\")","v":""},null,{"$f":"'Startovní listina'!G111","v":""},{"$f":"'Startovní listina'!B111","v":""},{"$f":"'Startovní listina'!C111","v":""},{"$f":"'Startovní listina'!D111","v":""},{"$f":"'Startovní listina'!E111","v":""},{"$f":"'Startovní listina'!F111","v":""}]
[{"$f":"IF('Výsledková listina B'!D37<>\"\",A36+1,\"\")","v":""},null,{"$f":"'Startovní listina'!G112","v":""},{"$f":"'Startovní listina'!B112","v":""},{"$f":"'Startovní listina'!C112","v":""},{"$f":"'Startovní listina'!D112","v":""},{"$f":"'Startovní listina'!E112","v":""},{"$f":"'Startovní listina'!F112","v":""}]
[{"$f":"IF('Výsledková listina B'!D38<>\"\",A37+1,\"\")","v":""},null,{"$f":"'Startovní listina'!G113","v":""},{"$f":"'Startovní listina'!B113","v":""},{"$f":"'Startovní listina'!C113","v":""},{"$f":"'Startovní listina'!D113","v":""},{"$f":"'Startovní listina'!E113","v":""},{"$f":"'Startovní listina'!F113","v":""}]
[{"$f":"IF('Výsledková listina B'!D39<>\"\",A38+1,\"\")","v":""},null,{"$f":"'Startovní listina'!G114","v":""},{"$f":"'Startovní listina'!B114","v":""},{"$f":"'Startovní listina'!C114","v":""},{"$f":"'Startovní listina'!D114","v":""},{"$f":"'Startovní listina'!E114","v":""},{"$f":"'Startovní listina'!F114","v":""}]
[{"$f":"IF('Výsledková listina B'!D40<>\"\",A39+1,\"\")","v":""},null,{"$f":"'Startovní listina'!G115","v":""},{"$f":"'Startovní listina'!B115","v":""},{"$f":"'Startovní listina'!C115","v":""},{"$f":"'Startovní listina'!D115","v":""},{"$f":"'Startovní listina'!E115","v":""},{"$f":"'Startovní listina'!F115","v":""}]
[{"$f":"IF('Výsledková listina B'!D41<>\"\",A40+1,\"\")","v":""},null,{"$f":"'Startovní listina'!G116","v":""},{"$f":"'Startovní listina'!B116","v":""},{"$f":"'Startovní listina'!C116","v":""},{"$f":"'Startovní listina'!D116","v":""},{"$f":"'Startovní listina'!E116","v":""},{"$f":"'Startovní listina'!F116","v":""}]
[{"$f":"IF('Výsledková listina B'!D42<>\"\",A41+1,\"\")","v":""},null,{"$f":"'Startovní listina'!G117","v":""},{"$f":"'Startovní listina'!B117","v":""},{"$f":"'Startovní listina'!C117","v":""},{"$f":"'Startovní listina'!D117","v":""},{"$f":"'Startovní listina'!E117","v":""},{"$f":"'Startovní listina'!F117","v":""}]
[{"$f":"IF('Výsledková listina B'!D43<>\"\",A42+1,\"\")","v":""},null,{"$f":"'Startovní listina'!G118","v":""},{"$f":"'Startovní listina'!B118","v":""},{"$f":"'Startovní listina'!C118","v":""},{"$f":"'Startovní listina'!D118","v":""},{"$f":"'Startovní listina'!E118","v":""},{"$f":"'Startovní listina'!F118","v":""}]
[{"$f":"IF('Výsledková listina B'!D44<>\"\",A43+1,\"\")","v":""},null,{"$f":"'Startovní listina'!G119","v":""},{"$f":"'Startovní listina'!B119","v":""},{"$f":"'Startovní listina'!C119","v":""},{"$f":"'Startovní listina'!D119","v":""},{"$f":"'Startovní listina'!E119","v":""},{"$f":"'Startovní listina'!F119","v":""}]
[{"$f":"IF('Výsledková listina B'!D45<>\"\",A44+1,\"\")","v":""},null,{"$f":"'Startovní listina'!G120","v":""},{"$f":"'Startovní listina'!B120","v":""},{"$f":"'Startovní listina'!C120","v":""},{"$f":"'Startovní listina'!D120","v":""},{"$f":"'Startovní listina'!E120","v":""},{"$f":"'Startovní listina'!F120","v":""}]
[{"$f":"IF('Výsledková listina B'!D46<>\"\",A45+1,\"\")","v":""},null,{"$f":"'Startovní listina'!G121","v":""},{"$f":"'Startovní listina'!B121","v":""},{"$f":"'Startovní listina'!C121","v":""},{"$f":"'Startovní listina'!D121","v":""},{"$f":"'Startovní listina'!E121","v":""},{"$f":"'Startovní listina'!F121","v":""}]
[{"$f":"IF('Výsledková listina B'!D47<>\"\",A46+1,\"\")","v":""},null,{"$f":"'Startovní listina'!G122","v":""},{"$f":"'Startovní listina'!B122","v":""},{"$f":"'Startovní listina'!C122","v":""},{"$f":"'Startovní listina'!D122","v":""},{"$f":"'Startovní listina'!E122","v":""},{"$f":"'Startovní listina'!F122","v":""}]
[{"$f":"IF('Výsledková listina B'!D48<>\"\",A47+1,\"\")","v":""},null,{"$f":"'Startovní listina'!G123","v":""},{"$f":"'Startovní listina'!B123","v":""},{"$f":"'Startovní listina'!C123","v":""},{"$f":"'Startovní listina'!D123","v":""},{"$f":"'Startovní listina'!E123","v":""},{"$f":"'Startovní listina'!F123","v":""}]
[{"$f":"IF('Výsledková listina B'!D49<>\"\",A48+1,\"\")","v":""},null,{"$f":"'Startovní listina'!G124","v":""},{"$f":"'Startovní listina'!B124","v":""},{"$f":"'Startovní listina'!C124","v":""},{"$f":"'Startovní listina'!D124","v":""},{"$f":"'Startovní listina'!E124","v":""},{"$f":"'Startovní listina'!F124","v":""}]
[{"$f":"IF('Výsledková listina B'!D50<>\"\",A49+1,\"\")","v":""},null,{"$f":"'Startovní listina'!G125","v":""},{"$f":"'Startovní listina'!B125","v":""},{"$f":"'Startovní listina'!C125","v":""},{"$f":"'Startovní listina'!D125","v":""},{"$f":"'Startovní listina'!E125","v":""},{"$f":"'Startovní listina'!F125","v":""}]
[{"$f":"IF('Výsledková listina B'!D51<>\"\",A50+1,\"\")","v":""},null,{"$f":"'Startovní listina'!G126","v":""},{"$f":"'Startovní listina'!B126","v":""},{"$f":"'Startovní listina'!C126","v":""},{"$f":"'Startovní listina'!D126","v":""},{"$f":"'Startovní listina'!E126","v":""},{"$f":"'Startovní listina'!F126","v":""}]
[{"$f":"IF('Výsledková listina B'!D52<>\"\",A51+1,\"\")","v":""},null,{"$f":"'Startovní listina'!G127","v":""},{"$f":"'Startovní listina'!B127","v":""},{"$f":"'Startovní listina'!C127","v":""},{"$f":"'Startovní listina'!D127","v":""},{"$f":"'Startovní listina'!E127","v":""},{"$f":"'Startovní listina'!F127","v":""}]
[{"$f":"IF('Výsledková listina B'!D53<>\"\",A52+1,\"\")","v":""},null,{"$f":"'Startovní listina'!G128","v":""},{"$f":"'Startovní listina'!B128","v":""},{"$f":"'Startovní listina'!C128","v":""},{"$f":"'Startovní listina'!D128","v":""},{"$f":"'Startovní listina'!E128","v":""},{"$f":"'Startovní listina'!F128","v":""}]
[{"$f":"IF('Výsledková listina B'!D54<>\"\",A53+1,\"\")","v":""},null,{"$f":"'Startovní listina'!G129","v":""},{"$f":"'Startovní listina'!B129","v":""},{"$f":"'Startovní listina'!C129","v":""},{"$f":"'Startovní listina'!D129","v":""},{"$f":"'Startovní listina'!E129","v":""},{"$f":"'Startovní listina'!F129","v":""}]
[{"$f":"IF('Výsledková listina B'!D55<>\"\",A54+1,\"\")","v":""},null,{"$f":"'Startovní listina'!G130","v":""},{"$f":"'Startovní listina'!B130","v":""},{"$f":"'Startovní listina'!C130","v":""},{"$f":"'Startovní listina'!D130","v":""},{"$f":"'Startovní listina'!E130","v":""},{"$f":"'Startovní listina'!F130","v":""}]
[{"$f":"IF('Výsledková listina B'!D56<>\"\",A55+1,\"\")","v":""},null,{"$f":"'Startovní listina'!G131","v":""},{"$f":"'Startovní listina'!B131","v":""},{"$f":"'Startovní listina'!C131","v":""},{"$f":"'Startovní listina'!D131","v":""},{"$f":"'Startovní listina'!E131","v":""},{"$f":"'Startovní listina'!F131","v":""}]
[{"$f":"IF('Výsledková listina B'!D57<>\"\",A56+1,\"\")","v":""},null,{"$f":"'Startovní listina'!G132","v":""},{"$f":"'Startovní listina'!B132","v":""},{"$f":"'Startovní listina'!C132","v":""},{"$f":"'Startovní listina'!D132","v":""},{"$f":"'Startovní listina'!E132","v":""},{"$f":"'Startovní listina'!F132","v":""}]
[{"$f":"IF('Výsledková listina B'!D58<>\"\",A57+1,\"\")","v":""},null,{"$f":"'Startovní listina'!G133","v":""},{"$f":"'Startovní listina'!B133","v":""},{"$f":"'Startovní listina'!C133","v":""},{"$f":"'Startovní listina'!D133","v":""},{"$f":"'Startovní listina'!E133","v":""},{"$f":"'Startovní listina'!F133","v":""}]
[{"$f":"IF('Výsledková listina B'!D59<>\"\",A58+1,\"\")","v":""},null,{"$f":"'Startovní listina'!G134","v":""},{"$f":"'Startovní listina'!B134","v":""},{"$f":"'Startovní listina'!C134","v":""},{"$f":"'Startovní listina'!D134","v":""},{"$f":"'Startovní listina'!E134","v":""},{"$f":"'Startovní listina'!F134","v":""}]
[{"$f":"IF('Výsledková listina B'!D60<>\"\",A59+1,\"\")","v":""},null,{"$f":"'Startovní listina'!G135","v":""},{"$f":"'Startovní listina'!B135","v":""},{"$f":"'Startovní listina'!C135","v":""},{"$f":"'Startovní listina'!D135","v":""},{"$f":"'Startovní listina'!E135","v":""},{"$f":"'Startovní listina'!F135","v":""}]
[{"$f":"IF('Výsledková listina B'!D61<>\"\",A60+1,\"\")","v":""},null,{"$f":"'Startovní listina'!G136","v":""},{"$f":"'Startovní listina'!B136","v":""},{"$f":"'Startovní listina'!C136","v":""},{"$f":"'Startovní listina'!D136","v":""},{"$f":"'Startovní listina'!E136","v":""},{"$f":"'Startovní listina'!F136","v":""}]
[{"$f":"IF('Výsledková listina B'!D62<>\"\",A61+1,\"\")","v":""},null,{"$f":"'Startovní listina'!G137","v":""},{"$f":"'Startovní listina'!B137","v":""},{"$f":"'Startovní listina'!C137","v":""},{"$f":"'Startovní listina'!D137","v":""},{"$f":"'Startovní listina'!E137","v":""},{"$f":"'Startovní listina'!F137","v":""}]
[{"$f":"IF('Výsledková listina B'!D63<>\"\",A62+1,\"\")","v":""},null,{"$f":"'Startovní listina'!G138","v":""},{"$f":"'Startovní listina'!B138","v":""},{"$f":"'Startovní listina'!C138","v":""},{"$f":"'Startovní listina'!D138","v":""},{"$f":"'Startovní listina'!E138","v":""},{"$f":"'Startovní listina'!F138","v":""}]
[{"$f":"IF('Výsledková listina B'!D64<>\"\",A63+1,\"\")","v":""},null,{"$f":"'Startovní listina'!G139","v":""},{"$f":"'Startovní listina'!B139","v":""},{"$f":"'Startovní listina'!C139","v":""},{"$f":"'Startovní listina'!D139","v":""},{"$f":"'Startovní listina'!E139","v":""},{"$f":"'Startovní listina'!F139","v":""}]
[{"$f":"IF('Výsledková listina B'!D65<>\"\",A64+1,\"\")","v":""},null,{"$f":"'Startovní listina'!G140","v":""},{"$f":"'Startovní listina'!B140","v":""},{"$f":"'Startovní listina'!C140","v":""},{"$f":"'Startovní listina'!D140","v":""},{"$f":"'Startovní listina'!E140","v":""},{"$f":"'Startovní listina'!F140","v":""}]
[{"$f":"IF('Výsledková listina B'!D66<>\"\",A65+1,\"\")","v":""},null,{"$f":"'Startovní listina'!G141","v":""},{"$f":"'Startovní listina'!B141","v":""},{"$f":"'Startovní listina'!C141","v":""},{"$f":"'Startovní listina'!D141","v":""},{"$f":"'Startovní listina'!E141","v":""},{"$f":"'Startovní listina'!F141","v":""}]
[]
[]
[]
[]
[]
[null,null,null,"seřadit podle kategorie a pak podle času"]

{"sheet":"Výsledková listina C","index":7,"n_rows":75,"n_cols":11,"rows_kept":75,"cut":false,"hidden":false,"merged":[[0,0,0,8],[1,0,1,8],[1,10,3,14],[2,0,2,8],[74,3,80,7]]}
[{"$f":"\"Výsledková listina - Bystřickem kolem Vírské přehrady \"&'Prezenční listina'!O2","v":"Výsledková listina - Bystřickem kolem Vírské přehrady 2014"}]
[{"$f":"'Prezenční listina'!O2-2004&\". ročník\"","v":"10. ročník"},null,null,null,null,null,null,null,null,null,"\nPoté, co jsou dopsány časy VŠECH běžců, stisknout tlačítko 1.řazení \n\n\nVe sloupci B (Pořadí v kategorii) vytvořit posloupnou číselnou řadu pro každou kategorii a poté stisknout tlačítko 2.řazení\n\n\n                      !!! POZOR!!!\n\n               Použití tlačítek je nevratný krok!"]
["2014-05-31"]
["Celkové pořadí","Pořadí v kategorii","Kategorie","Startovní číslo","Příjmení","Jméno","Narození","Oddíl / Bydliště","Čas"]
[13,1,{"$f":"'Startovní listina'!G49","v":"C"},{"$f":"'Startovní listina'!B49","v":49},{"$f":"'Startovní listina'!C49","v":"Rerych"},{"$f":"'Startovní listina'!D49","v":"Jiří"},{"$f":"'Startovní listina'!E49","v":1962},{"$f":"'Startovní listina'!F49","v":"AC Moravská Slávia Brno"},"01:53:19"]
[14,2,{"$f":"'Startovní listina'!G50","v":"C"},{"$f":"'Startovní listina'!B50","v":50},{"$f":"'Startovní listina'!C50","v":"Ožana"},{"$f":"'Startovní listina'!D50","v":"Václav"},{"$f":"'Startovní listina'!E50","v":1964},{"$f":"'Startovní listina'!F50","v":"TJ Nové Město na Moravě"},"01:54:12"]
[19,3,{"$f":"'Startovní listina'!G29","v":"C"},{"$f":"'Startovní listina'!B29","v":27},{"$f":"'Startovní listina'!C29","v":"Kratochvíl"},{"$f":"'Startovní listina'!D29","v":"Pavel"},{"$f":"'Startovní listina'!E29","v":1960},{"$f":"'Startovní listina'!F29","v":"Sokol Rudíkov"},"01:58:19"]
[21,4,{"$f":"'Startovní listina'!G23","v":"C"},{"$f":"'Startovní listina'!B23","v":20},{"$f":"'Startovní listina'!C23","v":"Jína"},{"$f":"'Startovní listina'!D23","v":"Pavel"},{"$f":"'Startovní listina'!E23","v":1962},{"$f":"'Startovní listina'!F23","v":"TJ Liga 100 Olomouc"},"01:58:34"]
[23,5,{"$f":"'Startovní listina'!G6","v":"C"},{"$f":"'Startovní listina'!B6","v":2},{"$f":"'Startovní listina'!C6","v":"Skalický"},{"$f":"'Startovní listina'!D6","v":"Josef"},{"$f":"'Startovní listina'!E6","v":1962},{"$f":"'Startovní listina'!F6","v":"POLDR Žichlínek"},"02:01:36"]
[24,6,{"$f":"'Startovní listina'!G17","v":"C"},{"$f":"'Startovní listina'!B17","v":13},{"$f":"'Startovní listina'!C17","v":"Zouhar"},{"$f":"'Startovní listina'!D17","v":"Libor"},{"$f":"'Startovní listina'!E17","v":1958},{"$f":"'Startovní listina'!F17","v":"Brno - Líšeň"},"02:02:12"]
[25,7,{"$f":"'Startovní listina'!G14","v":"C"},{"$f":"'Startovní listina'!B14","v":10},{"$f":"'Startovní listina'!C14","v":"Sedláček"},{"$f":"'Startovní listina'!D14","v":"Roman"},{"$f":"'Startovní listina'!E14","v":1964},{"$f":"'Startovní listina'!F14","v":"Activity Lanškroun"},"02:02:45"]
[45,8,{"$f":"'Startovní listina'!G31","v":"C"},{"$f":"'Startovní listina'!B31","v":29},{"$f":"'Startovní listina'!C31","v":"Suchý"},{"$f":"'Startovní listina'!D31","v":"Karel"},{"$f":"'Startovní listina'!E31","v":1956},{"$f":"'Startovní listina'!F31","v":"Náměšť nad Oslavou"},"02:12:43"]
[54,9,{"$f":"'Startovní listina'!G28","v":"C"},{"$f":"'Startovní listina'!B28","v":26},{"$f":"'Startovní listina'!C28","v":"Měřínský"},{"$f":"'Startovní listina'!D28","v":"Jaroslav"},{"$f":"'Startovní listina'!E28","v":1961},{"$f":"'Startovní listina'!F28","v":"AK Perná"},"02:16:26"]
[55,10,{"$f":"'Startovní listina'!G18","v":"C"},{"$f":"'Startovní listina'!B18","v":14},{"$f":"'Startovní listina'!C18","v":"Kučínský"},{"$f":"'Startovní listina'!D18","v":"Pavel"},{"$f":"'Startovní listina'!E18","v":1959},{"$f":"'Startovní listina'!F18","v":"Brno"},"02:16:36"]
[59,11,{"$f":"'Startovní listina'!G74","v":"C"},{"$f":"'Startovní listina'!B74","v":79},{"$f":"'Startovní listina'!C74","v":"Sedláček"},{"$f":"'Startovní listina'!D74","v":"Svatopluk"},{"$f":"'Startovní listina'!E74","v":1957},{"$f":"'Startovní listina'!F74","v":"AC Moravská Slávia Brno"},"02:20:10"]
[65,12,{"$f":"'Startovní listina'!G67","v":"C"},{"$f":"'Startovní listina'!B67","v":70},{"$f":"'Startovní listina'!C67","v":"Šperka"},{"$f":"'Startovní listina'!D67","v":"Oldřich"},{"$f":"'Startovní listina'!E67","v":1956},{"$f":"'Startovní listina'!F67","v":"Jedovnice"},"02:25:06"]
[66,13,{"$f":"'Startovní listina'!G38","v":"C"},{"$f":"'Startovní listina'!B38","v":37},{"$f":"'Startovní listina'!C38","v":"Kohutek"},{"$f":"'Startovní listina'!D38","v":"Jaromír"},{"$f":"'Startovní listina'!E38","v":1955},{"$f":"'Startovní listina'!F38","v":"Brno"},"02:26:18"]
[67,14,{"$f":"'Startovní listina'!G62","v":"C"},{"$f":"'Startovní listina'!B62","v":63},{"$f":"'Startovní listina'!C62","v":"Raclavský"},{"$f":"'Startovní listina'!D62","v":"Vlastimil"},{"$f":"'Startovní listina'!E62","v":1955},{"$f":"'Startovní listina'!F62","v":"Liga 100 Olomouc"},"02:27:15"]
[70,15,{"$f":"'Startovní listina'!G51","v":"C"},{"$f":"'Startovní listina'!B51","v":51},{"$f":"'Startovní listina'!C51","v":"Macháček"},{"$f":"'Startovní listina'!D51","v":"Martin"},{"$f":"'Startovní listina'!E51","v":1955},{"$f":"'Startovní listina'!F51","v":"Javůrek"},"02:28:19"]
[74,16,{"$f":"'Startovní listina'!G46","v":"C"},{"$f":"'Startovní listina'!B46","v":46},{"$f":"'Startovní listina'!C46","v":"Brabenec"},{"$f":"'Startovní listina'!D46","v":"Miroslav"},{"$f":"'Startovní listina'!E46","v":1959},{"$f":"'Startovní listina'!F46","v":"Žďár nad Sázavou"},"02:30:37"]
[75,17,{"$f":"'Startovní listina'!G61","v":"C"},{"$f":"'Startovní listina'!B61","v":62},{"$f":"'Startovní listina'!C61","v":"Horák"},{"$f":"'Startovní listina'!D61","v":"Pavel"},{"$f":"'Startovní listina'!E61","v":1962},{"$f":"'Startovní listina'!F61","v":"Brno"},"02:33:35"]
[81,18,{"$f":"'Startovní listina'!G87","v":"C"},{"$f":"'Startovní listina'!B87","v":94},{"$f":"'Startovní listina'!C87","v":"Kunc"},{"$f":"'Startovní listina'!D87","v":"Josef"},{"$f":"'Startovní listina'!E87","v":1960},{"$f":"'Startovní listina'!F87","v":"LRS Vyškov"},"02:38:41"]
[85,19,{"$f":"'Startovní listina'!G40","v":"C"},{"$f":"'Startovní listina'!B40","v":40},{"$f":"'Startovní listina'!C40","v":"Blaha"},{"$f":"'Startovní listina'!D40","v":"Stanislav"},{"$f":"'Startovní listina'!E40","v":1963},{"$f":"'Startovní listina'!F40","v":"BK Vísky"},"02:57:21"]
[86,20,{"$f":"'Startovní listina'!G94","v":"C"},{"$f":"'Startovní listina'!B94","v":101},{"$f":"'Startovní listina'!C94","v":"Skoták"},{"$f":"'Startovní listina'!D94","v":"Jiří"},{"$f":"'Startovní listina'!E94","v":1964},{"$f":"'Startovní listina'!F94","v":"SC Ráječko"},"03:00:39"]
[{"$f":"IF('Výsledková listina C'!D25<>\"\",#REF!+1,\"\")","v":""},null,{"$f":"'Startovní listina'!G97","v":""},{"$f":"'Startovní listina'!B97","v":""},{"$f":"'Startovní listina'!C97","v":""},{"$f":"'Startovní listina'!D97","v":""},{"$f":"'Startovní listina'!E97","v":""},{"$f":"'Startovní listina'!F97","v":""}]
[{"$f":"IF('Výsledková listina C'!D26<>\"\",A25+1,\"\")","v":""},null,{"$f":"'Startovní listina'!G98","v":""},{"$f":"'Startovní listina'!B98","v":""},{"$f":"'Startovní listina'!C98","v":""},{"$f":"'Startovní listina'!D98","v":""},{"$f":"'Startovní listina'!E98","v":""},{"$f":"'Startovní listina'!F98","v":""}]
[{"$f":"IF('Výsledková listina C'!D27<>\"\",A26+1,\"\")","v":""},null,{"$f":"'Startovní listina'!G99","v":""},{"$f":"'Startovní listina'!B99","v":""},{"$f":"'Startovní listina'!C99","v":""},{"$f":"'Startovní listina'!D99","v":""},{"$f":"'Startovní listina'!E99","v":""},{"$f":"'Startovní listina'!F99","v":""}]
[{"$f":"IF('Výsledková listina C'!D28<>\"\",A27+1,\"\")","v":""},null,{"$f":"'Startovní listina'!G100","v":""},{"$f":"'Startovní listina'!B100","v":""},{"$f":"'Startovní listina'!C100","v":""},{"$f":"'Startovní listina'!D100","v":""},{"$f":"'Startovní listina'!E100","v":""},{"$f":"'Startovní listina'!F100","v":""}]
[{"$f":"IF('Výsledková listina C'!D29<>\"\",A28+1,\"\")","v":""},null,{"$f":"'Startovní listina'!G101","v":""},{"$f":"'Startovní listina'!B101","v":""},{"$f":"'Startovní listina'!C101","v":""},{"$f":"'Startovní listina'!D101","v":""},{"$f":"'Startovní listina'!E101","v":""},{"$f":"'Startovní listina'!F101","v":""}]
[{"$f":"IF('Výsledková listina C'!D30<>\"\",A29+1,\"\")","v":""},null,{"$f":"'Startovní listina'!G102","v":""},{"$f":"'Startovní listina'!B102","v":""},{"$f":"'Startovní listina'!C102","v":""},{"$f":"'Startovní listina'!D102","v":""},{"$f":"'Startovní listina'!E102","v":""},{"$f":"'Startovní listina'!F102","v":""}]
[{"$f":"IF('Výsledková listina C'!D31<>\"\",A30+1,\"\")","v":""},null,{"$f":"'Startovní listina'!G103","v":""},{"$f":"'Startovní listina'!B103","v":""},{"$f":"'Startovní listina'!C103","v":""},{"$f":"'Startovní listina'!D103","v":""},{"$f":"'Startovní listina'!E103","v":""},{"$f":"'Startovní listina'!F103","v":""}]
[{"$f":"IF('Výsledková listina C'!D32<>\"\",A31+1,\"\")","v":""},null,{"$f":"'Startovní listina'!G104","v":""},{"$f":"'Startovní listina'!B104","v":""},{"$f":"'Startovní listina'!C104","v":""},{"$f":"'Startovní listina'!D104","v":""},{"$f":"'Startovní listina'!E104","v":""},{"$f":"'Startovní listina'!F104","v":""}]
[{"$f":"IF('Výsledková listina C'!D33<>\"\",A32+1,\"\")","v":""},null,{"$f":"'Startovní listina'!G105","v":""},{"$f":"'Startovní listina'!B105","v":""},{"$f":"'Startovní listina'!C105","v":""},{"$f":"'Startovní listina'!D105","v":""},{"$f":"'Startovní listina'!E105","v":""},{"$f":"'Startovní listina'!F105","v":""}]
[{"$f":"IF('Výsledková listina C'!D34<>\"\",A33+1,\"\")","v":""},null,{"$f":"'Startovní listina'!G106","v":""},{"$f":"'Startovní listina'!B106","v":""},{"$f":"'Startovní listina'!C106","v":""},{"$f":"'Startovní listina'!D106","v":""},{"$f":"'Startovní listina'!E106","v":""},{"$f":"'Startovní listina'!F106","v":""}]
[{"$f":"IF('Výsledková listina C'!D35<>\"\",A34+1,\"\")","v":""},null,{"$f":"'Startovní listina'!G107","v":""},{"$f":"'Startovní listina'!B107","v":""},{"$f":"'Startovní listina'!C107","v":""},{"$f":"'Startovní listina'!D107","v":""},{"$f":"'Startovní listina'!E107","v":""},{"$f":"'Startovní listina'!F107","v":""}]
[{"$f":"IF('Výsledková listina C'!D36<>\"\",A35+1,\"\")","v":""},null,{"$f":"'Startovní listina'!G108","v":""},{"$f":"'Startovní listina'!B108","v":""},{"$f":"'Startovní listina'!C108","v":""},{"$f":"'Startovní listina'!D108","v":""},{"$f":"'Startovní listina'!E108","v":""},{"$f":"'Startovní listina'!F108","v":""}]
[{"$f":"IF('Výsledková listina C'!D37<>\"\",A36+1,\"\")","v":""},null,{"$f":"'Startovní listina'!G109","v":""},{"$f":"'Startovní listina'!B109","v":""},{"$f":"'Startovní listina'!C109","v":""},{"$f":"'Startovní listina'!D109","v":""},{"$f":"'Startovní listina'!E109","v":""},{"$f":"'Startovní listina'!F109","v":""}]
[{"$f":"IF('Výsledková listina C'!D38<>\"\",A37+1,\"\")","v":""},null,{"$f":"'Startovní listina'!G110","v":""},{"$f":"'Startovní listina'!B110","v":""},{"$f":"'Startovní listina'!C110","v":""},{"$f":"'Startovní listina'!D110","v":""},{"$f":"'Startovní listina'!E110","v":""},{"$f":"'Startovní listina'!F110","v":""}]
[{"$f":"IF('Výsledková listina C'!D39<>\"\",A38+1,\"\")","v":""},null,{"$f":"'Startovní listina'!G111","v":""},{"$f":"'Startovní listina'!B111","v":""},{"$f":"'Startovní listina'!C111","v":""},{"$f":"'Startovní listina'!D111","v":""},{"$f":"'Startovní listina'!E111","v":""},{"$f":"'Startovní listina'!F111","v":""}]
[{"$f":"IF('Výsledková listina C'!D40<>\"\",A39+1,\"\")","v":""},null,{"$f":"'Startovní listina'!G112","v":""},{"$f":"'Startovní listina'!B112","v":""},{"$f":"'Startovní listina'!C112","v":""},{"$f":"'Startovní listina'!D112","v":""},{"$f":"'Startovní listina'!E112","v":""},{"$f":"'Startovní listina'!F112","v":""}]
[{"$f":"IF('Výsledková listina C'!D41<>\"\",A40+1,\"\")","v":""},null,{"$f":"'Startovní listina'!G113","v":""},{"$f":"'Startovní listina'!B113","v":""},{"$f":"'Startovní listina'!C113","v":""},{"$f":"'Startovní listina'!D113","v":""},{"$f":"'Startovní listina'!E113","v":""},{"$f":"'Startovní listina'!F113","v":""}]
[{"$f":"IF('Výsledková listina C'!D42<>\"\",A41+1,\"\")","v":""},null,{"$f":"'Startovní listina'!G114","v":""},{"$f":"'Startovní listina'!B114","v":""},{"$f":"'Startovní listina'!C114","v":""},{"$f":"'Startovní listina'!D114","v":""},{"$f":"'Startovní listina'!E114","v":""},{"$f":"'Startovní listina'!F114","v":""}]
[{"$f":"IF('Výsledková listina C'!D43<>\"\",A42+1,\"\")","v":""},null,{"$f":"'Startovní listina'!G115","v":""},{"$f":"'Startovní listina'!B115","v":""},{"$f":"'Startovní listina'!C115","v":""},{"$f":"'Startovní listina'!D115","v":""},{"$f":"'Startovní listina'!E115","v":""},{"$f":"'Startovní listina'!F115","v":""}]
[{"$f":"IF('Výsledková listina C'!D44<>\"\",A43+1,\"\")","v":""},null,{"$f":"'Startovní listina'!G116","v":""},{"$f":"'Startovní listina'!B116","v":""},{"$f":"'Startovní listina'!C116","v":""},{"$f":"'Startovní listina'!D116","v":""},{"$f":"'Startovní listina'!E116","v":""},{"$f":"'Startovní listina'!F116","v":""}]
[{"$f":"IF('Výsledková listina C'!D45<>\"\",A44+1,\"\")","v":""},null,{"$f":"'Startovní listina'!G117","v":""},{"$f":"'Startovní listina'!B117","v":""},{"$f":"'Startovní listina'!C117","v":""},{"$f":"'Startovní listina'!D117","v":""},{"$f":"'Startovní listina'!E117","v":""},{"$f":"'Startovní listina'!F117","v":""}]
[{"$f":"IF('Výsledková listina C'!D46<>\"\",A45+1,\"\")","v":""},null,{"$f":"'Startovní listina'!G118","v":""},{"$f":"'Startovní listina'!B118","v":""},{"$f":"'Startovní listina'!C118","v":""},{"$f":"'Startovní listina'!D118","v":""},{"$f":"'Startovní listina'!E118","v":""},{"$f":"'Startovní listina'!F118","v":""}]
[{"$f":"IF('Výsledková listina C'!D47<>\"\",A46+1,\"\")","v":""},null,{"$f":"'Startovní listina'!G119","v":""},{"$f":"'Startovní listina'!B119","v":""},{"$f":"'Startovní listina'!C119","v":""},{"$f":"'Startovní listina'!D119","v":""},{"$f":"'Startovní listina'!E119","v":""},{"$f":"'Startovní listina'!F119","v":""}]
[{"$f":"IF('Výsledková listina C'!D48<>\"\",A47+1,\"\")","v":""},null,{"$f":"'Startovní listina'!G120","v":""},{"$f":"'Startovní listina'!B120","v":""},{"$f":"'Startovní listina'!C120","v":""},{"$f":"'Startovní listina'!D120","v":""},{"$f":"'Startovní listina'!E120","v":""},{"$f":"'Startovní listina'!F120","v":""}]
[{"$f":"IF('Výsledková listina C'!D49<>\"\",A48+1,\"\")","v":""},null,{"$f":"'Startovní listina'!G121","v":""},{"$f":"'Startovní listina'!B121","v":""},{"$f":"'Startovní listina'!C121","v":""},{"$f":"'Startovní listina'!D121","v":""},{"$f":"'Startovní listina'!E121","v":""},{"$f":"'Startovní listina'!F121","v":""}]
[{"$f":"IF('Výsledková listina C'!D50<>\"\",A49+1,\"\")","v":""},null,{"$f":"'Startovní listina'!G122","v":""},{"$f":"'Startovní listina'!B122","v":""},{"$f":"'Startovní listina'!C122","v":""},{"$f":"'Startovní listina'!D122","v":""},{"$f":"'Startovní listina'!E122","v":""},{"$f":"'Startovní listina'!F122","v":""}]
[{"$f":"IF('Výsledková listina C'!D51<>\"\",A50+1,\"\")","v":""},null,{"$f":"'Startovní listina'!G123","v":""},{"$f":"'Startovní listina'!B123","v":""},{"$f":"'Startovní listina'!C123","v":""},{"$f":"'Startovní listina'!D123","v":""},{"$f":"'Startovní listina'!E123","v":""},{"$f":"'Startovní listina'!F123","v":""}]
[{"$f":"IF('Výsledková listina C'!D52<>\"\",A51+1,\"\")","v":""},null,{"$f":"'Startovní listina'!G124","v":""},{"$f":"'Startovní listina'!B124","v":""},{"$f":"'Startovní listina'!C124","v":""},{"$f":"'Startovní listina'!D124","v":""},{"$f":"'Startovní listina'!E124","v":""},{"$f":"'Startovní listina'!F124","v":""}]
[{"$f":"IF('Výsledková listina C'!D53<>\"\",A52+1,\"\")","v":""},null,{"$f":"'Startovní listina'!G125","v":""},{"$f":"'Startovní listina'!B125","v":""},{"$f":"'Startovní listina'!C125","v":""},{"$f":"'Startovní listina'!D125","v":""},{"$f":"'Startovní listina'!E125","v":""},{"$f":"'Startovní listina'!F125","v":""}]
[{"$f":"IF('Výsledková listina C'!D54<>\"\",A53+1,\"\")","v":""},null,{"$f":"'Startovní listina'!G126","v":""},{"$f":"'Startovní listina'!B126","v":""},{"$f":"'Startovní listina'!C126","v":""},{"$f":"'Startovní listina'!D126","v":""},{"$f":"'Startovní listina'!E126","v":""},{"$f":"'Startovní listina'!F126","v":""}]
[{"$f":"IF('Výsledková listina C'!D55<>\"\",A54+1,\"\")","v":""},null,{"$f":"'Startovní listina'!G127","v":""},{"$f":"'Startovní listina'!B127","v":""},{"$f":"'Startovní listina'!C127","v":""},{"$f":"'Startovní listina'!D127","v":""},{"$f":"'Startovní listina'!E127","v":""},{"$f":"'Startovní listina'!F127","v":""}]
[{"$f":"IF('Výsledková listina C'!D56<>\"\",A55+1,\"\")","v":""},null,{"$f":"'Startovní listina'!G128","v":""},{"$f":"'Startovní listina'!B128","v":""},{"$f":"'Startovní listina'!C128","v":""},{"$f":"'Startovní listina'!D128","v":""},{"$f":"'Startovní listina'!E128","v":""},{"$f":"'Startovní listina'!F128","v":""}]
[{"$f":"IF('Výsledková listina C'!D57<>\"\",A56+1,\"\")","v":""},null,{"$f":"'Startovní listina'!G129","v":""},{"$f":"'Startovní listina'!B129","v":""},{"$f":"'Startovní listina'!C129","v":""},{"$f":"'Startovní listina'!D129","v":""},{"$f":"'Startovní listina'!E129","v":""},{"$f":"'Startovní listina'!F129","v":""}]
[{"$f":"IF('Výsledková listina C'!D58<>\"\",A57+1,\"\")","v":""},null,{"$f":"'Startovní listina'!G130","v":""},{"$f":"'Startovní listina'!B130","v":""},{"$f":"'Startovní listina'!C130","v":""},{"$f":"'Startovní listina'!D130","v":""},{"$f":"'Startovní listina'!E130","v":""},{"$f":"'Startovní listina'!F130","v":""}]
[{"$f":"IF('Výsledková listina C'!D59<>\"\",A58+1,\"\")","v":""},null,{"$f":"'Startovní listina'!G131","v":""},{"$f":"'Startovní listina'!B131","v":""},{"$f":"'Startovní listina'!C131","v":""},{"$f":"'Startovní listina'!D131","v":""},{"$f":"'Startovní listina'!E131","v":""},{"$f":"'Startovní listina'!F131","v":""}]
[{"$f":"IF('Výsledková listina C'!D60<>\"\",A59+1,\"\")","v":""},null,{"$f":"'Startovní listina'!G132","v":""},{"$f":"'Startovní listina'!B132","v":""},{"$f":"'Startovní listina'!C132","v":""},{"$f":"'Startovní listina'!D132","v":""},{"$f":"'Startovní listina'!E132","v":""},{"$f":"'Startovní listina'!F132","v":""}]
[{"$f":"IF('Výsledková listina C'!D61<>\"\",A60+1,\"\")","v":""},null,{"$f":"'Startovní listina'!G133","v":""},{"$f":"'Startovní listina'!B133","v":""},{"$f":"'Startovní listina'!C133","v":""},{"$f":"'Startovní listina'!D133","v":""},{"$f":"'Startovní listina'!E133","v":""},{"$f":"'Startovní listina'!F133","v":""}]
[{"$f":"IF('Výsledková listina C'!D62<>\"\",A61+1,\"\")","v":""},null,{"$f":"'Startovní listina'!G134","v":""},{"$f":"'Startovní listina'!B134","v":""},{"$f":"'Startovní listina'!C134","v":""},{"$f":"'Startovní listina'!D134","v":""},{"$f":"'Startovní listina'!E134","v":""},{"$f":"'Startovní listina'!F134","v":""}]
[{"$f":"IF('Výsledková listina C'!D63<>\"\",A62+1,\"\")","v":""},null,{"$f":"'Startovní listina'!G135","v":""},{"$f":"'Startovní listina'!B135","v":""},{"$f":"'Startovní listina'!C135","v":""},{"$f":"'Startovní listina'!D135","v":""},{"$f":"'Startovní listina'!E135","v":""},{"$f":"'Startovní listina'!F135","v":""}]
[{"$f":"IF('Výsledková listina C'!D64<>\"\",A63+1,\"\")","v":""},null,{"$f":"'Startovní listina'!G136","v":""},{"$f":"'Startovní listina'!B136","v":""},{"$f":"'Startovní listina'!C136","v":""},{"$f":"'Startovní listina'!D136","v":""},{"$f":"'Startovní listina'!E136","v":""},{"$f":"'Startovní listina'!F136","v":""}]
[{"$f":"IF('Výsledková listina C'!D65<>\"\",A64+1,\"\")","v":""},null,{"$f":"'Startovní listina'!G137","v":""},{"$f":"'Startovní listina'!B137","v":""},{"$f":"'Startovní listina'!C137","v":""},{"$f":"'Startovní listina'!D137","v":""},{"$f":"'Startovní listina'!E137","v":""},{"$f":"'Startovní listina'!F137","v":""}]
[{"$f":"IF('Výsledková listina C'!D66<>\"\",A65+1,\"\")","v":""},null,{"$f":"'Startovní listina'!G138","v":""},{"$f":"'Startovní listina'!B138","v":""},{"$f":"'Startovní listina'!C138","v":""},{"$f":"'Startovní listina'!D138","v":""},{"$f":"'Startovní listina'!E138","v":""},{"$f":"'Startovní listina'!F138","v":""}]
[{"$f":"IF('Výsledková listina C'!D67<>\"\",A66+1,\"\")","v":""},null,{"$f":"'Startovní listina'!G139","v":""},{"$f":"'Startovní listina'!B139","v":""},{"$f":"'Startovní listina'!C139","v":""},{"$f":"'Startovní listina'!D139","v":""},{"$f":"'Startovní listina'!E139","v":""},{"$f":"'Startovní listina'!F139","v":""}]
[{"$f":"IF('Výsledková listina C'!D68<>\"\",A67+1,\"\")","v":""},null,{"$f":"'Startovní listina'!G140","v":""},{"$f":"'Startovní listina'!B140","v":""},{"$f":"'Startovní listina'!C140","v":""},{"$f":"'Startovní listina'!D140","v":""},{"$f":"'Startovní listina'!E140","v":""},{"$f":"'Startovní listina'!F140","v":""}]
[{"$f":"IF('Výsledková listina C'!D69<>\"\",A68+1,\"\")","v":""},null,{"$f":"'Startovní listina'!G141","v":""},{"$f":"'Startovní listina'!B141","v":""},{"$f":"'Startovní listina'!C141","v":""},{"$f":"'Startovní listina'!D141","v":""},{"$f":"'Startovní listina'!E141","v":""},{"$f":"'Startovní listina'!F141","v":""}]
[]
[]
[]
[]
[]
[null,null,null,"seřadit podle kategorie a pak podle času"]

{"sheet":"Výsledková listina D","index":8,"n_rows":59,"n_cols":11,"rows_kept":59,"cut":false,"hidden":false,"merged":[[0,0,0,8],[1,0,1,8],[1,10,3,14],[2,0,2,8],[58,3,64,7]]}
[{"$f":"\"Výsledková listina - Bystřickem kolem Vírské přehrady \"&'Prezenční listina'!O2","v":"Výsledková listina - Bystřickem kolem Vírské přehrady 2014"}]
[{"$f":"'Prezenční listina'!O2-2004&\". ročník\"","v":"10. ročník"},null,null,null,null,null,null,null,null,null,"\nPoté, co jsou dopsány časy VŠECH běžců, stisknout tlačítko 1.řazení \n\n\nVe sloupci B (Pořadí v kategorii) vytvořit posloupnou číselnou řadu pro každou kategorii a poté stisknout tlačítko 2.řazení\n\n\n                      !!! POZOR!!!\n\n               Použití tlačítek je nevratný krok!"]
["2014-05-31"]
["Celkové pořadí","Pořadí v kategorii","Kategorie","Startovní číslo","Příjmení","Jméno","Narození","Oddíl / Bydliště","Čas"]
[44,1,{"$f":"'Startovní listina'!G45","v":"D"},{"$f":"'Startovní listina'!B45","v":45},{"$f":"'Startovní listina'!C45","v":"Kaše"},{"$f":"'Startovní listina'!D45","v":"Jaroslav"},{"$f":"'Startovní listina'!E45","v":1953},{"$f":"'Startovní listina'!F45","v":"Club běžeckých outsiderů"},"02:12:22"]
[64,2,{"$f":"'Startovní listina'!G30","v":"D"},{"$f":"'Startovní listina'!B30","v":28},{"$f":"'Startovní listina'!C30","v":"Mareš"},{"$f":"'Startovní listina'!D30","v":"Bohumil"},{"$f":"'Startovní listina'!E30","v":1951},{"$f":"'Startovní listina'!F30","v":"LEAR Brno"},"02:21:46"]
[73,3,{"$f":"'Startovní listina'!G70","v":"D"},{"$f":"'Startovní listina'!B70","v":74},{"$f":"'Startovní listina'!C70","v":"Stráník"},{"$f":"'Startovní listina'!D70","v":"Aleš"},{"$f":"'Startovní listina'!E70","v":1950},{"$f":"'Startovní listina'!F70","v":"Blansko "},"02:30:22"]
[77,4,{"$f":"'Startovní listina'!G71","v":"D"},{"$f":"'Startovní listina'!B71","v":75},{"$f":"'Startovní listina'!C71","v":"Boháč"},{"$f":"'Startovní listina'!D71","v":"Jiří"},{"$f":"'Startovní listina'!E71","v":1954},{"$f":"'Startovní listina'!F71","v":"Brno"},"02:35:04"]
[{"$f":"IF('Výsledková listina D'!D9<>\"\",#REF!+1,\"\")","v":""},null,{"$f":"'Startovní listina'!G97","v":""},{"$f":"'Startovní listina'!B97","v":""},{"$f":"'Startovní listina'!C97","v":""},{"$f":"'Startovní listina'!D97","v":""},{"$f":"'Startovní listina'!E97","v":""},{"$f":"'Startovní listina'!F97","v":""}]
[{"$f":"IF('Výsledková listina D'!D10<>\"\",A9+1,\"\")","v":""},null,{"$f":"'Startovní listina'!G98","v":""},{"$f":"'Startovní listina'!B98","v":""},{"$f":"'Startovní listina'!C98","v":""},{"$f":"'Startovní listina'!D98","v":""},{"$f":"'Startovní listina'!E98","v":""},{"$f":"'Startovní listina'!F98","v":""}]
[{"$f":"IF('Výsledková listina D'!D11<>\"\",A10+1,\"\")","v":""},null,{"$f":"'Startovní listina'!G99","v":""},{"$f":"'Startovní listina'!B99","v":""},{"$f":"'Startovní listina'!C99","v":""},{"$f":"'Startovní listina'!D99","v":""},{"$f":"'Startovní listina'!E99","v":""},{"$f":"'Startovní listina'!F99","v":""}]
[{"$f":"IF('Výsledková listina D'!D12<>\"\",A11+1,\"\")","v":""},null,{"$f":"'Startovní listina'!G100","v":""},{"$f":"'Startovní listina'!B100","v":""},{"$f":"'Startovní listina'!C100","v":""},{"$f":"'Startovní listina'!D100","v":""},{"$f":"'Startovní listina'!E100","v":""},{"$f":"'Startovní listina'!F100","v":""}]
[{"$f":"IF('Výsledková listina D'!D13<>\"\",A12+1,\"\")","v":""},null,{"$f":"'Startovní listina'!G101","v":""},{"$f":"'Startovní listina'!B101","v":""},{"$f":"'Startovní listina'!C101","v":""},{"$f":"'Startovní listina'!D101","v":""},{"$f":"'Startovní listina'!E101","v":""},{"$f":"'Startovní listina'!F101","v":""}]
[{"$f":"IF('Výsledková listina D'!D14<>\"\",A13+1,\"\")","v":""},null,{"$f":"'Startovní listina'!G102","v":""},{"$f":"'Startovní listina'!B102","v":""},{"$f":"'Startovní listina'!C102","v":""},{"$f":"'Startovní listina'!D102","v":""},{"$f":"'Startovní listina'!E102","v":""},{"$f":"'Startovní listina'!F102","v":""}]
[{"$f":"IF('Výsledková listina D'!D15<>\"\",A14+1,\"\")","v":""},null,{"$f":"'Startovní listina'!G103","v":""},{"$f":"'Startovní listina'!B103","v":""},{"$f":"'Startovní listina'!C103","v":""},{"$f":"'Startovní listina'!D103","v":""},{"$f":"'Startovní listina'!E103","v":""},{"$f":"'Startovní listina'!F103","v":""}]
[{"$f":"IF('Výsledková listina D'!D16<>\"\",A15+1,\"\")","v":""},null,{"$f":"'Startovní listina'!G104","v":""},{"$f":"'Startovní listina'!B104","v":""},{"$f":"'Startovní listina'!C104","v":""},{"$f":"'Startovní listina'!D104","v":""},{"$f":"'Startovní listina'!E104","v":""},{"$f":"'Startovní listina'!F104","v":""}]
[{"$f":"IF('Výsledková listina D'!D17<>\"\",A16+1,\"\")","v":""},null,{"$f":"'Startovní listina'!G105","v":""},{"$f":"'Startovní listina'!B105","v":""},{"$f":"'Startovní listina'!C105","v":""},{"$f":"'Startovní listina'!D105","v":""},{"$f":"'Startovní listina'!E105","v":""},{"$f":"'Startovní listina'!F105","v":""}]
[{"$f":"IF('Výsledková listina D'!D18<>\"\",A17+1,\"\")","v":""},null,{"$f":"'Startovní listina'!G106","v":""},{"$f":"'Startovní listina'!B106","v":""},{"$f":"'Startovní listina'!C106","v":""},{"$f":"'Startovní listina'!D106","v":""},{"$f":"'Startovní listina'!E106","v":""},{"$f":"'Startovní listina'!F106","v":""}]
[{"$f":"IF('Výsledková listina D'!D19<>\"\",A18+1,\"\")","v":""},null,{"$f":"'Startovní listina'!G107","v":""},{"$f":"'Startovní listina'!B107","v":""},{"$f":"'Startovní listina'!C107","v":""},{"$f":"'Startovní listina'!D107","v":""},{"$f":"'Startovní listina'!E107","v":""},{"$f":"'Startovní listina'!F107","v":""}]
[{"$f":"IF('Výsledková listina D'!D20<>\"\",A19+1,\"\")","v":""},null,{"$f":"'Startovní listina'!G108","v":""},{"$f":"'Startovní listina'!B108","v":""},{"$f":"'Startovní listina'!C108","v":""},{"$f":"'Startovní listina'!D108","v":""},{"$f":"'Startovní listina'!E108","v":""},{"$f":"'Startovní listina'!F108","v":""}]
[{"$f":"IF('Výsledková listina D'!D21<>\"\",A20+1,\"\")","v":""},null,{"$f":"'Startovní listina'!G109","v":""},{"$f":"'Startovní listina'!B109","v":""},{"$f":"'Startovní listina'!C109","v":""},{"$f":"'Startovní listina'!D109","v":""},{"$f":"'Startovní listina'!E109","v":""},{"$f":"'Startovní listina'!F109","v":""}]
[{"$f":"IF('Výsledková listina D'!D22<>\"\",A21+1,\"\")","v":""},null,{"$f":"'Startovní listina'!G110","v":""},{"$f":"'Startovní listina'!B110","v":""},{"$f":"'Startovní listina'!C110","v":""},{"$f":"'Startovní listina'!D110","v":""},{"$f":"'Startovní listina'!E110","v":""},{"$f":"'Startovní listina'!F110","v":""}]
[{"$f":"IF('Výsledková listina D'!D23<>\"\",A22+1,\"\")","v":""},null,{"$f":"'Startovní listina'!G111","v":""},{"$f":"'Startovní listina'!B111","v":""},{"$f":"'Startovní listina'!C111","v":""},{"$f":"'Startovní listina'!D111","v":""},{"$f":"'Startovní listina'!E111","v":""},{"$f":"'Startovní listina'!F111","v":""}]
[{"$f":"IF('Výsledková listina D'!D24<>\"\",A23+1,\"\")","v":""},null,{"$f":"'Startovní listina'!G112","v":""},{"$f":"'Startovní listina'!B112","v":""},{"$f":"'Startovní listina'!C112","v":""},{"$f":"'Startovní listina'!D112","v":""},{"$f":"'Startovní listina'!E112","v":""},{"$f":"'Startovní listina'!F112","v":""}]
[{"$f":"IF('Výsledková listina D'!D25<>\"\",A24+1,\"\")","v":""},null,{"$f":"'Startovní listina'!G113","v":""},{"$f":"'Startovní listina'!B113","v":""},{"$f":"'Startovní listina'!C113","v":""},{"$f":"'Startovní listina'!D113","v":""},{"$f":"'Startovní listina'!E113","v":""},{"$f":"'Startovní listina'!F113","v":""}]
[{"$f":"IF('Výsledková listina D'!D26<>\"\",A25+1,\"\")","v":""},null,{"$f":"'Startovní listina'!G114","v":""},{"$f":"'Startovní listina'!B114","v":""},{"$f":"'Startovní listina'!C114","v":""},{"$f":"'Startovní listina'!D114","v":""},{"$f":"'Startovní listina'!E114","v":""},{"$f":"'Startovní listina'!F114","v":""}]
[{"$f":"IF('Výsledková listina D'!D27<>\"\",A26+1,\"\")","v":""},null,{"$f":"'Startovní listina'!G115","v":""},{"$f":"'Startovní listina'!B115","v":""},{"$f":"'Startovní listina'!C115","v":""},{"$f":"'Startovní listina'!D115","v":""},{"$f":"'Startovní listina'!E115","v":""},{"$f":"'Startovní listina'!F115","v":""}]
[{"$f":"IF('Výsledková listina D'!D28<>\"\",A27+1,\"\")","v":""},null,{"$f":"'Startovní listina'!G116","v":""},{"$f":"'Startovní listina'!B116","v":""},{"$f":"'Startovní listina'!C116","v":""},{"$f":"'Startovní listina'!D116","v":""},{"$f":"'Startovní listina'!E116","v":""},{"$f":"'Startovní listina'!F116","v":""}]
[{"$f":"IF('Výsledková listina D'!D29<>\"\",A28+1,\"\")","v":""},null,{"$f":"'Startovní listina'!G117","v":""},{"$f":"'Startovní listina'!B117","v":""},{"$f":"'Startovní listina'!C117","v":""},{"$f":"'Startovní listina'!D117","v":""},{"$f":"'Startovní listina'!E117","v":""},{"$f":"'Startovní listina'!F117","v":""}]
[{"$f":"IF('Výsledková listina D'!D30<>\"\",A29+1,\"\")","v":""},null,{"$f":"'Startovní listina'!G118","v":""},{"$f":"'Startovní listina'!B118","v":""},{"$f":"'Startovní listina'!C118","v":""},{"$f":"'Startovní listina'!D118","v":""},{"$f":"'Startovní listina'!E118","v":""},{"$f":"'Startovní listina'!F118","v":""}]
[{"$f":"IF('Výsledková listina D'!D31<>\"\",A30+1,\"\")","v":""},null,{"$f":"'Startovní listina'!G119","v":""},{"$f":"'Startovní listina'!B119","v":""},{"$f":"'Startovní listina'!C119","v":""},{"$f":"'Startovní listina'!D119","v":""},{"$f":"'Startovní listina'!E119","v":""},{"$f":"'Startovní listina'!F119","v":""}]
[{"$f":"IF('Výsledková listina D'!D32<>\"\",A31+1,\"\")","v":""},null,{"$f":"'Startovní listina'!G120","v":""},{"$f":"'Startovní listina'!B120","v":""},{"$f":"'Startovní listina'!C120","v":""},{"$f":"'Startovní listina'!D120","v":""},{"$f":"'Startovní listina'!E120","v":""},{"$f":"'Startovní listina'!F120","v":""}]
[{"$f":"IF('Výsledková listina D'!D33<>\"\",A32+1,\"\")","v":""},null,{"$f":"'Startovní listina'!G121","v":""},{"$f":"'Startovní listina'!B121","v":""},{"$f":"'Startovní listina'!C121","v":""},{"$f":"'Startovní listina'!D121","v":""},{"$f":"'Startovní listina'!E121","v":""},{"$f":"'Startovní listina'!F121","v":""}]
[{"$f":"IF('Výsledková listina D'!D34<>\"\",A33+1,\"\")","v":""},null,{"$f":"'Startovní listina'!G122","v":""},{"$f":"'Startovní listina'!B122","v":""},{"$f":"'Startovní listina'!C122","v":""},{"$f":"'Startovní listina'!D122","v":""},{"$f":"'Startovní listina'!E122","v":""},{"$f":"'Startovní listina'!F122","v":""}]
[{"$f":"IF('Výsledková listina D'!D35<>\"\",A34+1,\"\")","v":""},null,{"$f":"'Startovní listina'!G123","v":""},{"$f":"'Startovní listina'!B123","v":""},{"$f":"'Startovní listina'!C123","v":""},{"$f":"'Startovní listina'!D123","v":""},{"$f":"'Startovní listina'!E123","v":""},{"$f":"'Startovní listina'!F123","v":""}]
[{"$f":"IF('Výsledková listina D'!D36<>\"\",A35+1,\"\")","v":""},null,{"$f":"'Startovní listina'!G124","v":""},{"$f":"'Startovní listina'!B124","v":""},{"$f":"'Startovní listina'!C124","v":""},{"$f":"'Startovní listina'!D124","v":""},{"$f":"'Startovní listina'!E124","v":""},{"$f":"'Startovní listina'!F124","v":""}]
[{"$f":"IF('Výsledková listina D'!D37<>\"\",A36+1,\"\")","v":""},null,{"$f":"'Startovní listina'!G125","v":""},{"$f":"'Startovní listina'!B125","v":""},{"$f":"'Startovní listina'!C125","v":""},{"$f":"'Startovní listina'!D125","v":""},{"$f":"'Startovní listina'!E125","v":""},{"$f":"'Startovní listina'!F125","v":""}]
[{"$f":"IF('Výsledková listina D'!D38<>\"\",A37+1,\"\")","v":""},null,{"$f":"'Startovní listina'!G126","v":""},{"$f":"'Startovní listina'!B126","v":""},{"$f":"'Startovní listina'!C126","v":""},{"$f":"'Startovní listina'!D126","v":""},{"$f":"'Startovní listina'!E126","v":""},{"$f":"'Startovní listina'!F126","v":""}]
[{"$f":"IF('Výsledková listina D'!D39<>\"\",A38+1,\"\")","v":""},null,{"$f":"'Startovní listina'!G127","v":""},{"$f":"'Startovní listina'!B127","v":""},{"$f":"'Startovní listina'!C127","v":""},{"$f":"'Startovní listina'!D127","v":""},{"$f":"'Startovní listina'!E127","v":""},{"$f":"'Startovní listina'!F127","v":""}]
[{"$f":"IF('Výsledková listina D'!D40<>\"\",A39+1,\"\")","v":""},null,{"$f":"'Startovní listina'!G128","v":""},{"$f":"'Startovní listina'!B128","v":""},{"$f":"'Startovní listina'!C128","v":""},{"$f":"'Startovní listina'!D128","v":""},{"$f":"'Startovní listina'!E128","v":""},{"$f":"'Startovní listina'!F128","v":""}]
[{"$f":"IF('Výsledková listina D'!D41<>\"\",A40+1,\"\")","v":""},null,{"$f":"'Startovní listina'!G129","v":""},{"$f":"'Startovní listina'!B129","v":""},{"$f":"'Startovní listina'!C129","v":""},{"$f":"'Startovní listina'!D129","v":""},{"$f":"'Startovní listina'!E129","v":""},{"$f":"'Startovní listina'!F129","v":""}]
[{"$f":"IF('Výsledková listina D'!D42<>\"\",A41+1,\"\")","v":""},null,{"$f":"'Startovní listina'!G130","v":""},{"$f":"'Startovní listina'!B130","v":""},{"$f":"'Startovní listina'!C130","v":""},{"$f":"'Startovní listina'!D130","v":""},{"$f":"'Startovní listina'!E130","v":""},{"$f":"'Startovní listina'!F130","v":""}]
[{"$f":"IF('Výsledková listina D'!D43<>\"\",A42+1,\"\")","v":""},null,{"$f":"'Startovní listina'!G131","v":""},{"$f":"'Startovní listina'!B131","v":""},{"$f":"'Startovní listina'!C131","v":""},{"$f":"'Startovní listina'!D131","v":""},{"$f":"'Startovní listina'!E131","v":""},{"$f":"'Startovní listina'!F131","v":""}]
[{"$f":"IF('Výsledková listina D'!D44<>\"\",A43+1,\"\")","v":""},null,{"$f":"'Startovní listina'!G132","v":""},{"$f":"'Startovní listina'!B132","v":""},{"$f":"'Startovní listina'!C132","v":""},{"$f":"'Startovní listina'!D132","v":""},{"$f":"'Startovní listina'!E132","v":""},{"$f":"'Startovní listina'!F132","v":""}]
[{"$f":"IF('Výsledková listina D'!D45<>\"\",A44+1,\"\")","v":""},null,{"$f":"'Startovní listina'!G133","v":""},{"$f":"'Startovní listina'!B133","v":""},{"$f":"'Startovní listina'!C133","v":""},{"$f":"'Startovní listina'!D133","v":""},{"$f":"'Startovní listina'!E133","v":""},{"$f":"'Startovní listina'!F133","v":""}]
[{"$f":"IF('Výsledková listina D'!D46<>\"\",A45+1,\"\")","v":""},null,{"$f":"'Startovní listina'!G134","v":""},{"$f":"'Startovní listina'!B134","v":""},{"$f":"'Startovní listina'!C134","v":""},{"$f":"'Startovní listina'!D134","v":""},{"$f":"'Startovní listina'!E134","v":""},{"$f":"'Startovní listina'!F134","v":""}]
[{"$f":"IF('Výsledková listina D'!D47<>\"\",A46+1,\"\")","v":""},null,{"$f":"'Startovní listina'!G135","v":""},{"$f":"'Startovní listina'!B135","v":""},{"$f":"'Startovní listina'!C135","v":""},{"$f":"'Startovní listina'!D135","v":""},{"$f":"'Startovní listina'!E135","v":""},{"$f":"'Startovní listina'!F135","v":""}]
[{"$f":"IF('Výsledková listina D'!D48<>\"\",A47+1,\"\")","v":""},null,{"$f":"'Startovní listina'!G136","v":""},{"$f":"'Startovní listina'!B136","v":""},{"$f":"'Startovní listina'!C136","v":""},{"$f":"'Startovní listina'!D136","v":""},{"$f":"'Startovní listina'!E136","v":""},{"$f":"'Startovní listina'!F136","v":""}]
[{"$f":"IF('Výsledková listina D'!D49<>\"\",A48+1,\"\")","v":""},null,{"$f":"'Startovní listina'!G137","v":""},{"$f":"'Startovní listina'!B137","v":""},{"$f":"'Startovní listina'!C137","v":""},{"$f":"'Startovní listina'!D137","v":""},{"$f":"'Startovní listina'!E137","v":""},{"$f":"'Startovní listina'!F137","v":""}]
[{"$f":"IF('Výsledková listina D'!D50<>\"\",A49+1,\"\")","v":""},null,{"$f":"'Startovní listina'!G138","v":""},{"$f":"'Startovní listina'!B138","v":""},{"$f":"'Startovní listina'!C138","v":""},{"$f":"'Startovní listina'!D138","v":""},{"$f":"'Startovní listina'!E138","v":""},{"$f":"'Startovní listina'!F138","v":""}]
[{"$f":"IF('Výsledková listina D'!D51<>\"\",A50+1,\"\")","v":""},null,{"$f":"'Startovní listina'!G139","v":""},{"$f":"'Startovní listina'!B139","v":""},{"$f":"'Startovní listina'!C139","v":""},{"$f":"'Startovní listina'!D139","v":""},{"$f":"'Startovní listina'!E139","v":""},{"$f":"'Startovní listina'!F139","v":""}]
[{"$f":"IF('Výsledková listina D'!D52<>\"\",A51+1,\"\")","v":""},null,{"$f":"'Startovní listina'!G140","v":""},{"$f":"'Startovní listina'!B140","v":""},{"$f":"'Startovní listina'!C140","v":""},{"$f":"'Startovní listina'!D140","v":""},{"$f":"'Startovní listina'!E140","v":""},{"$f":"'Startovní listina'!F140","v":""}]
[{"$f":"IF('Výsledková listina D'!D53<>\"\",A52+1,\"\")","v":""},null,{"$f":"'Startovní listina'!G141","v":""},{"$f":"'Startovní listina'!B141","v":""},{"$f":"'Startovní listina'!C141","v":""},{"$f":"'Startovní listina'!D141","v":""},{"$f":"'Startovní listina'!E141","v":""},{"$f":"'Startovní listina'!F141","v":""}]
[]
[]
[]
[]
[]
[null,null,null,"seřadit podle kategorie a pak podle času"]

{"sheet":"Výsledková listina E","index":9,"n_rows":57,"n_cols":11,"rows_kept":57,"cut":false,"hidden":false,"merged":[[0,0,0,8],[1,0,1,8],[1,10,3,14],[2,0,2,8],[56,3,62,7]]}
[{"$f":"\"Výsledková listina - Bystřickem kolem Vírské přehrady \"&'Prezenční listina'!O2","v":"Výsledková listina - Bystřickem kolem Vírské přehrady 2014"}]
[{"$f":"'Prezenční listina'!O2-2004&\". ročník\"","v":"10. ročník"},null,null,null,null,null,null,null,null,null,"\nPoté, co jsou dopsány časy VŠECH běžců, stisknout tlačítko 1.řazení \n\n\nVe sloupci B (Pořadí v kategorii) vytvořit posloupnou číselnou řadu pro každou kategorii a poté stisknout tlačítko 2.řazení\n\n\n                      !!! POZOR!!!\n\n               Použití tlačítek je nevratný krok!"]
["2014-05-31"]
["Celkové pořadí","Pořadí v kategorii","Kategorie","Startovní číslo","Příjmení","Jméno","Narození","Oddíl / Bydliště","Čas"]
[91,1,{"$f":"'Startovní listina'!G10","v":"E"},{"$f":"'Startovní listina'!B10","v":6},{"$f":"'Startovní listina'!C10","v":"Holý"},{"$f":"'Startovní listina'!D10","v":"Josef"},{"$f":"'Startovní listina'!E10","v":1941},{"$f":"'Startovní listina'!F10","v":"Moravská Slávia Brno"},"03:15:56"]
[92,2,{"$f":"'Startovní listina'!G12","v":"E"},{"$f":"'Startovní listina'!B12","v":8},{"$f":"'Startovní listina'!C12","v":"Hrubý"},{"$f":"'Startovní listina'!D12","v":"Milan"},{"$f":"'Startovní listina'!E12","v":1938},{"$f":"'Startovní listina'!F12","v":"Blansko "},"03:32:17"]
[{"$f":"IF('Výsledková listina E'!D7<>\"\",#REF!+1,\"\")","v":""},null,{"$f":"'Startovní listina'!G97","v":""},{"$f":"'Startovní listina'!B97","v":""},{"$f":"'Startovní listina'!C97","v":""},{"$f":"'Startovní listina'!D97","v":""},{"$f":"'Startovní listina'!E97","v":""},{"$f":"'Startovní listina'!F97","v":""}]
[{"$f":"IF('Výsledková listina E'!D8<>\"\",A7+1,\"\")","v":""},null,{"$f":"'Startovní listina'!G98","v":""},{"$f":"'Startovní listina'!B98","v":""},{"$f":"'Startovní listina'!C98","v":""},{"$f":"'Startovní listina'!D98","v":""},{"$f":"'Startovní listina'!E98","v":""},{"$f":"'Startovní listina'!F98","v":""}]
[{"$f":"IF('Výsledková listina E'!D9<>\"\",A8+1,\"\")","v":""},null,{"$f":"'Startovní listina'!G99","v":""},{"$f":"'Startovní listina'!B99","v":""},{"$f":"'Startovní listina'!C99","v":""},{"$f":"'Startovní listina'!D99","v":""},{"$f":"'Startovní listina'!E99","v":""},{"$f":"'Startovní listina'!F99","v":""}]
[{"$f":"IF('Výsledková listina E'!D10<>\"\",A9+1,\"\")","v":""},null,{"$f":"'Startovní listina'!G100","v":""},{"$f":"'Startovní listina'!B100","v":""},{"$f":"'Startovní listina'!C100","v":""},{"$f":"'Startovní listina'!D100","v":""},{"$f":"'Startovní listina'!E100","v":""},{"$f":"'Startovní listina'!F100","v":""}]
[{"$f":"IF('Výsledková listina E'!D11<>\"\",A10+1,\"\")","v":""},null,{"$f":"'Startovní listina'!G101","v":""},{"$f":"'Startovní listina'!B101","v":""},{"$f":"'Startovní listina'!C101","v":""},{"$f":"'Startovní listina'!D101","v":""},{"$f":"'Startovní listina'!E101","v":""},{"$f":"'Startovní listina'!F101","v":""}]
[{"$f":"IF('Výsledková listina E'!D12<>\"\",A11+1,\"\")","v":""},null,{"$f":"'Startovní listina'!G102","v":""},{"$f":"'Startovní listina'!B102","v":""},{"$f":"'Startovní listina'!C102","v":""},{"$f":"'Startovní listina'!D102","v":""},{"$f":"'Startovní listina'!E102","v":""},{"$f":"'Startovní listina'!F102","v":""}]
[{"$f":"IF('Výsledková listina E'!D13<>\"\",A12+1,\"\")","v":""},null,{"$f":"'Startovní listina'!G103","v":""},{"$f":"'Startovní listina'!B103","v":""},{"$f":"'Startovní listina'!C103","v":""},{"$f":"'Startovní listina'!D103","v":""},{"$f":"'Startovní listina'!E103","v":""},{"$f":"'Startovní listina'!F103","v":""}]
[{"$f":"IF('Výsledková listina E'!D14<>\"\",A13+1,\"\")","v":""},null,{"$f":"'Startovní listina'!G104","v":""},{"$f":"'Startovní listina'!B104","v":""},{"$f":"'Startovní listina'!C104","v":""},{"$f":"'Startovní listina'!D104","v":""},{"$f":"'Startovní listina'!E104","v":""},{"$f":"'Startovní listina'!F104","v":""}]
[{"$f":"IF('Výsledková listina E'!D15<>\"\",A14+1,\"\")","v":""},null,{"$f":"'Startovní listina'!G105","v":""},{"$f":"'Startovní listina'!B105","v":""},{"$f":"'Startovní listina'!C105","v":""},{"$f":"'Startovní listina'!D105","v":""},{"$f":"'Startovní listina'!E105","v":""},{"$f":"'Startovní listina'!F105","v":""}]
[{"$f":"IF('Výsledková listina E'!D16<>\"\",A15+1,\"\")","v":""},null,{"$f":"'Startovní listina'!G106","v":""},{"$f":"'Startovní listina'!B106","v":""},{"$f":"'Startovní listina'!C106","v":""},{"$f":"'Startovní listina'!D106","v":""},{"$f":"'Startovní listina'!E106","v":""},{"$f":"'Startovní listina'!F106","v":""}]
[{"$f":"IF('Výsledková listina E'!D17<>\"\",A16+1,\"\")","v":""},null,{"$f":"'Startovní listina'!G107","v":""},{"$f":"'Startovní listina'!B107","v":""},{"$f":"'Startovní listina'!C107","v":""},{"$f":"'Startovní listina'!D107","v":""},{"$f":"'Startovní listina'!E107","v":""},{"$f":"'Startovní listina'!F107","v":""}]
[{"$f":"IF('Výsledková listina E'!D18<>\"\",A17+1,\"\")","v":""},null,{"$f":"'Startovní listina'!G108","v":""},{"$f":"'Startovní listina'!B108","v":""},{"$f":"'Startovní listina'!C108","v":""},{"$f":"'Startovní listina'!D108","v":""},{"$f":"'Startovní listina'!E108","v":""},{"$f":"'Startovní listina'!F108","v":""}]
[{"$f":"IF('Výsledková listina E'!D19<>\"\",A18+1,\"\")","v":""},null,{"$f":"'Startovní listina'!G109","v":""},{"$f":"'Startovní listina'!B109","v":""},{"$f":"'Startovní listina'!C109","v":""},{"$f":"'Startovní listina'!D109","v":""},{"$f":"'Startovní listina'!E109","v":""},{"$f":"'Startovní listina'!F109","v":""}]
[{"$f":"IF('Výsledková listina E'!D20<>\"\",A19+1,\"\")","v":""},null,{"$f":"'Startovní listina'!G110","v":""},{"$f":"'Startovní listina'!B110","v":""},{"$f":"'Startovní listina'!C110","v":""},{"$f":"'Startovní listina'!D110","v":""},{"$f":"'Startovní listina'!E110","v":""},{"$f":"'Startovní listina'!F110","v":""}]
[{"$f":"IF('Výsledková listina E'!D21<>\"\",A20+1,\"\")","v":""},null,{"$f":"'Startovní listina'!G111","v":""},{"$f":"'Startovní listina'!B111","v":""},{"$f":"'Startovní listina'!C111","v":""},{"$f":"'Startovní listina'!D111","v":""},{"$f":"'Startovní listina'!E111","v":""},{"$f":"'Startovní listina'!F111","v":""}]
[{"$f":"IF('Výsledková listina E'!D22<>\"\",A21+1,\"\")","v":""},null,{"$f":"'Startovní listina'!G112","v":""},{"$f":"'Startovní listina'!B112","v":""},{"$f":"'Startovní listina'!C112","v":""},{"$f":"'Startovní listina'!D112","v":""},{"$f":"'Startovní listina'!E112","v":""},{"$f":"'Startovní listina'!F112","v":""}]
[{"$f":"IF('Výsledková listina E'!D23<>\"\",A22+1,\"\")","v":""},null,{"$f":"'Startovní listina'!G113","v":""},{"$f":"'Startovní listina'!B113","v":""},{"$f":"'Startovní listina'!C113","v":""},{"$f":"'Startovní listina'!D113","v":""},{"$f":"'Startovní listina'!E113","v":""},{"$f":"'Startovní listina'!F113","v":""}]
[{"$f":"IF('Výsledková listina E'!D24<>\"\",A23+1,\"\")","v":""},null,{"$f":"'Startovní listina'!G114","v":""},{"$f":"'Startovní listina'!B114","v":""},{"$f":"'Startovní listina'!C114","v":""},{"$f":"'Startovní listina'!D114","v":""},{"$f":"'Startovní listina'!E114","v":""},{"$f":"'Startovní listina'!F114","v":""}]
[{"$f":"IF('Výsledková listina E'!D25<>\"\",A24+1,\"\")","v":""},null,{"$f":"'Startovní listina'!G115","v":""},{"$f":"'Startovní listina'!B115","v":""},{"$f":"'Startovní listina'!C115","v":""},{"$f":"'Startovní listina'!D115","v":""},{"$f":"'Startovní listina'!E115","v":""},{"$f":"'Startovní listina'!F115","v":""}]
[{"$f":"IF('Výsledková listina E'!D26<>\"\",A25+1,\"\")","v":""},null,{"$f":"'Startovní listina'!G116","v":""},{"$f":"'Startovní listina'!B116","v":""},{"$f":"'Startovní listina'!C116","v":""},{"$f":"'Startovní listina'!D116","v":""},{"$f":"'Startovní listina'!E116","v":""},{"$f":"'Startovní listina'!F116","v":""}]
[{"$f":"IF('Výsledková listina E'!D27<>\"\",A26+1,\"\")","v":""},null,{"$f":"'Startovní listina'!G117","v":""},{"$f":"'Startovní listina'!B117","v":""},{"$f":"'Startovní listina'!C117","v":""},{"$f":"'Startovní listina'!D117","v":""},{"$f":"'Startovní listina'!E117","v":""},{"$f":"'Startovní listina'!F117","v":""}]
[{"$f":"IF('Výsledková listina E'!D28<>\"\",A27+1,\"\")","v":""},null,{"$f":"'Startovní listina'!G118","v":""},{"$f":"'Startovní listina'!B118","v":""},{"$f":"'Startovní listina'!C118","v":""},{"$f":"'Startovní listina'!D118","v":""},{"$f":"'Startovní listina'!E118","v":""},{"$f":"'Startovní listina'!F118","v":""}]
[{"$f":"IF('Výsledková listina E'!D29<>\"\",A28+1,\"\")","v":""},null,{"$f":"'Startovní listina'!G119","v":""},{"$f":"'Startovní listina'!B119","v":""},{"$f":"'Startovní listina'!C119","v":""},{"$f":"'Startovní listina'!D119","v":""},{"$f":"'Startovní listina'!E119","v":""},{"$f":"'Startovní listina'!F119","v":""}]
[{"$f":"IF('Výsledková listina E'!D30<>\"\",A29+1,\"\")","v":""},null,{"$f":"'Startovní listina'!G120","v":""},{"$f":"'Startovní listina'!B120","v":""},{"$f":"'Startovní listina'!C120","v":""},{"$f":"'Startovní listina'!D120","v":""},{"$f":"'Startovní listina'!E120","v":""},{"$f":"'Startovní listina'!F120","v":""}]
[{"$f":"IF('Výsledková listina E'!D31<>\"\",A30+1,\"\")","v":""},null,{"$f":"'Startovní listina'!G121","v":""},{"$f":"'Startovní listina'!B121","v":""},{"$f":"'Startovní listina'!C121","v":""},{"$f":"'Startovní listina'!D121","v":""},{"$f":"'Startovní listina'!E121","v":""},{"$f":"'Startovní listina'!F121","v":""}]
[{"$f":"IF('Výsledková listina E'!D32<>\"\",A31+1,\"\")","v":""},null,{"$f":"'Startovní listina'!G122","v":""},{"$f":"'Startovní listina'!B122","v":""},{"$f":"'Startovní listina'!C122","v":""},{"$f":"'Startovní listina'!D122","v":""},{"$f":"'Startovní listina'!E122","v":""},{"$f":"'Startovní listina'!F122","v":""}]
[{"$f":"IF('Výsledková listina E'!D33<>\"\",A32+1,\"\")","v":""},null,{"$f":"'Startovní listina'!G123","v":""},{"$f":"'Startovní listina'!B123","v":""},{"$f":"'Startovní listina'!C123","v":""},{"$f":"'Startovní listina'!D123","v":""},{"$f":"'Startovní listina'!E123","v":""},{"$f":"'Startovní listina'!F123","v":""}]
[{"$f":"IF('Výsledková listina E'!D34<>\"\",A33+1,\"\")","v":""},null,{"$f":"'Startovní listina'!G124","v":""},{"$f":"'Startovní listina'!B124","v":""},{"$f":"'Startovní listina'!C124","v":""},{"$f":"'Startovní listina'!D124","v":""},{"$f":"'Startovní listina'!E124","v":""},{"$f":"'Startovní listina'!F124","v":""}]
[{"$f":"IF('Výsledková listina E'!D35<>\"\",A34+1,\"\")","v":""},null,{"$f":"'Startovní listina'!G125","v":""},{"$f":"'Startovní listina'!B125","v":""},{"$f":"'Startovní listina'!C125","v":""},{"$f":"'Startovní listina'!D125","v":""},{"$f":"'Startovní listina'!E125","v":""},{"$f":"'Startovní listina'!F125","v":""}]
[{"$f":"IF('Výsledková listina E'!D36<>\"\",A35+1,\"\")","v":""},null,{"$f":"'Startovní listina'!G126","v":""},{"$f":"'Startovní listina'!B126","v":""},{"$f":"'Startovní listina'!C126","v":""},{"$f":"'Startovní listina'!D126","v":""},{"$f":"'Startovní listina'!E126","v":""},{"$f":"'Startovní listina'!F126","v":""}]
[{"$f":"IF('Výsledková listina E'!D37<>\"\",A36+1,\"\")","v":""},null,{"$f":"'Startovní listina'!G127","v":""},{"$f":"'Startovní listina'!B127","v":""},{"$f":"'Startovní listina'!C127","v":""},{"$f":"'Startovní listina'!D127","v":""},{"$f":"'Startovní listina'!E127","v":""},{"$f":"'Startovní listina'!F127","v":""}]
[{"$f":"IF('Výsledková listina E'!D38<>\"\",A37+1,\"\")","v":""},null,{"$f":"'Startovní listina'!G128","v":""},{"$f":"'Startovní listina'!B128","v":""},{"$f":"'Startovní listina'!C128","v":""},{"$f":"'Startovní listina'!D128","v":""},{"$f":"'Startovní listina'!E128","v":""},{"$f":"'Startovní listina'!F128","v":""}]
[{"$f":"IF('Výsledková listina E'!D39<>\"\",A38+1,\"\")","v":""},null,{"$f":"'Startovní listina'!G129","v":""},{"$f":"'Startovní listina'!B129","v":""},{"$f":"'Startovní listina'!C129","v":""},{"$f":"'Startovní listina'!D129","v":""},{"$f":"'Startovní listina'!E129","v":""},{"$f":"'Startovní listina'!F129","v":""}]
[{"$f":"IF('Výsledková listina E'!D40<>\"\",A39+1,\"\")","v":""},null,{"$f":"'Startovní listina'!G130","v":""},{"$f":"'Startovní listina'!B130","v":""},{"$f":"'Startovní listina'!C130","v":""},{"$f":"'Startovní listina'!D130","v":""},{"$f":"'Startovní listina'!E130","v":""},{"$f":"'Startovní listina'!F130","v":""}]
[{"$f":"IF('Výsledková listina E'!D41<>\"\",A40+1,\"\")","v":""},null,{"$f":"'Startovní listina'!G131","v":""},{"$f":"'Startovní listina'!B131","v":""},{"$f":"'Startovní listina'!C131","v":""},{"$f":"'Startovní listina'!D131","v":""},{"$f":"'Startovní listina'!E131","v":""},{"$f":"'Startovní listina'!F131","v":""}]
[{"$f":"IF('Výsledková listina E'!D42<>\"\",A41+1,\"\")","v":""},null,{"$f":"'Startovní listina'!G132","v":""},{"$f":"'Startovní listina'!B132","v":""},{"$f":"'Startovní listina'!C132","v":""},{"$f":"'Startovní listina'!D132","v":""},{"$f":"'Startovní listina'!E132","v":""},{"$f":"'Startovní listina'!F132","v":""}]
[{"$f":"IF('Výsledková listina E'!D43<>\"\",A42+1,\"\")","v":""},null,{"$f":"'Startovní listina'!G133","v":""},{"$f":"'Startovní listina'!B133","v":""},{"$f":"'Startovní listina'!C133","v":""},{"$f":"'Startovní listina'!D133","v":""},{"$f":"'Startovní listina'!E133","v":""},{"$f":"'Startovní listina'!F133","v":""}]
[{"$f":"IF('Výsledková listina E'!D44<>\"\",A43+1,\"\")","v":""},null,{"$f":"'Startovní listina'!G134","v":""},{"$f":"'Startovní listina'!B134","v":""},{"$f":"'Startovní listina'!C134","v":""},{"$f":"'Startovní listina'!D134","v":""},{"$f":"'Startovní listina'!E134","v":""},{"$f":"'Startovní listina'!F134","v":""}]
[{"$f":"IF('Výsledková listina E'!D45<>\"\",A44+1,\"\")","v":""},null,{"$f":"'Startovní listina'!G135","v":""},{"$f":"'Startovní listina'!B135","v":""},{"$f":"'Startovní listina'!C135","v":""},{"$f":"'Startovní listina'!D135","v":""},{"$f":"'Startovní listina'!E135","v":""},{"$f":"'Startovní listina'!F135","v":""}]
[{"$f":"IF('Výsledková listina E'!D46<>\"\",A45+1,\"\")","v":""},null,{"$f":"'Startovní listina'!G136","v":""},{"$f":"'Startovní listina'!B136","v":""},{"$f":"'Startovní listina'!C136","v":""},{"$f":"'Startovní listina'!D136","v":""},{"$f":"'Startovní listina'!E136","v":""},{"$f":"'Startovní listina'!F136","v":""}]
[{"$f":"IF('Výsledková listina E'!D47<>\"\",A46+1,\"\")","v":""},null,{"$f":"'Startovní listina'!G137","v":""},{"$f":"'Startovní listina'!B137","v":""},{"$f":"'Startovní listina'!C137","v":""},{"$f":"'Startovní listina'!D137","v":""},{"$f":"'Startovní listina'!E137","v":""},{"$f":"'Startovní listina'!F137","v":""}]
[{"$f":"IF('Výsledková listina E'!D48<>\"\",A47+1,\"\")","v":""},null,{"$f":"'Startovní listina'!G138","v":""},{"$f":"'Startovní listina'!B138","v":""},{"$f":"'Startovní listina'!C138","v":""},{"$f":"'Startovní listina'!D138","v":""},{"$f":"'Startovní listina'!E138","v":""},{"$f":"'Startovní listina'!F138","v":""}]
[{"$f":"IF('Výsledková listina E'!D49<>\"\",A48+1,\"\")","v":""},null,{"$f":"'Startovní listina'!G139","v":""},{"$f":"'Startovní listina'!B139","v":""},{"$f":"'Startovní listina'!C139","v":""},{"$f":"'Startovní listina'!D139","v":""},{"$f":"'Startovní listina'!E139","v":""},{"$f":"'Startovní listina'!F139","v":""}]
[{"$f":"IF('Výsledková listina E'!D50<>\"\",A49+1,\"\")","v":""},null,{"$f":"'Startovní listina'!G140","v":""},{"$f":"'Startovní listina'!B140","v":""},{"$f":"'Startovní listina'!C140","v":""},{"$f":"'Startovní listina'!D140","v":""},{"$f":"'Startovní listina'!E140","v":""},{"$f":"'Startovní listina'!F140","v":""}]
[{"$f":"IF('Výsledková listina E'!D51<>\"\",A50+1,\"\")","v":""},null,{"$f":"'Startovní listina'!G141","v":""},{"$f":"'Startovní listina'!B141","v":""},{"$f":"'Startovní listina'!C141","v":""},{"$f":"'Startovní listina'!D141","v":""},{"$f":"'Startovní listina'!E141","v":""},{"$f":"'Startovní listina'!F141","v":""}]
[]
[]
[]
[]
[]
[null,null,null,"seřadit podle kategorie a pak podle času"]

{"sheet":"Výsledková listina F","index":10,"n_rows":59,"n_cols":11,"rows_kept":59,"cut":false,"hidden":false,"merged":[[0,0,0,8],[1,0,1,8],[1,10,3,14],[2,0,2,8],[58,3,64,7]]}
[{"$f":"\"Výsledková listina - Bystřickem kolem Vírské přehrady \"&'Prezenční listina'!O2","v":"Výsledková listina - Bystřickem kolem Vírské přehrady 2014"}]
[{"$f":"'Prezenční listina'!O2-2004&\". ročník\"","v":"10. ročník"},null,null,null,null,null,null,null,null,null,"\nPoté, co jsou dopsány časy VŠECH běžců, stisknout tlačítko 1.řazení \n\n\nVe sloupci B (Pořadí v kategorii) vytvořit posloupnou číselnou řadu pro každou kategorii a poté stisknout tlačítko 2.řazení\n\n\n                      !!! POZOR!!!\n\n               Použití tlačítek je nevratný krok!"]
["2014-05-31"]
["Celkové pořadí","Pořadí v kategorii","Kategorie","Startovní číslo","Příjmení","Jméno","Narození","Oddíl / Bydliště","Čas"]
[33,1,{"$f":"'Startovní listina'!G26","v":"F"},{"$f":"'Startovní listina'!B26","v":23},{"$f":"'Startovní listina'!C26","v":"Procházková"},{"$f":"'Startovní listina'!D26","v":"Tereza"},{"$f":"'Startovní listina'!E26","v":1990},{"$f":"'Startovní listina'!F26","v":"Orel Ořechov"},"02:07:31"]
[38,2,{"$f":"'Startovní listina'!G78","v":"F"},{"$f":"'Startovní listina'!B78","v":84},{"$f":"'Startovní listina'!C78","v":"Kolková"},{"$f":"'Startovní listina'!D78","v":"Lucie"},{"$f":"'Startovní listina'!E78","v":1982},{"$f":"'Startovní listina'!F78","v":"AC Moravská Slávia Brno"},"02:10:11"]
[50,3,{"$f":"'Startovní listina'!G75","v":"F"},{"$f":"'Startovní listina'!B75","v":80},{"$f":"'Startovní listina'!C75","v":"Krejčová"},{"$f":"'Startovní listina'!D75","v":"Magda"},{"$f":"'Startovní listina'!E75","v":1980},{"$f":"'Startovní listina'!F75","v":"Brno"},"02:15:19"]
[82,4,{"$f":"'Startovní listina'!G63","v":"F"},{"$f":"'Startovní listina'!B63","v":64},{"$f":"'Startovní listina'!C63","v":"Krčková"},{"$f":"'Startovní listina'!D63","v":"Šárka"},{"$f":"'Startovní listina'!E63","v":1988},{"$f":"'Startovní listina'!F63","v":"Liga 100 Olomouc"},"02:44:29"]
[{"$f":"IF('Výsledková listina F'!D9<>\"\",#REF!+1,\"\")","v":""},null,{"$f":"'Startovní listina'!G97","v":""},{"$f":"'Startovní listina'!B97","v":""},{"$f":"'Startovní listina'!C97","v":""},{"$f":"'Startovní listina'!D97","v":""},{"$f":"'Startovní listina'!E97","v":""},{"$f":"'Startovní listina'!F97","v":""}]
[{"$f":"IF('Výsledková listina F'!D10<>\"\",A9+1,\"\")","v":""},null,{"$f":"'Startovní listina'!G98","v":""},{"$f":"'Startovní listina'!B98","v":""},{"$f":"'Startovní listina'!C98","v":""},{"$f":"'Startovní listina'!D98","v":""},{"$f":"'Startovní listina'!E98","v":""},{"$f":"'Startovní listina'!F98","v":""}]
[{"$f":"IF('Výsledková listina F'!D11<>\"\",A10+1,\"\")","v":""},null,{"$f":"'Startovní listina'!G99","v":""},{"$f":"'Startovní listina'!B99","v":""},{"$f":"'Startovní listina'!C99","v":""},{"$f":"'Startovní listina'!D99","v":""},{"$f":"'Startovní listina'!E99","v":""},{"$f":"'Startovní listina'!F99","v":""}]
[{"$f":"IF('Výsledková listina F'!D12<>\"\",A11+1,\"\")","v":""},null,{"$f":"'Startovní listina'!G100","v":""},{"$f":"'Startovní listina'!B100","v":""},{"$f":"'Startovní listina'!C100","v":""},{"$f":"'Startovní listina'!D100","v":""},{"$f":"'Startovní listina'!E100","v":""},{"$f":"'Startovní listina'!F100","v":""}]
[{"$f":"IF('Výsledková listina F'!D13<>\"\",A12+1,\"\")","v":""},null,{"$f":"'Startovní listina'!G101","v":""},{"$f":"'Startovní listina'!B101","v":""},{"$f":"'Startovní listina'!C101","v":""},{"$f":"'Startovní listina'!D101","v":""},{"$f":"'Startovní listina'!E101","v":""},{"$f":"'Startovní listina'!F101","v":""}]
[{"$f":"IF('Výsledková listina F'!D14<>\"\",A13+1,\"\")","v":""},null,{"$f":"'Startovní listina'!G102","v":""},{"$f":"'Startovní listina'!B102","v":""},{"$f":"'Startovní listina'!C102","v":""},{"$f":"'Startovní listina'!D102","v":""},{"$f":"'Startovní listina'!E102","v":""},{"$f":"'Startovní listina'!F102","v":""}]
[{"$f":"IF('Výsledková listina F'!D15<>\"\",A14+1,\"\")","v":""},null,{"$f":"'Startovní listina'!G103","v":""},{"$f":"'Startovní listina'!B103","v":""},{"$f":"'Startovní listina'!C103","v":""},{"$f":"'Startovní listina'!D103","v":""},{"$f":"'Startovní listina'!E103","v":""},{"$f":"'Startovní listina'!F103","v":""}]
[{"$f":"IF('Výsledková listina F'!D16<>\"\",A15+1,\"\")","v":""},null,{"$f":"'Startovní listina'!G104","v":""},{"$f":"'Startovní listina'!B104","v":""},{"$f":"'Startovní listina'!C104","v":""},{"$f":"'Startovní listina'!D104","v":""},{"$f":"'Startovní listina'!E104","v":""},{"$f":"'Startovní listina'!F104","v":""}]
[{"$f":"IF('Výsledková listina F'!D17<>\"\",A16+1,\"\")","v":""},null,{"$f":"'Startovní listina'!G105","v":""},{"$f":"'Startovní listina'!B105","v":""},{"$f":"'Startovní listina'!C105","v":""},{"$f":"'Startovní listina'!D105","v":""},{"$f":"'Startovní listina'!E105","v":""},{"$f":"'Startovní listina'!F105","v":""}]
[{"$f":"IF('Výsledková listina F'!D18<>\"\",A17+1,\"\")","v":""},null,{"$f":"'Startovní listina'!G106","v":""},{"$f":"'Startovní listina'!B106","v":""},{"$f":"'Startovní listina'!C106","v":""},{"$f":"'Startovní listina'!D106","v":""},{"$f":"'Startovní listina'!E106","v":""},{"$f":"'Startovní listina'!F106","v":""}]
[{"$f":"IF('Výsledková listina F'!D19<>\"\",A18+1,\"\")","v":""},null,{"$f":"'Startovní listina'!G107","v":""},{"$f":"'Startovní listina'!B107","v":""},{"$f":"'Startovní listina'!C107","v":""},{"$f":"'Startovní listina'!D107","v":""},{"$f":"'Startovní listina'!E107","v":""},{"$f":"'Startovní listina'!F107","v":""}]
[{"$f":"IF('Výsledková listina F'!D20<>\"\",A19+1,\"\")","v":""},null,{"$f":"'Startovní listina'!G108","v":""},{"$f":"'Startovní listina'!B108","v":""},{"$f":"'Startovní listina'!C108","v":""},{"$f":"'Startovní listina'!D108","v":""},{"$f":"'Startovní listina'!E108","v":""},{"$f":"'Startovní listina'!F108","v":""}]
[{"$f":"IF('Výsledková listina F'!D21<>\"\",A20+1,\"\")","v":""},null,{"$f":"'Startovní listina'!G109","v":""},{"$f":"'Startovní listina'!B109","v":""},{"$f":"'Startovní listina'!C109","v":""},{"$f":"'Startovní listina'!D109","v":""},{"$f":"'Startovní listina'!E109","v":""},{"$f":"'Startovní listina'!F109","v":""}]
[{"$f":"IF('Výsledková listina F'!D22<>\"\",A21+1,\"\")","v":""},null,{"$f":"'Startovní listina'!G110","v":""},{"$f":"'Startovní listina'!B110","v":""},{"$f":"'Startovní listina'!C110","v":""},{"$f":"'Startovní listina'!D110","v":""},{"$f":"'Startovní listina'!E110","v":""},{"$f":"'Startovní listina'!F110","v":""}]
[{"$f":"IF('Výsledková listina F'!D23<>\"\",A22+1,\"\")","v":""},null,{"$f":"'Startovní listina'!G111","v":""},{"$f":"'Startovní listina'!B111","v":""},{"$f":"'Startovní listina'!C111","v":""},{"$f":"'Startovní listina'!D111","v":""},{"$f":"'Startovní listina'!E111","v":""},{"$f":"'Startovní listina'!F111","v":""}]
[{"$f":"IF('Výsledková listina F'!D24<>\"\",A23+1,\"\")","v":""},null,{"$f":"'Startovní listina'!G112","v":""},{"$f":"'Startovní listina'!B112","v":""},{"$f":"'Startovní listina'!C112","v":""},{"$f":"'Startovní listina'!D112","v":""},{"$f":"'Startovní listina'!E112","v":""},{"$f":"'Startovní listina'!F112","v":""}]
[{"$f":"IF('Výsledková listina F'!D25<>\"\",A24+1,\"\")","v":""},null,{"$f":"'Startovní listina'!G113","v":""},{"$f":"'Startovní listina'!B113","v":""},{"$f":"'Startovní listina'!C113","v":""},{"$f":"'Startovní listina'!D113","v":""},{"$f":"'Startovní listina'!E113","v":""},{"$f":"'Startovní listina'!F113","v":""}]
[{"$f":"IF('Výsledková listina F'!D26<>\"\",A25+1,\"\")","v":""},null,{"$f":"'Startovní listina'!G114","v":""},{"$f":"'Startovní listina'!B114","v":""},{"$f":"'Startovní listina'!C114","v":""},{"$f":"'Startovní listina'!D114","v":""},{"$f":"'Startovní listina'!E114","v":""},{"$f":"'Startovní listina'!F114","v":""}]
[{"$f":"IF('Výsledková listina F'!D27<>\"\",A26+1,\"\")","v":""},null,{"$f":"'Startovní listina'!G115","v":""},{"$f":"'Startovní listina'!B115","v":""},{"$f":"'Startovní listina'!C115","v":""},{"$f":"'Startovní listina'!D115","v":""},{"$f":"'Startovní listina'!E115","v":""},{"$f":"'Startovní listina'!F115","v":""}]
[{"$f":"IF('Výsledková listina F'!D28<>\"\",A27+1,\"\")","v":""},null,{"$f":"'Startovní listina'!G116","v":""},{"$f":"'Startovní listina'!B116","v":""},{"$f":"'Startovní listina'!C116","v":""},{"$f":"'Startovní listina'!D116","v":""},{"$f":"'Startovní listina'!E116","v":""},{"$f":"'Startovní listina'!F116","v":""}]
[{"$f":"IF('Výsledková listina F'!D29<>\"\",A28+1,\"\")","v":""},null,{"$f":"'Startovní listina'!G117","v":""},{"$f":"'Startovní listina'!B117","v":""},{"$f":"'Startovní listina'!C117","v":""},{"$f":"'Startovní listina'!D117","v":""},{"$f":"'Startovní listina'!E117","v":""},{"$f":"'Startovní listina'!F117","v":""}]
[{"$f":"IF('Výsledková listina F'!D30<>\"\",A29+1,\"\")","v":""},null,{"$f":"'Startovní listina'!G118","v":""},{"$f":"'Startovní listina'!B118","v":""},{"$f":"'Startovní listina'!C118","v":""},{"$f":"'Startovní listina'!D118","v":""},{"$f":"'Startovní listina'!E118","v":""},{"$f":"'Startovní listina'!F118","v":""}]
[{"$f":"IF('Výsledková listina F'!D31<>\"\",A30+1,\"\")","v":""},null,{"$f":"'Startovní listina'!G119","v":""},{"$f":"'Startovní listina'!B119","v":""},{"$f":"'Startovní listina'!C119","v":""},{"$f":"'Startovní listina'!D119","v":""},{"$f":"'Startovní listina'!E119","v":""},{"$f":"'Startovní listina'!F119","v":""}]
[{"$f":"IF('Výsledková listina F'!D32<>\"\",A31+1,\"\")","v":""},null,{"$f":"'Startovní listina'!G120","v":""},{"$f":"'Startovní listina'!B120","v":""},{"$f":"'Startovní listina'!C120","v":""},{"$f":"'Startovní listina'!D120","v":""},{"$f":"'Startovní listina'!E120","v":""},{"$f":"'Startovní listina'!F120","v":""}]
[{"$f":"IF('Výsledková listina F'!D33<>\"\",A32+1,\"\")","v":""},null,{"$f":"'Startovní listina'!G121","v":""},{"$f":"'Startovní listina'!B121","v":""},{"$f":"'Startovní listina'!C121","v":""},{"$f":"'Startovní listina'!D121","v":""},{"$f":"'Startovní listina'!E121","v":""},{"$f":"'Startovní listina'!F121","v":""}]
[{"$f":"IF('Výsledková listina F'!D34<>\"\",A33+1,\"\")","v":""},null,{"$f":"'Startovní listina'!G122","v":""},{"$f":"'Startovní listina'!B122","v":""},{"$f":"'Startovní listina'!C122","v":""},{"$f":"'Startovní listina'!D122","v":""},{"$f":"'Startovní listina'!E122","v":""},{"$f":"'Startovní listina'!F122","v":""}]
[{"$f":"IF('Výsledková listina F'!D35<>\"\",A34+1,\"\")","v":""},null,{"$f":"'Startovní listina'!G123","v":""},{"$f":"'Startovní listina'!B123","v":""},{"$f":"'Startovní listina'!C123","v":""},{"$f":"'Startovní listina'!D123","v":""},{"$f":"'Startovní listina'!E123","v":""},{"$f":"'Startovní listina'!F123","v":""}]
[{"$f":"IF('Výsledková listina F'!D36<>\"\",A35+1,\"\")","v":""},null,{"$f":"'Startovní listina'!G124","v":""},{"$f":"'Startovní listina'!B124","v":""},{"$f":"'Startovní listina'!C124","v":""},{"$f":"'Startovní listina'!D124","v":""},{"$f":"'Startovní listina'!E124","v":""},{"$f":"'Startovní listina'!F124","v":""}]
[{"$f":"IF('Výsledková listina F'!D37<>\"\",A36+1,\"\")","v":""},null,{"$f":"'Startovní listina'!G125","v":""},{"$f":"'Startovní listina'!B125","v":""},{"$f":"'Startovní listina'!C125","v":""},{"$f":"'Startovní listina'!D125","v":""},{"$f":"'Startovní listina'!E125","v":""},{"$f":"'Startovní listina'!F125","v":""}]
[{"$f":"IF('Výsledková listina F'!D38<>\"\",A37+1,\"\")","v":""},null,{"$f":"'Startovní listina'!G126","v":""},{"$f":"'Startovní listina'!B126","v":""},{"$f":"'Startovní listina'!C126","v":""},{"$f":"'Startovní listina'!D126","v":""},{"$f":"'Startovní listina'!E126","v":""},{"$f":"'Startovní listina'!F126","v":""}]
[{"$f":"IF('Výsledková listina F'!D39<>\"\",A38+1,\"\")","v":""},null,{"$f":"'Startovní listina'!G127","v":""},{"$f":"'Startovní listina'!B127","v":""},{"$f":"'Startovní listina'!C127","v":""},{"$f":"'Startovní listina'!D127","v":""},{"$f":"'Startovní listina'!E127","v":""},{"$f":"'Startovní listina'!F127","v":""}]
[{"$f":"IF('Výsledková listina F'!D40<>\"\",A39+1,\"\")","v":""},null,{"$f":"'Startovní listina'!G128","v":""},{"$f":"'Startovní listina'!B128","v":""},{"$f":"'Startovní listina'!C128","v":""},{"$f":"'Startovní listina'!D128","v":""},{"$f":"'Startovní listina'!E128","v":""},{"$f":"'Startovní listina'!F128","v":""}]
[{"$f":"IF('Výsledková listina F'!D41<>\"\",A40+1,\"\")","v":""},null,{"$f":"'Startovní listina'!G129","v":""},{"$f":"'Startovní listina'!B129","v":""},{"$f":"'Startovní listina'!C129","v":""},{"$f":"'Startovní listina'!D129","v":""},{"$f":"'Startovní listina'!E129","v":""},{"$f":"'Startovní listina'!F129","v":""}]
[{"$f":"IF('Výsledková listina F'!D42<>\"\",A41+1,\"\")","v":""},null,{"$f":"'Startovní listina'!G130","v":""},{"$f":"'Startovní listina'!B130","v":""},{"$f":"'Startovní listina'!C130","v":""},{"$f":"'Startovní listina'!D130","v":""},{"$f":"'Startovní listina'!E130","v":""},{"$f":"'Startovní listina'!F130","v":""}]
[{"$f":"IF('Výsledková listina F'!D43<>\"\",A42+1,\"\")","v":""},null,{"$f":"'Startovní listina'!G131","v":""},{"$f":"'Startovní listina'!B131","v":""},{"$f":"'Startovní listina'!C131","v":""},{"$f":"'Startovní listina'!D131","v":""},{"$f":"'Startovní listina'!E131","v":""},{"$f":"'Startovní listina'!F131","v":""}]
[{"$f":"IF('Výsledková listina F'!D44<>\"\",A43+1,\"\")","v":""},null,{"$f":"'Startovní listina'!G132","v":""},{"$f":"'Startovní listina'!B132","v":""},{"$f":"'Startovní listina'!C132","v":""},{"$f":"'Startovní listina'!D132","v":""},{"$f":"'Startovní listina'!E132","v":""},{"$f":"'Startovní listina'!F132","v":""}]
[{"$f":"IF('Výsledková listina F'!D45<>\"\",A44+1,\"\")","v":""},null,{"$f":"'Startovní listina'!G133","v":""},{"$f":"'Startovní listina'!B133","v":""},{"$f":"'Startovní listina'!C133","v":""},{"$f":"'Startovní listina'!D133","v":""},{"$f":"'Startovní listina'!E133","v":""},{"$f":"'Startovní listina'!F133","v":""}]
[{"$f":"IF('Výsledková listina F'!D46<>\"\",A45+1,\"\")","v":""},null,{"$f":"'Startovní listina'!G134","v":""},{"$f":"'Startovní listina'!B134","v":""},{"$f":"'Startovní listina'!C134","v":""},{"$f":"'Startovní listina'!D134","v":""},{"$f":"'Startovní listina'!E134","v":""},{"$f":"'Startovní listina'!F134","v":""}]
[{"$f":"IF('Výsledková listina F'!D47<>\"\",A46+1,\"\")","v":""},null,{"$f":"'Startovní listina'!G135","v":""},{"$f":"'Startovní listina'!B135","v":""},{"$f":"'Startovní listina'!C135","v":""},{"$f":"'Startovní listina'!D135","v":""},{"$f":"'Startovní listina'!E135","v":""},{"$f":"'Startovní listina'!F135","v":""}]
[{"$f":"IF('Výsledková listina F'!D48<>\"\",A47+1,\"\")","v":""},null,{"$f":"'Startovní listina'!G136","v":""},{"$f":"'Startovní listina'!B136","v":""},{"$f":"'Startovní listina'!C136","v":""},{"$f":"'Startovní listina'!D136","v":""},{"$f":"'Startovní listina'!E136","v":""},{"$f":"'Startovní listina'!F136","v":""}]
[{"$f":"IF('Výsledková listina F'!D49<>\"\",A48+1,\"\")","v":""},null,{"$f":"'Startovní listina'!G137","v":""},{"$f":"'Startovní listina'!B137","v":""},{"$f":"'Startovní listina'!C137","v":""},{"$f":"'Startovní listina'!D137","v":""},{"$f":"'Startovní listina'!E137","v":""},{"$f":"'Startovní listina'!F137","v":""}]
[{"$f":"IF('Výsledková listina F'!D50<>\"\",A49+1,\"\")","v":""},null,{"$f":"'Startovní listina'!G138","v":""},{"$f":"'Startovní listina'!B138","v":""},{"$f":"'Startovní listina'!C138","v":""},{"$f":"'Startovní listina'!D138","v":""},{"$f":"'Startovní listina'!E138","v":""},{"$f":"'Startovní listina'!F138","v":""}]
[{"$f":"IF('Výsledková listina F'!D51<>\"\",A50+1,\"\")","v":""},null,{"$f":"'Startovní listina'!G139","v":""},{"$f":"'Startovní listina'!B139","v":""},{"$f":"'Startovní listina'!C139","v":""},{"$f":"'Startovní listina'!D139","v":""},{"$f":"'Startovní listina'!E139","v":""},{"$f":"'Startovní listina'!F139","v":""}]
[{"$f":"IF('Výsledková listina F'!D52<>\"\",A51+1,\"\")","v":""},null,{"$f":"'Startovní listina'!G140","v":""},{"$f":"'Startovní listina'!B140","v":""},{"$f":"'Startovní listina'!C140","v":""},{"$f":"'Startovní listina'!D140","v":""},{"$f":"'Startovní listina'!E140","v":""},{"$f":"'Startovní listina'!F140","v":""}]
[{"$f":"IF('Výsledková listina F'!D53<>\"\",A52+1,\"\")","v":""},null,{"$f":"'Startovní listina'!G141","v":""},{"$f":"'Startovní listina'!B141","v":""},{"$f":"'Startovní listina'!C141","v":""},{"$f":"'Startovní listina'!D141","v":""},{"$f":"'Startovní listina'!E141","v":""},{"$f":"'Startovní listina'!F141","v":""}]
[]
[]
[]
[]
[]
[null,null,null,"seřadit podle kategorie a pak podle času"]

{"sheet":"Výsledková listina G","index":11,"n_rows":62,"n_cols":11,"rows_kept":62,"cut":false,"hidden":false,"merged":[[0,0,0,8],[1,0,1,8],[1,10,3,14],[2,0,2,8],[61,3,67,7]]}
[{"$f":"\"Výsledková listina - Bystřickem kolem Vírské přehrady \"&'Prezenční listina'!O2","v":"Výsledková listina - Bystřickem kolem Vírské přehrady 2014"}]
[{"$f":"'Prezenční listina'!O2-2004&\". ročník\"","v":"10. ročník"},null,null,null,null,null,null,null,null,null,"\nPoté, co jsou dopsány časy VŠECH běžců, stisknout tlačítko 1.řazení \n\n\nVe sloupci B (Pořadí v kategorii) vytvořit posloupnou číselnou řadu pro každou kategorii a poté stisknout tlačítko 2.řazení\n\n\n                      !!! POZOR!!!\n\n               Použití tlačítek je nevratný krok!"]
["2014-05-31"]
["Celkové pořadí","Pořadí v kategorii","Kategorie","Startovní číslo","Příjmení","Jméno","Narození","Oddíl / Bydliště","Čas"]
[35,1,{"$f":"'Startovní listina'!G43","v":"G"},{"$f":"'Startovní listina'!B43","v":43},{"$f":"'Startovní listina'!C43","v":"Komárková"},{"$f":"'Startovní listina'!D43","v":"Zdeňka"},{"$f":"'Startovní listina'!E43","v":1974},{"$f":"'Startovní listina'!F43","v":"SDH Bolešín"},"02:09:22"]
[47,2,{"$f":"'Startovní listina'!G54","v":"G"},{"$f":"'Startovní listina'!B54","v":55},{"$f":"'Startovní listina'!C54","v":"Bódiová"},{"$f":"'Startovní listina'!D54","v":"Adéla"},{"$f":"'Startovní listina'!E54","v":1976},{"$f":"'Startovní listina'!F54","v":"Sporty.cz Brno"},"02:13:41"]
[57,3,{"$f":"'Startovní listina'!G92","v":"G"},{"$f":"'Startovní listina'!B92","v":99},{"$f":"'Startovní listina'!C92","v":"Všetečková"},{"$f":"'Startovní listina'!D92","v":"Pavla"},{"$f":"'Startovní listina'!E92","v":1975},{"$f":"'Startovní listina'!F92","v":"MOTOR JOURNAL"},"02:18:06"]
[62,4,{"$f":"'Startovní listina'!G64","v":"G"},{"$f":"'Startovní listina'!B64","v":66},{"$f":"'Startovní listina'!C64","v":"Ráček Pelikánová"},{"$f":"'Startovní listina'!D64","v":"Dáša"},{"$f":"'Startovní listina'!E64","v":1976},{"$f":"'Startovní listina'!F64","v":"Sporty.cz Křoví"},"02:20:54"]
[63,5,{"$f":"'Startovní listina'!G68","v":"G"},{"$f":"'Startovní listina'!B68","v":72},{"$f":"'Startovní listina'!C68","v":"Krejsová"},{"$f":"'Startovní listina'!D68","v":"Petra"},{"$f":"'Startovní listina'!E68","v":1979},{"$f":"'Startovní listina'!F68","v":"Boskovice"},"02:21:09"]
[72,6,{"$f":"'Startovní listina'!G69","v":"G"},{"$f":"'Startovní listina'!B69","v":73},{"$f":"'Startovní listina'!C69","v":"Šustrová"},{"$f":"'Startovní listina'!D69","v":"Kateřina"},{"$f":"'Startovní listina'!E69","v":1979},{"$f":"'Startovní listina'!F69","v":"Liga 100 Olomouc"},"02:30:15"]
[90,7,{"$f":"'Startovní listina'!G39","v":"G"},{"$f":"'Startovní listina'!B39","v":38},{"$f":"'Startovní listina'!C39","v":"Ježová"},{"$f":"'Startovní listina'!D39","v":"Martina"},{"$f":"'Startovní listina'!E39","v":1975},{"$f":"'Startovní listina'!F39","v":"Brno"},"03:15:55"]
[{"$f":"IF('Výsledková listina G'!D12<>\"\",#REF!+1,\"\")","v":""},null,{"$f":"'Startovní listina'!G97","v":""},{"$f":"'Startovní listina'!B97","v":""},{"$f":"'Startovní listina'!C97","v":""},{"$f":"'Startovní listina'!D97","v":""},{"$f":"'Startovní listina'!E97","v":""},{"$f":"'Startovní listina'!F97","v":""}]
[{"$f":"IF('Výsledková listina G'!D13<>\"\",A12+1,\"\")","v":""},null,{"$f":"'Startovní listina'!G98","v":""},{"$f":"'Startovní listina'!B98","v":""},{"$f":"'Startovní listina'!C98","v":""},{"$f":"'Startovní listina'!D98","v":""},{"$f":"'Startovní listina'!E98","v":""},{"$f":"'Startovní listina'!F98","v":""}]
[{"$f":"IF('Výsledková listina G'!D14<>\"\",A13+1,\"\")","v":""},null,{"$f":"'Startovní listina'!G99","v":""},{"$f":"'Startovní listina'!B99","v":""},{"$f":"'Startovní listina'!C99","v":""},{"$f":"'Startovní listina'!D99","v":""},{"$f":"'Startovní listina'!E99","v":""},{"$f":"'Startovní listina'!F99","v":""}]
[{"$f":"IF('Výsledková listina G'!D15<>\"\",A14+1,\"\")","v":""},null,{"$f":"'Startovní listina'!G100","v":""},{"$f":"'Startovní listina'!B100","v":""},{"$f":"'Startovní listina'!C100","v":""},{"$f":"'Startovní listina'!D100","v":""},{"$f":"'Startovní listina'!E100","v":""},{"$f":"'Startovní listina'!F100","v":""}]
[{"$f":"IF('Výsledková listina G'!D16<>\"\",A15+1,\"\")","v":""},null,{"$f":"'Startovní listina'!G101","v":""},{"$f":"'Startovní listina'!B101","v":""},{"$f":"'Startovní listina'!C101","v":""},{"$f":"'Startovní listina'!D101","v":""},{"$f":"'Startovní listina'!E101","v":""},{"$f":"'Startovní listina'!F101","v":""}]
[{"$f":"IF('Výsledková listina G'!D17<>\"\",A16+1,\"\")","v":""},null,{"$f":"'Startovní listina'!G102","v":""},{"$f":"'Startovní listina'!B102","v":""},{"$f":"'Startovní listina'!C102","v":""},{"$f":"'Startovní listina'!D102","v":""},{"$f":"'Startovní listina'!E102","v":""},{"$f":"'Startovní listina'!F102","v":""}]
[{"$f":"IF('Výsledková listina G'!D18<>\"\",A17+1,\"\")","v":""},null,{"$f":"'Startovní listina'!G103","v":""},{"$f":"'Startovní listina'!B103","v":""},{"$f":"'Startovní listina'!C103","v":""},{"$f":"'Startovní listina'!D103","v":""},{"$f":"'Startovní listina'!E103","v":""},{"$f":"'Startovní listina'!F103","v":""}]
[{"$f":"IF('Výsledková listina G'!D19<>\"\",A18+1,\"\")","v":""},null,{"$f":"'Startovní listina'!G104","v":""},{"$f":"'Startovní listina'!B104","v":""},{"$f":"'Startovní listina'!C104","v":""},{"$f":"'Startovní listina'!D104","v":""},{"$f":"'Startovní listina'!E104","v":""},{"$f":"'Startovní listina'!F104","v":""}]
[{"$f":"IF('Výsledková listina G'!D20<>\"\",A19+1,\"\")","v":""},null,{"$f":"'Startovní listina'!G105","v":""},{"$f":"'Startovní listina'!B105","v":""},{"$f":"'Startovní listina'!C105","v":""},{"$f":"'Startovní listina'!D105","v":""},{"$f":"'Startovní listina'!E105","v":""},{"$f":"'Startovní listina'!F105","v":""}]
[{"$f":"IF('Výsledková listina G'!D21<>\"\",A20+1,\"\")","v":""},null,{"$f":"'Startovní listina'!G106","v":""},{"$f":"'Startovní listina'!B106","v":""},{"$f":"'Startovní listina'!C106","v":""},{"$f":"'Startovní listina'!D106","v":""},{"$f":"'Startovní listina'!E106","v":""},{"$f":"'Startovní listina'!F106","v":""}]
[{"$f":"IF('Výsledková listina G'!D22<>\"\",A21+1,\"\")","v":""},null,{"$f":"'Startovní listina'!G107","v":""},{"$f":"'Startovní listina'!B107","v":""},{"$f":"'Startovní listina'!C107","v":""},{"$f":"'Startovní listina'!D107","v":""},{"$f":"'Startovní listina'!E107","v":""},{"$f":"'Startovní listina'!F107","v":""}]
[{"$f":"IF('Výsledková listina G'!D23<>\"\",A22+1,\"\")","v":""},null,{"$f":"'Startovní listina'!G108","v":""},{"$f":"'Startovní listina'!B108","v":""},{"$f":"'Startovní listina'!C108","v":""},{"$f":"'Startovní listina'!D108","v":""},{"$f":"'Startovní listina'!E108","v":""},{"$f":"'Startovní listina'!F108","v":""}]
[{"$f":"IF('Výsledková listina G'!D24<>\"\",A23+1,\"\")","v":""},null,{"$f":"'Startovní listina'!G109","v":""},{"$f":"'Startovní listina'!B109","v":""},{"$f":"'Startovní listina'!C109","v":""},{"$f":"'Startovní listina'!D109","v":""},{"$f":"'Startovní listina'!E109","v":""},{"$f":"'Startovní listina'!F109","v":""}]
[{"$f":"IF('Výsledková listina G'!D25<>\"\",A24+1,\"\")","v":""},null,{"$f":"'Startovní listina'!G110","v":""},{"$f":"'Startovní listina'!B110","v":""},{"$f":"'Startovní listina'!C110","v":""},{"$f":"'Startovní listina'!D110","v":""},{"$f":"'Startovní listina'!E110","v":""},{"$f":"'Startovní listina'!F110","v":""}]
[{"$f":"IF('Výsledková listina G'!D26<>\"\",A25+1,\"\")","v":""},null,{"$f":"'Startovní listina'!G111","v":""},{"$f":"'Startovní listina'!B111","v":""},{"$f":"'Startovní listina'!C111","v":""},{"$f":"'Startovní listina'!D111","v":""},{"$f":"'Startovní listina'!E111","v":""},{"$f":"'Startovní listina'!F111","v":""}]
[{"$f":"IF('Výsledková listina G'!D27<>\"\",A26+1,\"\")","v":""},null,{"$f":"'Startovní listina'!G112","v":""},{"$f":"'Startovní listina'!B112","v":""},{"$f":"'Startovní listina'!C112","v":""},{"$f":"'Startovní listina'!D112","v":""},{"$f":"'Startovní listina'!E112","v":""},{"$f":"'Startovní listina'!F112","v":""}]
[{"$f":"IF('Výsledková listina G'!D28<>\"\",A27+1,\"\")","v":""},null,{"$f":"'Startovní listina'!G113","v":""},{"$f":"'Startovní listina'!B113","v":""},{"$f":"'Startovní listina'!C113","v":""},{"$f":"'Startovní listina'!D113","v":""},{"$f":"'Startovní listina'!E113","v":""},{"$f":"'Startovní listina'!F113","v":""}]
[{"$f":"IF('Výsledková listina G'!D29<>\"\",A28+1,\"\")","v":""},null,{"$f":"'Startovní listina'!G114","v":""},{"$f":"'Startovní listina'!B114","v":""},{"$f":"'Startovní listina'!C114","v":""},{"$f":"'Startovní listina'!D114","v":""},{"$f":"'Startovní listina'!E114","v":""},{"$f":"'Startovní listina'!F114","v":""}]
[{"$f":"IF('Výsledková listina G'!D30<>\"\",A29+1,\"\")","v":""},null,{"$f":"'Startovní listina'!G115","v":""},{"$f":"'Startovní listina'!B115","v":""},{"$f":"'Startovní listina'!C115","v":""},{"$f":"'Startovní listina'!D115","v":""},{"$f":"'Startovní listina'!E115","v":""},{"$f":"'Startovní listina'!F115","v":""}]
[{"$f":"IF('Výsledková listina G'!D31<>\"\",A30+1,\"\")","v":""},null,{"$f":"'Startovní listina'!G116","v":""},{"$f":"'Startovní listina'!B116","v":""},{"$f":"'Startovní listina'!C116","v":""},{"$f":"'Startovní listina'!D116","v":""},{"$f":"'Startovní listina'!E116","v":""},{"$f":"'Startovní listina'!F116","v":""}]
[{"$f":"IF('Výsledková listina G'!D32<>\"\",A31+1,\"\")","v":""},null,{"$f":"'Startovní listina'!G117","v":""},{"$f":"'Startovní listina'!B117","v":""},{"$f":"'Startovní listina'!C117","v":""},{"$f":"'Startovní listina'!D117","v":""},{"$f":"'Startovní listina'!E117","v":""},{"$f":"'Startovní listina'!F117","v":""}]
[{"$f":"IF('Výsledková listina G'!D33<>\"\",A32+1,\"\")","v":""},null,{"$f":"'Startovní listina'!G118","v":""},{"$f":"'Startovní listina'!B118","v":""},{"$f":"'Startovní listina'!C118","v":""},{"$f":"'Startovní listina'!D118","v":""},{"$f":"'Startovní listina'!E118","v":""},{"$f":"'Startovní listina'!F118","v":""}]
[{"$f":"IF('Výsledková listina G'!D34<>\"\",A33+1,\"\")","v":""},null,{"$f":"'Startovní listina'!G119","v":""},{"$f":"'Startovní listina'!B119","v":""},{"$f":"'Startovní listina'!C119","v":""},{"$f":"'Startovní listina'!D119","v":""},{"$f":"'Startovní listina'!E119","v":""},{"$f":"'Startovní listina'!F119","v":""}]
[{"$f":"IF('Výsledková listina G'!D35<>\"\",A34+1,\"\")","v":""},null,{"$f":"'Startovní listina'!G120","v":""},{"$f":"'Startovní listina'!B120","v":""},{"$f":"'Startovní listina'!C120","v":""},{"$f":"'Startovní listina'!D120","v":""},{"$f":"'Startovní listina'!E120","v":""},{"$f":"'Startovní listina'!F120","v":""}]
[{"$f":"IF('Výsledková listina G'!D36<>\"\",A35+1,\"\")","v":""},null,{"$f":"'Startovní listina'!G121","v":""},{"$f":"'Startovní listina'!B121","v":""},{"$f":"'Startovní listina'!C121","v":""},{"$f":"'Startovní listina'!D121","v":""},{"$f":"'Startovní listina'!E121","v":""},{"$f":"'Startovní listina'!F121","v":""}]
[{"$f":"IF('Výsledková listina G'!D37<>\"\",A36+1,\"\")","v":""},null,{"$f":"'Startovní listina'!G122","v":""},{"$f":"'Startovní listina'!B122","v":""},{"$f":"'Startovní listina'!C122","v":""},{"$f":"'Startovní listina'!D122","v":""},{"$f":"'Startovní listina'!E122","v":""},{"$f":"'Startovní listina'!F122","v":""}]
[{"$f":"IF('Výsledková listina G'!D38<>\"\",A37+1,\"\")","v":""},null,{"$f":"'Startovní listina'!G123","v":""},{"$f":"'Startovní listina'!B123","v":""},{"$f":"'Startovní listina'!C123","v":""},{"$f":"'Startovní listina'!D123","v":""},{"$f":"'Startovní listina'!E123","v":""},{"$f":"'Startovní listina'!F123","v":""}]
[{"$f":"IF('Výsledková listina G'!D39<>\"\",A38+1,\"\")","v":""},null,{"$f":"'Startovní listina'!G124","v":""},{"$f":"'Startovní listina'!B124","v":""},{"$f":"'Startovní listina'!C124","v":""},{"$f":"'Startovní listina'!D124","v":""},{"$f":"'Startovní listina'!E124","v":""},{"$f":"'Startovní listina'!F124","v":""}]
[{"$f":"IF('Výsledková listina G'!D40<>\"\",A39+1,\"\")","v":""},null,{"$f":"'Startovní listina'!G125","v":""},{"$f":"'Startovní listina'!B125","v":""},{"$f":"'Startovní listina'!C125","v":""},{"$f":"'Startovní listina'!D125","v":""},{"$f":"'Startovní listina'!E125","v":""},{"$f":"'Startovní listina'!F125","v":""}]
[{"$f":"IF('Výsledková listina G'!D41<>\"\",A40+1,\"\")","v":""},null,{"$f":"'Startovní listina'!G126","v":""},{"$f":"'Startovní listina'!B126","v":""},{"$f":"'Startovní listina'!C126","v":""},{"$f":"'Startovní listina'!D126","v":""},{"$f":"'Startovní listina'!E126","v":""},{"$f":"'Startovní listina'!F126","v":""}]
[{"$f":"IF('Výsledková listina G'!D42<>\"\",A41+1,\"\")","v":""},null,{"$f":"'Startovní listina'!G127","v":""},{"$f":"'Startovní listina'!B127","v":""},{"$f":"'Startovní listina'!C127","v":""},{"$f":"'Startovní listina'!D127","v":""},{"$f":"'Startovní listina'!E127","v":""},{"$f":"'Startovní listina'!F127","v":""}]
[{"$f":"IF('Výsledková listina G'!D43<>\"\",A42+1,\"\")","v":""},null,{"$f":"'Startovní listina'!G128","v":""},{"$f":"'Startovní listina'!B128","v":""},{"$f":"'Startovní listina'!C128","v":""},{"$f":"'Startovní listina'!D128","v":""},{"$f":"'Startovní listina'!E128","v":""},{"$f":"'Startovní listina'!F128","v":""}]
[{"$f":"IF('Výsledková listina G'!D44<>\"\",A43+1,\"\")","v":""},null,{"$f":"'Startovní listina'!G129","v":""},{"$f":"'Startovní listina'!B129","v":""},{"$f":"'Startovní listina'!C129","v":""},{"$f":"'Startovní listina'!D129","v":""},{"$f":"'Startovní listina'!E129","v":""},{"$f":"'Startovní listina'!F129","v":""}]
[{"$f":"IF('Výsledková listina G'!D45<>\"\",A44+1,\"\")","v":""},null,{"$f":"'Startovní listina'!G130","v":""},{"$f":"'Startovní listina'!B130","v":""},{"$f":"'Startovní listina'!C130","v":""},{"$f":"'Startovní listina'!D130","v":""},{"$f":"'Startovní listina'!E130","v":""},{"$f":"'Startovní listina'!F130","v":""}]
[{"$f":"IF('Výsledková listina G'!D46<>\"\",A45+1,\"\")","v":""},null,{"$f":"'Startovní listina'!G131","v":""},{"$f":"'Startovní listina'!B131","v":""},{"$f":"'Startovní listina'!C131","v":""},{"$f":"'Startovní listina'!D131","v":""},{"$f":"'Startovní listina'!E131","v":""},{"$f":"'Startovní listina'!F131","v":""}]
[{"$f":"IF('Výsledková listina G'!D47<>\"\",A46+1,\"\")","v":""},null,{"$f":"'Startovní listina'!G132","v":""},{"$f":"'Startovní listina'!B132","v":""},{"$f":"'Startovní listina'!C132","v":""},{"$f":"'Startovní listina'!D132","v":""},{"$f":"'Startovní listina'!E132","v":""},{"$f":"'Startovní listina'!F132","v":""}]
[{"$f":"IF('Výsledková listina G'!D48<>\"\",A47+1,\"\")","v":""},null,{"$f":"'Startovní listina'!G133","v":""},{"$f":"'Startovní listina'!B133","v":""},{"$f":"'Startovní listina'!C133","v":""},{"$f":"'Startovní listina'!D133","v":""},{"$f":"'Startovní listina'!E133","v":""},{"$f":"'Startovní listina'!F133","v":""}]
[{"$f":"IF('Výsledková listina G'!D49<>\"\",A48+1,\"\")","v":""},null,{"$f":"'Startovní listina'!G134","v":""},{"$f":"'Startovní listina'!B134","v":""},{"$f":"'Startovní listina'!C134","v":""},{"$f":"'Startovní listina'!D134","v":""},{"$f":"'Startovní listina'!E134","v":""},{"$f":"'Startovní listina'!F134","v":""}]
[{"$f":"IF('Výsledková listina G'!D50<>\"\",A49+1,\"\")","v":""},null,{"$f":"'Startovní listina'!G135","v":""},{"$f":"'Startovní listina'!B135","v":""},{"$f":"'Startovní listina'!C135","v":""},{"$f":"'Startovní listina'!D135","v":""},{"$f":"'Startovní listina'!E135","v":""},{"$f":"'Startovní listina'!F135","v":""}]
[{"$f":"IF('Výsledková listina G'!D51<>\"\",A50+1,\"\")","v":""},null,{"$f":"'Startovní listina'!G136","v":""},{"$f":"'Startovní listina'!B136","v":""},{"$f":"'Startovní listina'!C136","v":""},{"$f":"'Startovní listina'!D136","v":""},{"$f":"'Startovní listina'!E136","v":""},{"$f":"'Startovní listina'!F136","v":""}]
[{"$f":"IF('Výsledková listina G'!D52<>\"\",A51+1,\"\")","v":""},null,{"$f":"'Startovní listina'!G137","v":""},{"$f":"'Startovní listina'!B137","v":""},{"$f":"'Startovní listina'!C137","v":""},{"$f":"'Startovní listina'!D137","v":""},{"$f":"'Startovní listina'!E137","v":""},{"$f":"'Startovní listina'!F137","v":""}]
[{"$f":"IF('Výsledková listina G'!D53<>\"\",A52+1,\"\")","v":""},null,{"$f":"'Startovní listina'!G138","v":""},{"$f":"'Startovní listina'!B138","v":""},{"$f":"'Startovní listina'!C138","v":""},{"$f":"'Startovní listina'!D138","v":""},{"$f":"'Startovní listina'!E138","v":""},{"$f":"'Startovní listina'!F138","v":""}]
[{"$f":"IF('Výsledková listina G'!D54<>\"\",A53+1,\"\")","v":""},null,{"$f":"'Startovní listina'!G139","v":""},{"$f":"'Startovní listina'!B139","v":""},{"$f":"'Startovní listina'!C139","v":""},{"$f":"'Startovní listina'!D139","v":""},{"$f":"'Startovní listina'!E139","v":""},{"$f":"'Startovní listina'!F139","v":""}]
[{"$f":"IF('Výsledková listina G'!D55<>\"\",A54+1,\"\")","v":""},null,{"$f":"'Startovní listina'!G140","v":""},{"$f":"'Startovní listina'!B140","v":""},{"$f":"'Startovní listina'!C140","v":""},{"$f":"'Startovní listina'!D140","v":""},{"$f":"'Startovní listina'!E140","v":""},{"$f":"'Startovní listina'!F140","v":""}]
[{"$f":"IF('Výsledková listina G'!D56<>\"\",A55+1,\"\")","v":""},null,{"$f":"'Startovní listina'!G141","v":""},{"$f":"'Startovní listina'!B141","v":""},{"$f":"'Startovní listina'!C141","v":""},{"$f":"'Startovní listina'!D141","v":""},{"$f":"'Startovní listina'!E141","v":""},{"$f":"'Startovní listina'!F141","v":""}]
[]
[]
[]
[]
[]
[null,null,null,"seřadit podle kategorie a pak podle času"]

{"sheet":"Výsledková listina H","index":12,"n_rows":60,"n_cols":11,"rows_kept":60,"cut":false,"hidden":false,"merged":[[0,0,0,8],[1,0,1,8],[1,10,3,14],[2,0,2,8],[59,3,65,7]]}
[{"$f":"\"Výsledková listina - Bystřickem kolem Vírské přehrady \"&'Prezenční listina'!O2","v":"Výsledková listina - Bystřickem kolem Vírské přehrady 2014"}]
[{"$f":"'Prezenční listina'!O2-2004&\". ročník\"","v":"10. ročník"},null,null,null,null,null,null,null,null,null,"\nPoté, co jsou dopsány časy VŠECH běžců, stisknout tlačítko 1.řazení \n\n\nVe sloupci B (Pořadí v kategorii) vytvořit posloupnou číselnou řadu pro každou kategorii a poté stisknout tlačítko 2.řazení\n\n\n                      !!! POZOR!!!\n\n               Použití tlačítek je nevratný krok!"]
["2014-05-31"]
["Celkové pořadí","Pořadí v kategorii","Kategorie","Startovní číslo","Příjmení","Jméno","Narození","Oddíl / Bydliště","Čas"]
[31,1,{"$f":"'Startovní listina'!G37","v":"H"},{"$f":"'Startovní listina'!B37","v":36},{"$f":"'Startovní listina'!C37","v":"Martincová"},{"$f":"'Startovní listina'!D37","v":"Ivana"},{"$f":"'Startovní listina'!E37","v":1963},{"$f":"'Startovní listina'!F37","v":"Moravská Slávia Brno"},"02:07:07"]
[34,2,{"$f":"'Startovní listina'!G90","v":"H"},{"$f":"'Startovní listina'!B90","v":97},{"$f":"'Startovní listina'!C90","v":"Krátká"},{"$f":"'Startovní listina'!D90","v":"Anna"},{"$f":"'Startovní listina'!E90","v":1969},{"$f":"'Startovní listina'!F90","v":"Hvězda SKP Pardubice"},"02:09:17"]
[80,3,{"$f":"'Startovní listina'!G85","v":"H"},{"$f":"'Startovní listina'!B85","v":92},{"$f":"'Startovní listina'!C85","v":"Szabová"},{"$f":"'Startovní listina'!D85","v":"Dana"},{"$f":"'Startovní listina'!E85","v":1967},{"$f":"'Startovní listina'!F85","v":"LRS Vyškov"},"02:38:40"]
[84,4,{"$f":"'Startovní listina'!G83","v":"H"},{"$f":"'Startovní listina'!B83","v":90},{"$f":"'Startovní listina'!C83","v":"Kalová"},{"$f":"'Startovní listina'!D83","v":"Jana"},{"$f":"'Startovní listina'!E83","v":1966},{"$f":"'Startovní listina'!F83","v":"Zetor Brno"},"02:52:22"]
[87,5,{"$f":"'Startovní listina'!G11","v":"H"},{"$f":"'Startovní listina'!B11","v":7},{"$f":"'Startovní listina'!C11","v":"Tesařová"},{"$f":"'Startovní listina'!D11","v":"Marie"},{"$f":"'Startovní listina'!E11","v":1954},{"$f":"'Startovní listina'!F11","v":"Křižanov"},"03:03:35"]
[{"$f":"IF('Výsledková listina H'!D10<>\"\",A9+1,\"\")","v":""},null,{"$f":"'Startovní listina'!G97","v":""},{"$f":"'Startovní listina'!B97","v":""},{"$f":"'Startovní listina'!C97","v":""},{"$f":"'Startovní listina'!D97","v":""},{"$f":"'Startovní listina'!E97","v":""},{"$f":"'Startovní listina'!F97","v":""}]
[{"$f":"IF('Výsledková listina H'!D11<>\"\",A10+1,\"\")","v":""},null,{"$f":"'Startovní listina'!G98","v":""},{"$f":"'Startovní listina'!B98","v":""},{"$f":"'Startovní listina'!C98","v":""},{"$f":"'Startovní listina'!D98","v":""},{"$f":"'Startovní listina'!E98","v":""},{"$f":"'Startovní listina'!F98","v":""}]
[{"$f":"IF('Výsledková listina H'!D12<>\"\",A11+1,\"\")","v":""},null,{"$f":"'Startovní listina'!G99","v":""},{"$f":"'Startovní listina'!B99","v":""},{"$f":"'Startovní listina'!C99","v":""},{"$f":"'Startovní listina'!D99","v":""},{"$f":"'Startovní listina'!E99","v":""},{"$f":"'Startovní listina'!F99","v":""}]
[{"$f":"IF('Výsledková listina H'!D13<>\"\",A12+1,\"\")","v":""},null,{"$f":"'Startovní listina'!G100","v":""},{"$f":"'Startovní listina'!B100","v":""},{"$f":"'Startovní listina'!C100","v":""},{"$f":"'Startovní listina'!D100","v":""},{"$f":"'Startovní listina'!E100","v":""},{"$f":"'Startovní listina'!F100","v":""}]
[{"$f":"IF('Výsledková listina H'!D14<>\"\",A13+1,\"\")","v":""},null,{"$f":"'Startovní listina'!G101","v":""},{"$f":"'Startovní listina'!B101","v":""},{"$f":"'Startovní listina'!C101","v":""},{"$f":"'Startovní listina'!D101","v":""},{"$f":"'Startovní listina'!E101","v":""},{"$f":"'Startovní listina'!F101","v":""}]
[{"$f":"IF('Výsledková listina H'!D15<>\"\",A14+1,\"\")","v":""},null,{"$f":"'Startovní listina'!G102","v":""},{"$f":"'Startovní listina'!B102","v":""},{"$f":"'Startovní listina'!C102","v":""},{"$f":"'Startovní listina'!D102","v":""},{"$f":"'Startovní listina'!E102","v":""},{"$f":"'Startovní listina'!F102","v":""}]
[{"$f":"IF('Výsledková listina H'!D16<>\"\",A15+1,\"\")","v":""},null,{"$f":"'Startovní listina'!G103","v":""},{"$f":"'Startovní listina'!B103","v":""},{"$f":"'Startovní listina'!C103","v":""},{"$f":"'Startovní listina'!D103","v":""},{"$f":"'Startovní listina'!E103","v":""},{"$f":"'Startovní listina'!F103","v":""}]
[{"$f":"IF('Výsledková listina H'!D17<>\"\",A16+1,\"\")","v":""},null,{"$f":"'Startovní listina'!G104","v":""},{"$f":"'Startovní listina'!B104","v":""},{"$f":"'Startovní listina'!C104","v":""},{"$f":"'Startovní listina'!D104","v":""},{"$f":"'Startovní listina'!E104","v":""},{"$f":"'Startovní listina'!F104","v":""}]
[{"$f":"IF('Výsledková listina H'!D18<>\"\",A17+1,\"\")","v":""},null,{"$f":"'Startovní listina'!G105","v":""},{"$f":"'Startovní listina'!B105","v":""},{"$f":"'Startovní listina'!C105","v":""},{"$f":"'Startovní listina'!D105","v":""},{"$f":"'Startovní listina'!E105","v":""},{"$f":"'Startovní listina'!F105","v":""}]
[{"$f":"IF('Výsledková listina H'!D19<>\"\",A18+1,\"\")","v":""},null,{"$f":"'Startovní listina'!G106","v":""},{"$f":"'Startovní listina'!B106","v":""},{"$f":"'Startovní listina'!C106","v":""},{"$f":"'Startovní listina'!D106","v":""},{"$f":"'Startovní listina'!E106","v":""},{"$f":"'Startovní listina'!F106","v":""}]
[{"$f":"IF('Výsledková listina H'!D20<>\"\",A19+1,\"\")","v":""},null,{"$f":"'Startovní listina'!G107","v":""},{"$f":"'Startovní listina'!B107","v":""},{"$f":"'Startovní listina'!C107","v":""},{"$f":"'Startovní listina'!D107","v":""},{"$f":"'Startovní listina'!E107","v":""},{"$f":"'Startovní listina'!F107","v":""}]
[{"$f":"IF('Výsledková listina H'!D21<>\"\",A20+1,\"\")","v":""},null,{"$f":"'Startovní listina'!G108","v":""},{"$f":"'Startovní listina'!B108","v":""},{"$f":"'Startovní listina'!C108","v":""},{"$f":"'Startovní listina'!D108","v":""},{"$f":"'Startovní listina'!E108","v":""},{"$f":"'Startovní listina'!F108","v":""}]
[{"$f":"IF('Výsledková listina H'!D22<>\"\",A21+1,\"\")","v":""},null,{"$f":"'Startovní listina'!G109","v":""},{"$f":"'Startovní listina'!B109","v":""},{"$f":"'Startovní listina'!C109","v":""},{"$f":"'Startovní listina'!D109","v":""},{"$f":"'Startovní listina'!E109","v":""},{"$f":"'Startovní listina'!F109","v":""}]
[{"$f":"IF('Výsledková listina H'!D23<>\"\",A22+1,\"\")","v":""},null,{"$f":"'Startovní listina'!G110","v":""},{"$f":"'Startovní listina'!B110","v":""},{"$f":"'Startovní listina'!C110","v":""},{"$f":"'Startovní listina'!D110","v":""},{"$f":"'Startovní listina'!E110","v":""},{"$f":"'Startovní listina'!F110","v":""}]
[{"$f":"IF('Výsledková listina H'!D24<>\"\",A23+1,\"\")","v":""},null,{"$f":"'Startovní listina'!G111","v":""},{"$f":"'Startovní listina'!B111","v":""},{"$f":"'Startovní listina'!C111","v":""},{"$f":"'Startovní listina'!D111","v":""},{"$f":"'Startovní listina'!E111","v":""},{"$f":"'Startovní listina'!F111","v":""}]
[{"$f":"IF('Výsledková listina H'!D25<>\"\",A24+1,\"\")","v":""},null,{"$f":"'Startovní listina'!G112","v":""},{"$f":"'Startovní listina'!B112","v":""},{"$f":"'Startovní listina'!C112","v":""},{"$f":"'Startovní listina'!D112","v":""},{"$f":"'Startovní listina'!E112","v":""},{"$f":"'Startovní listina'!F112","v":""}]
[{"$f":"IF('Výsledková listina H'!D26<>\"\",A25+1,\"\")","v":""},null,{"$f":"'Startovní listina'!G113","v":""},{"$f":"'Startovní listina'!B113","v":""},{"$f":"'Startovní listina'!C113","v":""},{"$f":"'Startovní listina'!D113","v":""},{"$f":"'Startovní listina'!E113","v":""},{"$f":"'Startovní listina'!F113","v":""}]
[{"$f":"IF('Výsledková listina H'!D27<>\"\",A26+1,\"\")","v":""},null,{"$f":"'Startovní listina'!G114","v":""},{"$f":"'Startovní listina'!B114","v":""},{"$f":"'Startovní listina'!C114","v":""},{"$f":"'Startovní listina'!D114","v":""},{"$f":"'Startovní listina'!E114","v":""},{"$f":"'Startovní listina'!F114","v":""}]
[{"$f":"IF('Výsledková listina H'!D28<>\"\",A27+1,\"\")","v":""},null,{"$f":"'Startovní listina'!G115","v":""},{"$f":"'Startovní listina'!B115","v":""},{"$f":"'Startovní listina'!C115","v":""},{"$f":"'Startovní listina'!D115","v":""},{"$f":"'Startovní listina'!E115","v":""},{"$f":"'Startovní listina'!F115","v":""}]
[{"$f":"IF('Výsledková listina H'!D29<>\"\",A28+1,\"\")","v":""},null,{"$f":"'Startovní listina'!G116","v":""},{"$f":"'Startovní listina'!B116","v":""},{"$f":"'Startovní listina'!C116","v":""},{"$f":"'Startovní listina'!D116","v":""},{"$f":"'Startovní listina'!E116","v":""},{"$f":"'Startovní listina'!F116","v":""}]
[{"$f":"IF('Výsledková listina H'!D30<>\"\",A29+1,\"\")","v":""},null,{"$f":"'Startovní listina'!G117","v":""},{"$f":"'Startovní listina'!B117","v":""},{"$f":"'Startovní listina'!C117","v":""},{"$f":"'Startovní listina'!D117","v":""},{"$f":"'Startovní listina'!E117","v":""},{"$f":"'Startovní listina'!F117","v":""}]
[{"$f":"IF('Výsledková listina H'!D31<>\"\",A30+1,\"\")","v":""},null,{"$f":"'Startovní listina'!G118","v":""},{"$f":"'Startovní listina'!B118","v":""},{"$f":"'Startovní listina'!C118","v":""},{"$f":"'Startovní listina'!D118","v":""},{"$f":"'Startovní listina'!E118","v":""},{"$f":"'Startovní listina'!F118","v":""}]
[{"$f":"IF('Výsledková listina H'!D32<>\"\",A31+1,\"\")","v":""},null,{"$f":"'Startovní listina'!G119","v":""},{"$f":"'Startovní listina'!B119","v":""},{"$f":"'Startovní listina'!C119","v":""},{"$f":"'Startovní listina'!D119","v":""},{"$f":"'Startovní listina'!E119","v":""},{"$f":"'Startovní listina'!F119","v":""}]
[{"$f":"IF('Výsledková listina H'!D33<>\"\",A32+1,\"\")","v":""},null,{"$f":"'Startovní listina'!G120","v":""},{"$f":"'Startovní listina'!B120","v":""},{"$f":"'Startovní listina'!C120","v":""},{"$f":"'Startovní listina'!D120","v":""},{"$f":"'Startovní listina'!E120","v":""},{"$f":"'Startovní listina'!F120","v":""}]
[{"$f":"IF('Výsledková listina H'!D34<>\"\",A33+1,\"\")","v":""},null,{"$f":"'Startovní listina'!G121","v":""},{"$f":"'Startovní listina'!B121","v":""},{"$f":"'Startovní listina'!C121","v":""},{"$f":"'Startovní listina'!D121","v":""},{"$f":"'Startovní listina'!E121","v":""},{"$f":"'Startovní listina'!F121","v":""}]
[{"$f":"IF('Výsledková listina H'!D35<>\"\",A34+1,\"\")","v":""},null,{"$f":"'Startovní listina'!G122","v":""},{"$f":"'Startovní listina'!B122","v":""},{"$f":"'Startovní listina'!C122","v":""},{"$f":"'Startovní listina'!D122","v":""},{"$f":"'Startovní listina'!E122","v":""},{"$f":"'Startovní listina'!F122","v":""}]
[{"$f":"IF('Výsledková listina H'!D36<>\"\",A35+1,\"\")","v":""},null,{"$f":"'Startovní listina'!G123","v":""},{"$f":"'Startovní listina'!B123","v":""},{"$f":"'Startovní listina'!C123","v":""},{"$f":"'Startovní listina'!D123","v":""},{"$f":"'Startovní listina'!E123","v":""},{"$f":"'Startovní listina'!F123","v":""}]
[{"$f":"IF('Výsledková listina H'!D37<>\"\",A36+1,\"\")","v":""},null,{"$f":"'Startovní listina'!G124","v":""},{"$f":"'Startovní listina'!B124","v":""},{"$f":"'Startovní listina'!C124","v":""},{"$f":"'Startovní listina'!D124","v":""},{"$f":"'Startovní listina'!E124","v":""},{"$f":"'Startovní listina'!F124","v":""}]
[{"$f":"IF('Výsledková listina H'!D38<>\"\",A37+1,\"\")","v":""},null,{"$f":"'Startovní listina'!G125","v":""},{"$f":"'Startovní listina'!B125","v":""},{"$f":"'Startovní listina'!C125","v":""},{"$f":"'Startovní listina'!D125","v":""},{"$f":"'Startovní listina'!E125","v":""},{"$f":"'Startovní listina'!F125","v":""}]
[{"$f":"IF('Výsledková listina H'!D39<>\"\",A38+1,\"\")","v":""},null,{"$f":"'Startovní listina'!G126","v":""},{"$f":"'Startovní listina'!B126","v":""},{"$f":"'Startovní listina'!C126","v":""},{"$f":"'Startovní listina'!D126","v":""},{"$f":"'Startovní listina'!E126","v":""},{"$f":"'Startovní listina'!F126","v":""}]
[{"$f":"IF('Výsledková listina H'!D40<>\"\",A39+1,\"\")","v":""},null,{"$f":"'Startovní listina'!G127","v":""},{"$f":"'Startovní listina'!B127","v":""},{"$f":"'Startovní listina'!C127","v":""},{"$f":"'Startovní listina'!D127","v":""},{"$f":"'Startovní listina'!E127","v":""},{"$f":"'Startovní listina'!F127","v":""}]
[{"$f":"IF('Výsledková listina H'!D41<>\"\",A40+1,\"\")","v":""},null,{"$f":"'Startovní listina'!G128","v":""},{"$f":"'Startovní listina'!B128","v":""},{"$f":"'Startovní listina'!C128","v":""},{"$f":"'Startovní listina'!D128","v":""},{"$f":"'Startovní listina'!E128","v":""},{"$f":"'Startovní listina'!F128","v":""}]
[{"$f":"IF('Výsledková listina H'!D42<>\"\",A41+1,\"\")","v":""},null,{"$f":"'Startovní listina'!G129","v":""},{"$f":"'Startovní listina'!B129","v":""},{"$f":"'Startovní listina'!C129","v":""},{"$f":"'Startovní listina'!D129","v":""},{"$f":"'Startovní listina'!E129","v":""},{"$f":"'Startovní listina'!F129","v":""}]
[{"$f":"IF('Výsledková listina H'!D43<>\"\",A42+1,\"\")","v":""},null,{"$f":"'Startovní listina'!G130","v":""},{"$f":"'Startovní listina'!B130","v":""},{"$f":"'Startovní listina'!C130","v":""},{"$f":"'Startovní listina'!D130","v":""},{"$f":"'Startovní listina'!E130","v":""},{"$f":"'Startovní listina'!F130","v":""}]
[{"$f":"IF('Výsledková listina H'!D44<>\"\",A43+1,\"\")","v":""},null,{"$f":"'Startovní listina'!G131","v":""},{"$f":"'Startovní listina'!B131","v":""},{"$f":"'Startovní listina'!C131","v":""},{"$f":"'Startovní listina'!D131","v":""},{"$f":"'Startovní listina'!E131","v":""},{"$f":"'Startovní listina'!F131","v":""}]
[{"$f":"IF('Výsledková listina H'!D45<>\"\",A44+1,\"\")","v":""},null,{"$f":"'Startovní listina'!G132","v":""},{"$f":"'Startovní listina'!B132","v":""},{"$f":"'Startovní listina'!C132","v":""},{"$f":"'Startovní listina'!D132","v":""},{"$f":"'Startovní listina'!E132","v":""},{"$f":"'Startovní listina'!F132","v":""}]
[{"$f":"IF('Výsledková listina H'!D46<>\"\",A45+1,\"\")","v":""},null,{"$f":"'Startovní listina'!G133","v":""},{"$f":"'Startovní listina'!B133","v":""},{"$f":"'Startovní listina'!C133","v":""},{"$f":"'Startovní listina'!D133","v":""},{"$f":"'Startovní listina'!E133","v":""},{"$f":"'Startovní listina'!F133","v":""}]
[{"$f":"IF('Výsledková listina H'!D47<>\"\",A46+1,\"\")","v":""},null,{"$f":"'Startovní listina'!G134","v":""},{"$f":"'Startovní listina'!B134","v":""},{"$f":"'Startovní listina'!C134","v":""},{"$f":"'Startovní listina'!D134","v":""},{"$f":"'Startovní listina'!E134","v":""},{"$f":"'Startovní listina'!F134","v":""}]
[{"$f":"IF('Výsledková listina H'!D48<>\"\",A47+1,\"\")","v":""},null,{"$f":"'Startovní listina'!G135","v":""},{"$f":"'Startovní listina'!B135","v":""},{"$f":"'Startovní listina'!C135","v":""},{"$f":"'Startovní listina'!D135","v":""},{"$f":"'Startovní listina'!E135","v":""},{"$f":"'Startovní listina'!F135","v":""}]
[{"$f":"IF('Výsledková listina H'!D49<>\"\",A48+1,\"\")","v":""},null,{"$f":"'Startovní listina'!G136","v":""},{"$f":"'Startovní listina'!B136","v":""},{"$f":"'Startovní listina'!C136","v":""},{"$f":"'Startovní listina'!D136","v":""},{"$f":"'Startovní listina'!E136","v":""},{"$f":"'Startovní listina'!F136","v":""}]
[{"$f":"IF('Výsledková listina H'!D50<>\"\",A49+1,\"\")","v":""},null,{"$f":"'Startovní listina'!G137","v":""},{"$f":"'Startovní listina'!B137","v":""},{"$f":"'Startovní listina'!C137","v":""},{"$f":"'Startovní listina'!D137","v":""},{"$f":"'Startovní listina'!E137","v":""},{"$f":"'Startovní listina'!F137","v":""}]
[{"$f":"IF('Výsledková listina H'!D51<>\"\",A50+1,\"\")","v":""},null,{"$f":"'Startovní listina'!G138","v":""},{"$f":"'Startovní listina'!B138","v":""},{"$f":"'Startovní listina'!C138","v":""},{"$f":"'Startovní listina'!D138","v":""},{"$f":"'Startovní listina'!E138","v":""},{"$f":"'Startovní listina'!F138","v":""}]
[{"$f":"IF('Výsledková listina H'!D52<>\"\",A51+1,\"\")","v":""},null,{"$f":"'Startovní listina'!G139","v":""},{"$f":"'Startovní listina'!B139","v":""},{"$f":"'Startovní listina'!C139","v":""},{"$f":"'Startovní listina'!D139","v":""},{"$f":"'Startovní listina'!E139","v":""},{"$f":"'Startovní listina'!F139","v":""}]
[{"$f":"IF('Výsledková listina H'!D53<>\"\",A52+1,\"\")","v":""},null,{"$f":"'Startovní listina'!G140","v":""},{"$f":"'Startovní listina'!B140","v":""},{"$f":"'Startovní listina'!C140","v":""},{"$f":"'Startovní listina'!D140","v":""},{"$f":"'Startovní listina'!E140","v":""},{"$f":"'Startovní listina'!F140","v":""}]
[{"$f":"IF('Výsledková listina H'!D54<>\"\",A53+1,\"\")","v":""},null,{"$f":"'Startovní listina'!G141","v":""},{"$f":"'Startovní listina'!B141","v":""},{"$f":"'Startovní listina'!C141","v":""},{"$f":"'Startovní listina'!D141","v":""},{"$f":"'Startovní listina'!E141","v":""},{"$f":"'Startovní listina'!F141","v":""}]
[]
[]
[]
[]
[]
[null,null,null,"seřadit podle kategorie a pak podle času"]